Workbook

Sheet InpC
A1: =RIGHT(CELL("filename", $A$1), LEN(CELL("filename", $A$1)) - SEARCH("]", CELL("filename", $A$1))) -> InpC
F4: Constant | G4: Unit
A6: TIME
E8: Model column start date | F8: 2016-01-01 | G8: date
E10: Financial close date | F10: 2016-06-30 | G10: date
E12: Construction duration | F12: 3 | G12: years
E14: Operation duration | F14: 30 | G14: years
E16: Financial year end month number | F16: 12 | G16: month #
E18: Months per model period | F18: 6 | G18: months
E20: Days in a month | F20: 30 | G20: days
A23: ESCALATION
E25: CPI escalation rate | F25: 0.025 | G25: %
E27: CPI base period end date | F27: 2016-06-30 | G27: date
E29: CPI 1st step up escalation period end date | F29: 2017-06-30 | G29: date
A32: OPERATING REVENUE
E34: Annual electricity production | F34: 1000 | G34: MWh p.a.
E36: Annual electricity price | F36: 40 | G36: EUR k p.a.
A39: OPERATING COST
B41: Land lease cost
E42: Land lease cost | F42: 3000000 | G42: EUR / year
B44: Maintenance Costs
E45: Maintenance cost % of infrastructure | F45: 0.025 | G45: % p.a.
B47: Other Costs
E48: Other operational cost | F48: 50000 | G48: EUR / year
A51: CAPITAL EXPENDITURE
B53: Infrastructure cost
E54: Infrastructure investment | F54: 200 | G54: EUR mn
A58: ANALYSIS
E60: PV discount date | F60: 2016-06-30 | G60: date
E62: PV day count basis | F62: 365 | G62: days
E64: PV discount rate | F64: 0.08 | G64: %
A67: NON CHANGEABLE INPUTS
E69: Semi annual period in a year | F69: 2 | G69: periods
E71: Conversion from EUR mn to EUR k | F71: 1000 | G71: EUR k / EUR m
E73: Base factor | F73: 1 | G73: factor
E75: Conversion from EUR to EUR k | F75: 1000 | G75: EUR / EUR k
E78: [Don't delete row]

Sheet Time
A1: =RIGHT(CELL("filename", $A$1), LEN(CELL("filename", $A$1)) - SEARCH("]", CELL("filename", $A$1))) -> Time
E2: =Time!E$21 -> Model period ending | J2: =Time!J$21 -> 2016-06-30 | K2: =Time!K$21 -> 2016-12-31 | L2: =Time!L$21 -> 2017-06-30 | M2: =Time!M$21 -> 2017-12-31 | N2: =Time!N$21 -> 2018-06-30 | O2: =Time!O$21 -> 2018-12-31 | P2: =Time!P$21 -> 2019-06-30 | Q2: =Time!Q$21 -> 2019-12-31 | R2: =Time!R$21 -> 2020-06-30 | S2: =Time!S$21 -> 2020-12-31 | T2: =Time!T$21 -> 2021-06-30 | U2: =Time!U$21 -> 2021-12-31 | V2: =Time!V$21 -> 2022-06-30 | W2: =Time!W$21 -> 2022-12-31 | X2: =Time!X$21 -> 2023-06-30 | Y2: =Time!Y$21 -> 2023-12-31 | Z2: =Time!Z$21 -> 2024-06-30 | AA2: =Time!AA$21 -> 2024-12-31 | AB2: =Time!AB$21 -> 2025-06-30 | AC2: =Time!AC$21 -> 2025-12-31 | AD2: =Time!AD$21 -> 2026-06-30 | AE2: =Time!AE$21 -> 2026-12-31 | AF2: =Time!AF$21 -> 2027-06-30 | AG2: =Time!AG$21 -> 2027-12-31 | AH2: =Time!AH$21 -> 2028-06-30 | AI2: =Time!AI$21 -> 2028-12-31 | AJ2: =Time!AJ$21 -> 2029-06-30 | AK2: =Time!AK$21 -> 2029-12-31 | AL2: =Time!AL$21 -> 2030-06-30 | AM2: =Time!AM$21 -> 2030-12-31 | AN2: =Time!AN$21 -> 2031-06-30 | AO2: =Time!AO$21 -> 2031-12-31 | AP2: =Time!AP$21 -> 2032-06-30 | AQ2: =Time!AQ$21 -> 2032-12-31 | AR2: =Time!AR$21 -> 2033-06-30 | AS2: =Time!AS$21 -> 2033-12-31 | AT2: =Time!AT$21 -> 2034-06-30 | AU2: =Time!AU$21 -> 2034-12-31 | AV2: =Time!AV$21 -> 2035-06-30 | AW2: =Time!AW$21 -> 2035-12-31 | AX2: =Time!AX$21 -> 2036-06-30 | AY2: =Time!AY$21 -> 2036-12-31 | AZ2: =Time!AZ$21 -> 2037-06-30 | BA2: =Time!BA$21 -> 2037-12-31 | BB2: =Time!BB$21 -> 2038-06-30 | BC2: =Time!BC$21 -> 2038-12-31 | BD2: =Time!BD$21 -> 2039-06-30 | BE2: =Time!BE$21 -> 2039-12-31 | BF2: =Time!BF$21 -> 2040-06-30 | BG2: =Time!BG$21 -> 2040-12-31 | BH2: =Time!BH$21 -> 2041-06-30 | BI2: =Time!BI$21 -> 2041-12-31 | BJ2: =Time!BJ$21 -> 2042-06-30 | BK2: =Time!BK$21 -> 2042-12-31 | BL2: =Time!BL$21 -> 2043-06-30 | BM2: =Time!BM$21 -> 2043-12-31 | BN2: =Time!BN$21 -> 2044-06-30 | BO2: =Time!BO$21 -> 2044-12-31 | BP2: =Time!BP$21 -> 2045-06-30 | BQ2: =Time!BQ$21 -> 2045-12-31 | BR2: =Time!BR$21 -> 2046-06-30 | BS2: =Time!BS$21 -> 2046-12-31 | BT2: =Time!BT$21 -> 2047-06-30 | BU2: =Time!BU$21 -> 2047-12-31 | BV2: =Time!BV$21 -> 2048-06-30 | BW2: =Time!BW$21 -> 2048-12-31 | BX2: =Time!BX$21 -> 2049-06-30 | BY2: =Time!BY$21 -> 2049-12-31 | BZ2: =Time!BZ$21 -> 2050-06-30
E3: =Time!E$108 -> Actual vs forecast | J3: =Time!J$108 -> Fin Close | K3: =Time!K$108 -> Construction | L3: =Time!L$108 -> Construction | M3: =Time!M$108 -> Construction | N3: =Time!N$108 -> Construction | O3: =Time!O$108 -> Construction | P3: =Time!P$108 -> Construction | Q3: =Time!Q$108 -> Operations | R3: =Time!R$108 -> Operations | S3: =Time!S$108 -> Operations | T3: =Time!T$108 -> Operations | U3: =Time!U$108 -> Operations | V3: =Time!V$108 -> Operations | W3: =Time!W$108 -> Operations | X3: =Time!X$108 -> Operations | Y3: =Time!Y$108 -> Operations | Z3: =Time!Z$108 -> Operations | AA3: =Time!AA$108 -> Operations | AB3: =Time!AB$108 -> Operations | AC3: =Time!AC$108 -> Operations | AD3: =Time!AD$108 -> Operations | AE3: =Time!AE$108 -> Operations | AF3: =Time!AF$108 -> Operations | AG3: =Time!AG$108 -> Operations | AH3: =Time!AH$108 -> Operations | AI3: =Time!AI$108 -> Operations | AJ3: =Time!AJ$108 -> Operations | AK3: =Time!AK$108 -> Operations | AL3: =Time!AL$108 -> Operations | AM3: =Time!AM$108 -> Operations | AN3: =Time!AN$108 -> Operations | AO3: =Time!AO$108 -> Operations | AP3: =Time!AP$108 -> Operations | AQ3: =Time!AQ$108 -> Operations | AR3: =Time!AR$108 -> Operations | AS3: =Time!AS$108 -> Operations | AT3: =Time!AT$108 -> Operations | AU3: =Time!AU$108 -> Operations | AV3: =Time!AV$108 -> Operations | AW3: =Time!AW$108 -> Operations | AX3: =Time!AX$108 -> Operations | AY3: =Time!AY$108 -> Operations | AZ3: =Time!AZ$108 -> Operations | BA3: =Time!BA$108 -> Operations | BB3: =Time!BB$108 -> Operations | BC3: =Time!BC$108 -> Operations | BD3: =Time!BD$108 -> Operations | BE3: =Time!BE$108 -> Operations | BF3: =Time!BF$108 -> Operations | BG3: =Time!BG$108 -> Operations | BH3: =Time!BH$108 -> Operations | BI3: =Time!BI$108 -> Operations | BJ3: =Time!BJ$108 -> Operations | BK3: =Time!BK$108 -> Operations | BL3: =Time!BL$108 -> Operations | BM3: =Time!BM$108 -> Operations | BN3: =Time!BN$108 -> Operations | BO3: =Time!BO$108 -> Operations | BP3: =Time!BP$108 -> Operations | BQ3: =Time!BQ$108 -> Operations | BR3: =Time!BR$108 -> Operations | BS3: =Time!BS$108 -> Operations | BT3: =Time!BT$108 -> Operations | BU3: =Time!BU$108 -> Operations | BV3: =Time!BV$108 -> Operations | BW3: =Time!BW$108 -> Operations | BX3: =Time!BX$108 -> Operations | BY3: =Time!BY$108 -> Post-Frcst | BZ3: =Time!BZ$108 -> Post-Frcst
E4: =Time!E$121 -> Financial year ending | J4: =Time!J$121 -> 2016 | K4: =Time!K$121 -> 2016 | L4: =Time!L$121 -> 2017 | M4: =Time!M$121 -> 2017 | N4: =Time!N$121 -> 2018 | O4: =Time!O$121 -> 2018 | P4: =Time!P$121 -> 2019 | Q4: =Time!Q$121 -> 2019 | R4: =Time!R$121 -> 2020 | S4: =Time!S$121 -> 2020 | T4: =Time!T$121 -> 2021 | U4: =Time!U$121 -> 2021 | V4: =Time!V$121 -> 2022 | W4: =Time!W$121 -> 2022 | X4: =Time!X$121 -> 2023 | Y4: =Time!Y$121 -> 2023 | Z4: =Time!Z$121 -> 2024 | AA4: =Time!AA$121 -> 2024 | AB4: =Time!AB$121 -> 2025 | AC4: =Time!AC$121 -> 2025 | AD4: =Time!AD$121 -> 2026 | AE4: =Time!AE$121 -> 2026 | AF4: =Time!AF$121 -> 2027 | AG4: =Time!AG$121 -> 2027 | AH4: =Time!AH$121 -> 2028 | AI4: =Time!AI$121 -> 2028 | AJ4: =Time!AJ$121 -> 2029 | AK4: =Time!AK$121 -> 2029 | AL4: =Time!AL$121 -> 2030 | AM4: =Time!AM$121 -> 2030 | AN4: =Time!AN$121 -> 2031 | AO4: =Time!AO$121 -> 2031 | AP4: =Time!AP$121 -> 2032 | AQ4: =Time!AQ$121 -> 2032 | AR4: =Time!AR$121 -> 2033 | AS4: =Time!AS$121 -> 2033 | AT4: =Time!AT$121 -> 2034 | AU4: =Time!AU$121 -> 2034 | AV4: =Time!AV$121 -> 2035 | AW4: =Time!AW$121 -> 2035 | AX4: =Time!AX$121 -> 2036 | AY4: =Time!AY$121 -> 2036 | AZ4: =Time!AZ$121 -> 2037 | BA4: =Time!BA$121 -> 2037 | BB4: =Time!BB$121 -> 2038 | BC4: =Time!BC$121 -> 2038 | BD4: =Time!BD$121 -> 2039 | BE4: =Time!BE$121 -> 2039 | BF4: =Time!BF$121 -> 2040 | BG4: =Time!BG$121 -> 2040 | BH4: =Time!BH$121 -> 2041 | BI4: =Time!BI$121 -> 2041 | BJ4: =Time!BJ$121 -> 2042 | BK4: =Time!BK$121 -> 2042 | BL4: =Time!BL$121 -> 2043 | BM4: =Time!BM$121 -> 2043 | BN4: =Time!BN$121 -> 2044 | BO4: =Time!BO$121 -> 2044 | BP4: =Time!BP$121 -> 2045 | BQ4: =Time!BQ$121 -> 2045 | BR4: =Time!BR$121 -> 2046 | BS4: =Time!BS$121 -> 2046 | BT4: =Time!BT$121 -> 2047 | BU4: =Time!BU$121 -> 2047 | BV4: =Time!BV$121 -> 2048 | BW4: =Time!BW$121 -> 2048 | BX4: =Time!BX$121 -> 2049 | BY4: =Time!BY$121 -> 2049 | BZ4: =Time!BZ$121 -> 2050
E5: =Time!E$9 -> Model column counter | F5: Constant | G5: Unit | H5: Total | J5: =Time!J$9 -> 1 | K5: =Time!K$9 -> 2 | L5: =Time!L$9 -> 3 | M5: =Time!M$9 -> 4 | N5: =Time!N$9 -> 5 | O5: =Time!O$9 -> 6 | P5: =Time!P$9 -> 7 | Q5: =Time!Q$9 -> 8 | R5: =Time!R$9 -> 9 | S5: =Time!S$9 -> 10 | T5: =Time!T$9 -> 11 | U5: =Time!U$9 -> 12 | V5: =Time!V$9 -> 13 | W5: =Time!W$9 -> 14 | X5: =Time!X$9 -> 15 | Y5: =Time!Y$9 -> 16 | Z5: =Time!Z$9 -> 17 | AA5: =Time!AA$9 -> 18 | AB5: =Time!AB$9 -> 19 | AC5: =Time!AC$9 -> 20 | AD5: =Time!AD$9 -> 21 | AE5: =Time!AE$9 -> 22 | AF5: =Time!AF$9 -> 23 | AG5: =Time!AG$9 -> 24 | AH5: =Time!AH$9 -> 25 | AI5: =Time!AI$9 -> 26 | AJ5: =Time!AJ$9 -> 27 | AK5: =Time!AK$9 -> 28 | AL5: =Time!AL$9 -> 29 | AM5: =Time!AM$9 -> 30 | AN5: =Time!AN$9 -> 31 | AO5: =Time!AO$9 -> 32 | AP5: =Time!AP$9 -> 33 | AQ5: =Time!AQ$9 -> 34 | AR5: =Time!AR$9 -> 35 | AS5: =Time!AS$9 -> 36 | AT5: =Time!AT$9 -> 37 | AU5: =Time!AU$9 -> 38 | AV5: =Time!AV$9 -> 39 | AW5: =Time!AW$9 -> 40 | AX5: =Time!AX$9 -> 41 | AY5: =Time!AY$9 -> 42 | AZ5: =Time!AZ$9 -> 43 | BA5: =Time!BA$9 -> 44 | BB5: =Time!BB$9 -> 45 | BC5: =Time!BC$9 -> 46 | BD5: =Time!BD$9 -> 47 | BE5: =Time!BE$9 -> 48 | BF5: =Time!BF$9 -> 49 | BG5: =Time!BG$9 -> 50 | BH5: =Time!BH$9 -> 51 | BI5: =Time!BI$9 -> 52 | BJ5: =Time!BJ$9 -> 53 | BK5: =Time!BK$9 -> 54 | BL5: =Time!BL$9 -> 55 | BM5: =Time!BM$9 -> 56 | BN5: =Time!BN$9 -> 57 | BO5: =Time!BO$9 -> 58 | BP5: =Time!BP$9 -> 59 | BQ5: =Time!BQ$9 -> 60 | BR5: =Time!BR$9 -> 61 | BS5: =Time!BS$9 -> 62 | BT5: =Time!BT$9 -> 63 | BU5: =Time!BU$9 -> 64 | BV5: =Time!BV$9 -> 65 | BW5: =Time!BW$9 -> 66 | BX5: =Time!BX$9 -> 67 | BY5: =Time!BY$9 -> 68 | BZ5: =Time!BZ$9 -> 69
A7: MODEL PERIOD
E9: Model column counter | G9: counter | J9: =I9 + 1 -> 1 | K9: 2 | L9: 3 | M9: 4 | N9: 5 | O9: 6 | P9: 7 | Q9: 8 | R9: 9 | S9: 10 | T9: 11 | U9: 12 | V9: 13 | W9: 14 | X9: 15 | Y9: 16 | Z9: 17 | AA9: 18 | AB9: 19 | AC9: 20 | AD9: 21 | AE9: 22 | AF9: 23 | AG9: 24 | AH9: 25 | AI9: 26 | AJ9: 27 | AK9: 28 | AL9: 29 | AM9: 30 | AN9: 31 | AO9: 32 | AP9: 33 | AQ9: 34 | AR9: 35 | AS9: 36 | AT9: 37 | AU9: 38 | AV9: 39 | AW9: 40 | AX9: 41 | AY9: 42 | AZ9: 43 | BA9: 44 | BB9: 45 | BC9: =BB9 + 1 -> 46 | BD9: 47 | BE9: 48 | BF9: 49 | BG9: 50 | BH9: 51 | BI9: 52 | BJ9: =BI9 + 1 -> 53 | BK9: 54 | BL9: 55 | BM9: 56 | BN9: 57 | BO9: 58 | BP9: 59 | BQ9: 60 | BR9: 61 | BS9: =BR9 + 1 -> 62 | BT9: 63 | BU9: 64 | BV9: 65 | BW9: 66 | BX9: 67 | BY9: 68 | BZ9: 69
E11: =E$9 -> Model column counter | F11: 0 | G11: counter | H11: 0 | I11: 0 | J11: 1 | K11: 2 | L11: 3 | M11: 4 | N11: 5 | O11: 6 | P11: 7 | Q11: 8 | R11: 9 | S11: 10 | T11: 11 | U11: 12 | V11: 13 | W11: 14 | X11: 15 | Y11: 16 | Z11: 17 | AA11: 18 | AB11: 19 | AC11: 20 | AD11: 21 | AE11: 22 | AF11: 23 | AG11: 24 | AH11: 25 | AI11: 26 | AJ11: 27 | AK11: 28 | AL11: 29 | AM11: 30 | AN11: 31 | AO11: 32 | AP11: 33 | AQ11: 34 | AR11: 35 | AS11: 36 | AT11: 37 | AU11: 38 | AV11: 39 | AW11: 40 | AX11: 41 | AY11: 42 | AZ11: 43 | BA11: 44 | BB11: 45 | BC11: 46 | BD11: 47 | BE11: 48 | BF11: 49 | BG11: 50 | BH11: 51 | BI11: 52 | BJ11: 53 | BK11: 54 | BL11: 55 | BM11: 56 | BN11: 57 | BO11: 58 | BP11: 59 | BQ11: =BQ$9 -> 60 | BR11: =BR$9 -> 61 | BS11: =BS$9 -> 62 | BT11: 63 | BU11: 64 | BV11: 65 | BW11: 66 | BX11: 67 | BY11: 68 | BZ11: 69
E12: 1st model column flag | G12: flag | H12: =SUM(J12:BZ12) -> 1 | J12: =IF(J11 = 1, 1, 0) -> 1 | K12: 0 | L12: 0 | M12: 0 | N12: 0 | O12: 0 | P12: 0 | Q12: 0 | R12: 0 | S12: 0 | T12: 0 | U12: 0 | V12: 0 | W12: 0 | X12: 0 | Y12: 0 | Z12: 0 | AA12: 0 | AB12: 0 | AC12: 0 | AD12: 0 | AE12: 0 | AF12: 0 | AG12: 0 | AH12: 0 | AI12: 0 | AJ12: 0 | AK12: 0 | AL12: 0 | AM12: 0 | AN12: 0 | AO12: 0 | AP12: 0 | AQ12: 0 | AR12: 0 | AS12: 0 | AT12: 0 | AU12: 0 | AV12: 0 | AW12: 0 | AX12: 0 | AY12: 0 | AZ12: 0 | BA12: 0 | BB12: 0 | BC12: =IF(BC11 = 1, 1, 0) -> 0 | BD12: 0 | BE12: 0 | BF12: 0 | BG12: 0 | BH12: 0 | BI12: 0 | BJ12: =IF(BJ11 = 1, 1, 0) -> 0 | BK12: 0 | BL12: 0 | BM12: 0 | BN12: 0 | BO12: 0 | BP12: 0 | BQ12: 0 | BR12: 0 | BS12: =IF(BS11 = 1, 1, 0) -> 0 | BT12: 0 | BU12: 0 | BV12: 0 | BW12: 0 | BX12: 0 | BY12: 0 | BZ12: 0
E14: =InpC!E$8 -> Model column start date | F14: =InpC!F$8 -> 2016-01-01 | G14: =InpC!G$8 -> date
E15: =InpC!E$18 -> Months per model period | F15: =InpC!F$18 -> 6 | G15: =InpC!G$18 -> months
E16: =E$12 -> 1st model column flag | F16: 0 | G16: flag | H16: 1 | I16: 0 | J16: 1 | K16: 0 | L16: 0 | M16: 0 | N16: 0 | O16: 0 | P16: 0 | Q16: 0 | R16: 0 | S16: 0 | T16: 0 | U16: 0 | V16: 0 | W16: 0 | X16: 0 | Y16: 0 | Z16: 0 | AA16: 0 | AB16: 0 | AC16: 0 | AD16: 0 | AE16: 0 | AF16: 0 | AG16: 0 | AH16: 0 | AI16: 0 | AJ16: 0 | AK16: =AK$12 -> 0 | AL16: 0 | AM16: 0 | AN16: 0 | AO16: 0 | AP16: 0 | AQ16: 0 | AR16: 0 | AS16: 0 | AT16: 0 | AU16: 0 | AV16: 0 | AW16: 0 | AX16: 0 | AY16: 0 | AZ16: 0 | BA16: 0 | BB16: 0 | BC16: 0 | BD16: 0 | BE16: 0 | BF16: 0 | BG16: 0 | BH16: 0 | BI16: 0 | BJ16: 0 | BK16: 0 | BL16: 0 | BM16: 0 | BN16: 0 | BO16: 0 | BP16: 0 | BQ16: =BQ$12 -> 0 | BR16: 0 | BS16: 0 | BT16: 0 | BU16: 0 | BV16: 0 | BW16: 0 | BX16: 0 | BY16: 0 | BZ16: 0
E17: Model period beginning | G17: date | J17: =IF(J16 = 1, $F14, DATE(YEAR(I17), MONTH(I17) + $F15, DAY(1))) -> 2016-01-01 | K17: =IF(K16 = 1, $F14, DATE(YEAR(J17), MONTH(J17) + $F15, DAY(1))) -> 2016-07-01 | L17: 2017-01-01 | M17: 2017-07-01 | N17: 2018-01-01 | O17: 2018-07-01 | P17: 2019-01-01 | Q17: 2019-07-01 | R17: 2020-01-01 | S17: 2020-07-01 | T17: 2021-01-01 | U17: 2021-07-01 | V17: 2022-01-01 | W17: 2022-07-01 | X17: 2023-01-01 | Y17: 2023-07-01 | Z17: 2024-01-01 | AA17: 2024-07-01 | AB17: 2025-01-01 | AC17: 2025-07-01 | AD17: 2026-01-01 | AE17: 2026-07-01 | AF17: 2027-01-01 | AG17: 2027-07-01 | AH17: 2028-01-01 | AI17: 2028-07-01 | AJ17: 2029-01-01 | AK17: 2029-07-01 | AL17: 2030-01-01 | AM17: 2030-07-01 | AN17: 2031-01-01 | AO17: 2031-07-01 | AP17: 2032-01-01 | AQ17: 2032-07-01 | AR17: 2033-01-01 | AS17: 2033-07-01 | AT17: 2034-01-01 | AU17: 2034-07-01 | AV17: 2035-01-01 | AW17: 2035-07-01 | AX17: 2036-01-01 | AY17: 2036-07-01 | AZ17: 2037-01-01 | BA17: 2037-07-01 | BB17: 2038-01-01 | BC17: 2038-07-01 | BD17: 2039-01-01 | BE17: 2039-07-01 | BF17: 2040-01-01 | BG17: 2040-07-01 | BH17: 2041-01-01 | BI17: 2041-07-01 | BJ17: =IF(BJ16 = 1, $F14, DATE(YEAR(BI17), MONTH(BI17) + $F15, DAY(1))) -> 2042-01-01 | BK17: 2042-07-01 | BL17: 2043-01-01 | BM17: 2043-07-01 | BN17: 2044-01-01 | BO17: 2044-07-01 | BP17: 2045-01-01 | BQ17: 2045-07-01 | BR17: 2046-01-01 | BS17: =IF(BS16 = 1, $F14, DATE(YEAR(BR17), MONTH(BR17) + $F15, DAY(1))) -> 2046-07-01 | BT17: 2047-01-01 | BU17: 2047-07-01 | BV17: 2048-01-01 | BW17: 2048-07-01 | BX17: 2049-01-01 | BY17: 2049-07-01 | BZ17: 2050-01-01
E19: =InpC!E$18 -> Months per model period | F19: =InpC!F$18 -> 6 | G19: =InpC!G$18 -> months
E20: =E$17 -> Model period beginning | F20: =F$17 -> 00:00:00 | G20: date | H20: 00:00:00 | I20: 00:00:00 | J20: 2016-01-01 | K20: 2016-07-01 | L20: 2017-01-01 | M20: 2017-07-01 | N20: 2018-01-01 | O20: 2018-07-01 | P20: 2019-01-01 | Q20: 2019-07-01 | R20: 2020-01-01 | S20: 2020-07-01 | T20: 2021-01-01 | U20: 2021-07-01 | V20: 2022-01-01 | W20: 2022-07-01 | X20: 2023-01-01 | Y20: 2023-07-01 | Z20: 2024-01-01 | AA20: 2024-07-01 | AB20: 2025-01-01 | AC20: 2025-07-01 | AD20: 2026-01-01 | AE20: 2026-07-01 | AF20: 2027-01-01 | AG20: 2027-07-01 | AH20: 2028-01-01 | AI20: 2028-07-01 | AJ20: 2029-01-01 | AK20: 2029-07-01 | AL20: 2030-01-01 | AM20: 2030-07-01 | AN20: 2031-01-01 | AO20: 2031-07-01 | AP20: 2032-01-01 | AQ20: 2032-07-01 | AR20: 2033-01-01 | AS20: 2033-07-01 | AT20: 2034-01-01 | AU20: 2034-07-01 | AV20: 2035-01-01 | AW20: 2035-07-01 | AX20: 2036-01-01 | AY20: 2036-07-01 | AZ20: 2037-01-01 | BA20: 2037-07-01 | BB20: 2038-01-01 | BC20: 2038-07-01 | BD20: 2039-01-01 | BE20: 2039-07-01 | BF20: 2040-01-01 | BG20: 2040-07-01 | BH20: 2041-01-01 | BI20: 2041-07-01 | BJ20: 2042-01-01 | BK20: 2042-07-01 | BL20: 2043-01-01 | BM20: 2043-07-01 | BN20: 2044-01-01 | BO20: 2044-07-01 | BP20: 2045-01-01 | BQ20: 2045-07-01 | BR20: =BR$17 -> 2046-01-01 | BS20: =BS$17 -> 2046-07-01 | BT20: 2047-01-01 | BU20: 2047-07-01 | BV20: 2048-01-01 | BW20: 2048-07-01 | BX20: 2049-01-01 | BY20: 2049-07-01 | BZ20: 2050-01-01
E21: Model period ending | G21: date | J21: =DATE(YEAR(J20), MONTH(J20) + $F19, DAY(J20) - 1) -> 2016-06-30 | K21: =DATE(YEAR(K20), MONTH(K20) + $F19, DAY(K20) - 1) -> 2016-12-31 | L21: 2017-06-30 | M21: 2017-12-31 | N21: 2018-06-30 | O21: 2018-12-31 | P21: 2019-06-30 | Q21: 2019-12-31 | R21: 2020-06-30 | S21: 2020-12-31 | T21: 2021-06-30 | U21: 2021-12-31 | V21: 2022-06-30 | W21: 2022-12-31 | X21: 2023-06-30 | Y21: 2023-12-31 | Z21: 2024-06-30 | AA21: 2024-12-31 | AB21: 2025-06-30 | AC21: 2025-12-31 | AD21: 2026-06-30 | AE21: 2026-12-31 | AF21: 2027-06-30 | AG21: 2027-12-31 | AH21: 2028-06-30 | AI21: 2028-12-31 | AJ21: 2029-06-30 | AK21: 2029-12-31 | AL21: 2030-06-30 | AM21: 2030-12-31 | AN21: 2031-06-30 | AO21: 2031-12-31 | AP21: 2032-06-30 | AQ21: 2032-12-31 | AR21: 2033-06-30 | AS21: 2033-12-31 | AT21: 2034-06-30 | AU21: 2034-12-31 | AV21: 2035-06-30 | AW21: 2035-12-31 | AX21: 2036-06-30 | AY21: 2036-12-31 | AZ21: 2037-06-30 | BA21: 2037-12-31 | BB21: 2038-06-30 | BC21: 2038-12-31 | BD21: 2039-06-30 | BE21: 2039-12-31 | BF21: 2040-06-30 | BG21: 2040-12-31 | BH21: 2041-06-30 | BI21: 2041-12-31 | BJ21: 2042-06-30 | BK21: 2042-12-31 | BL21: 2043-06-30 | BM21: 2043-12-31 | BN21: 2044-06-30 | BO21: 2044-12-31 | BP21: 2045-06-30 | BQ21: 2045-12-31 | BR21: 2046-06-30 | BS21: 2046-12-31 | BT21: 2047-06-30 | BU21: 2047-12-31 | BV21: 2048-06-30 | BW21: =DATE(YEAR(BW20), MONTH(BW20) + $F19, DAY(BW20) - 1) -> 2048-12-31 | BX21: 2049-06-30 | BY21: 2049-12-31 | BZ21: 2050-06-30
A24: FINANCIAL CLOSE PERIOD
E26: =InpC!E$10 -> Financial close date | F26: =InpC!F$10 -> 2016-06-30 | G26: =InpC!G$10 -> date
E27: =E$21 -> Model period ending | F27: 00:00:00 | G27: date | H27: 00:00:00 | I27: 00:00:00 | J27: 2016-06-30 | K27: 2016-12-31 | L27: 2017-06-30 | M27: 2017-12-31 | N27: 2018-06-30 | O27: 2018-12-31 | P27: 2019-06-30 | Q27: 2019-12-31 | R27: 2020-06-30 | S27: 2020-12-31 | T27: 2021-06-30 | U27: 2021-12-31 | V27: 2022-06-30 | W27: 2022-12-31 | X27: 2023-06-30 | Y27: 2023-12-31 | Z27: 2024-06-30 | AA27: 2024-12-31 | AB27: 2025-06-30 | AC27: 2025-12-31 | AD27: 2026-06-30 | AE27: 2026-12-31 | AF27: 2027-06-30 | AG27: 2027-12-31 | AH27: 2028-06-30 | AI27: 2028-12-31 | AJ27: 2029-06-30 | AK27: 2029-12-31 | AL27: 2030-06-30 | AM27: 2030-12-31 | AN27: 2031-06-30 | AO27: 2031-12-31 | AP27: 2032-06-30 | AQ27: 2032-12-31 | AR27: 2033-06-30 | AS27: 2033-12-31 | AT27: 2034-06-30 | AU27: 2034-12-31 | AV27: 2035-06-30 | AW27: 2035-12-31 | AX27: 2036-06-30 | AY27: 2036-12-31 | AZ27: 2037-06-30 | BA27: 2037-12-31 | BB27: 2038-06-30 | BC27: 2038-12-31 | BD27: 2039-06-30 | BE27: 2039-12-31 | BF27: 2040-06-30 | BG27: 2040-12-31 | BH27: 2041-06-30 | BI27: 2041-12-31 | BJ27: 2042-06-30 | BK27: 2042-12-31 | BL27: 2043-06-30 | BM27: 2043-12-31 | BN27: 2044-06-30 | BO27: 2044-12-31 | BP27: 2045-06-30 | BQ27: =BQ$21 -> 2045-12-31 | BR27: =BR$21 -> 2046-06-30 | BS27: =BS$21 -> 2046-12-31 | BT27: 2047-06-30 | BU27: 2047-12-31 | BV27: 2048-06-30 | BW27: 2048-12-31 | BX27: 2049-06-30 | BY27: 2049-12-31 | BZ27: 2050-06-30
E28: Financial close flag | G28: flag | H28: =SUM(J28:BZ28) -> 1 | J28: =IF(AND($F26 > I27, $F26 <= J27), 1, 0) -> 1 | K28: =IF(AND($F26 > J27, $F26 <= K27), 1, 0) -> 0 | L28: 0 | M28: 0 | N28: 0 | O28: 0 | P28: 0 | Q28: 0 | R28: 0 | S28: 0 | T28: 0 | U28: 0 | V28: 0 | W28: 0 | X28: 0 | Y28: 0 | Z28: 0 | AA28: 0 | AB28: 0 | AC28: 0 | AD28: 0 | AE28: 0 | AF28: 0 | AG28: 0 | AH28: 0 | AI28: 0 | AJ28: 0 | AK28: 0 | AL28: 0 | AM28: 0 | AN28: 0 | AO28: 0 | AP28: 0 | AQ28: 0 | AR28: 0 | AS28: 0 | AT28: 0 | AU28: 0 | AV28: 0 | AW28: 0 | AX28: 0 | AY28: 0 | AZ28: 0 | BA28: 0 | BB28: 0 | BC28: 0 | BD28: 0 | BE28: 0 | BF28: 0 | BG28: 0 | BH28: 0 | BI28: 0 | BJ28: =IF(AND($F26 > BI27, $F26 <= BJ27), 1, 0) -> 0 | BK28: 0 | BL28: 0 | BM28: 0 | BN28: 0 | BO28: 0 | BP28: 0 | BQ28: 0 | BR28: 0 | BS28: =IF(AND($F26 > BR27, $F26 <= BS27), 1, 0) -> 0 | BT28: 0 | BU28: 0 | BV28: 0 | BW28: 0 | BX28: 0 | BY28: 0 | BZ28: 0
A31: CONSTRUCTION PERIOD
E33: =InpC!E$10 -> Financial close date | F33: =InpC!F$10 -> 2016-06-30 | G33: =InpC!G$10 -> date
E34: Construction start period date | F34: =F33 + 1 -> 2016-07-01 | G34: date
E36: =E$34 -> Construction start period date | F36: =F$34 -> 2016-07-01 | G36: =G$34 -> date
E37: =E$21 -> Model period ending | F37: 00:00:00 | G37: date | H37: 00:00:00 | I37: 00:00:00 | J37: 2016-06-30 | K37: 2016-12-31 | L37: 2017-06-30 | M37: 2017-12-31 | N37: 2018-06-30 | O37: 2018-12-31 | P37: 2019-06-30 | Q37: 2019-12-31 | R37: 2020-06-30 | S37: 2020-12-31 | T37: 2021-06-30 | U37: 2021-12-31 | V37: 2022-06-30 | W37: 2022-12-31 | X37: 2023-06-30 | Y37: 2023-12-31 | Z37: 2024-06-30 | AA37: 2024-12-31 | AB37: 2025-06-30 | AC37: 2025-12-31 | AD37: 2026-06-30 | AE37: 2026-12-31 | AF37: 2027-06-30 | AG37: 2027-12-31 | AH37: 2028-06-30 | AI37: 2028-12-31 | AJ37: 2029-06-30 | AK37: 2029-12-31 | AL37: 2030-06-30 | AM37: 2030-12-31 | AN37: 2031-06-30 | AO37: 2031-12-31 | AP37: 2032-06-30 | AQ37: 2032-12-31 | AR37: 2033-06-30 | AS37: 2033-12-31 | AT37: 2034-06-30 | AU37: 2034-12-31 | AV37: 2035-06-30 | AW37: 2035-12-31 | AX37: 2036-06-30 | AY37: 2036-12-31 | AZ37: 2037-06-30 | BA37: 2037-12-31 | BB37: 2038-06-30 | BC37: 2038-12-31 | BD37: 2039-06-30 | BE37: 2039-12-31 | BF37: 2040-06-30 | BG37: 2040-12-31 | BH37: 2041-06-30 | BI37: 2041-12-31 | BJ37: 2042-06-30 | BK37: 2042-12-31 | BL37: 2043-06-30 | BM37: 2043-12-31 | BN37: 2044-06-30 | BO37: 2044-12-31 | BP37: 2045-06-30 | BQ37: =BQ$21 -> 2045-12-31 | BR37: =BR$21 -> 2046-06-30 | BS37: =BS$21 -> 2046-12-31 | BT37: 2047-06-30 | BU37: 2047-12-31 | BV37: 2048-06-30 | BW37: 2048-12-31 | BX37: 2049-06-30 | BY37: 2049-12-31 | BZ37: 2050-06-30
E38: Construction start period flag | G38: flag | H38: =SUM(J38:BZ38) -> 1 | J38: =IF(AND($F36 <= J37, $F36 > I37), 1, 0) -> 0 | K38: =IF(AND($F36 <= K37, $F36 > J37), 1, 0) -> 1 | L38: 0 | M38: 0 | N38: 0 | O38: 0 | P38: 0 | Q38: 0 | R38: 0 | S38: 0 | T38: 0 | U38: 0 | V38: 0 | W38: 0 | X38: 0 | Y38: 0 | Z38: 0 | AA38: 0 | AB38: 0 | AC38: 0 | AD38: 0 | AE38: 0 | AF38: 0 | AG38: 0 | AH38: 0 | AI38: 0 | AJ38: 0 | AK38: 0 | AL38: 0 | AM38: 0 | AN38: 0 | AO38: 0 | AP38: 0 | AQ38: 0 | AR38: 0 | AS38: 0 | AT38: 0 | AU38: 0 | AV38: 0 | AW38: 0 | AX38: 0 | AY38: 0 | AZ38: 0 | BA38: 0 | BB38: 0 | BC38: 0 | BD38: 0 | BE38: 0 | BF38: 0 | BG38: 0 | BH38: 0 | BI38: 0 | BJ38: =IF(AND($F36 <= BJ37, $F36 > BI37), 1, 0) -> 0 | BK38: 0 | BL38: 0 | BM38: 0 | BN38: 0 | BO38: 0 | BP38: 0 | BQ38: 0 | BR38: 0 | BS38: =IF(AND($F36 <= BS37, $F36 > BR37), 1, 0) -> 0 | BT38: 0 | BU38: 0 | BV38: 0 | BW38: 0 | BX38: 0 | BY38: 0 | BZ38: 0
E40: =E$34 -> Construction start period date | F40: =F$34 -> 2016-07-01 | G40: =G$34 -> date
E41: =InpC!E$12 -> Construction duration | F41: =InpC!F$12 -> 3 | G41: =InpC!G$12 -> years
E42: Construction end period date | F42: =DATE(YEAR(F40) + F41, MONTH(F40), DAY(F40) - 1) -> 2019-06-30 | G42: date
E44: =E$42 -> Construction end period date | F44: =F$42 -> 2019-06-30 | G44: =G$42 -> date
E45: =E$21 -> Model period ending | F45: 00:00:00 | G45: date | H45: 00:00:00 | I45: 00:00:00 | J45: 2016-06-30 | K45: 2016-12-31 | L45: 2017-06-30 | M45: 2017-12-31 | N45: 2018-06-30 | O45: 2018-12-31 | P45: 2019-06-30 | Q45: 2019-12-31 | R45: 2020-06-30 | S45: 2020-12-31 | T45: 2021-06-30 | U45: 2021-12-31 | V45: 2022-06-30 | W45: 2022-12-31 | X45: 2023-06-30 | Y45: 2023-12-31 | Z45: 2024-06-30 | AA45: 2024-12-31 | AB45: 2025-06-30 | AC45: 2025-12-31 | AD45: 2026-06-30 | AE45: 2026-12-31 | AF45: 2027-06-30 | AG45: 2027-12-31 | AH45: 2028-06-30 | AI45: 2028-12-31 | AJ45: 2029-06-30 | AK45: 2029-12-31 | AL45: 2030-06-30 | AM45: 2030-12-31 | AN45: 2031-06-30 | AO45: 2031-12-31 | AP45: 2032-06-30 | AQ45: 2032-12-31 | AR45: 2033-06-30 | AS45: 2033-12-31 | AT45: 2034-06-30 | AU45: 2034-12-31 | AV45: 2035-06-30 | AW45: 2035-12-31 | AX45: 2036-06-30 | AY45: 2036-12-31 | AZ45: 2037-06-30 | BA45: 2037-12-31 | BB45: 2038-06-30 | BC45: 2038-12-31 | BD45: 2039-06-30 | BE45: 2039-12-31 | BF45: 2040-06-30 | BG45: 2040-12-31 | BH45: 2041-06-30 | BI45: 2041-12-31 | BJ45: 2042-06-30 | BK45: 2042-12-31 | BL45: 2043-06-30 | BM45: 2043-12-31 | BN45: 2044-06-30 | BO45: 2044-12-31 | BP45: 2045-06-30 | BQ45: =BQ$21 -> 2045-12-31 | BR45: =BR$21 -> 2046-06-30 | BS45: =BS$21 -> 2046-12-31 | BT45: 2047-06-30 | BU45: 2047-12-31 | BV45: 2048-06-30 | BW45: 2048-12-31 | BX45: 2049-06-30 | BY45: 2049-12-31 | BZ45: 2050-06-30
E46: Last construction period flag | G46: flag | H46: =SUM(J46:BZ46) -> 1 | J46: =IF(AND($F44 <= J45, $F44 > I45), 1, 0) -> 0 | K46: 0 | L46: 0 | M46: 0 | N46: 0 | O46: 0 | P46: 1 | Q46: 0 | R46: 0 | S46: 0 | T46: 0 | U46: 0 | V46: 0 | W46: 0 | X46: 0 | Y46: 0 | Z46: 0 | AA46: 0 | AB46: 0 | AC46: 0 | AD46: 0 | AE46: 0 | AF46: 0 | AG46: 0 | AH46: 0 | AI46: 0 | AJ46: 0 | AK46: 0 | AL46: 0 | AM46: 0 | AN46: 0 | AO46: 0 | AP46: =IF(AND($F44 <= AP45, $F44 > AO45), 1, 0) -> 0 | AQ46: 0 | AR46: 0 | AS46: 0 | AT46: 0 | AU46: 0 | AV46: 0 | AW46: 0 | AX46: 0 | AY46: 0 | AZ46: 0 | BA46: 0 | BB46: 0 | BC46: 0 | BD46: 0 | BE46: 0 | BF46: 0 | BG46: 0 | BH46: 0 | BI46: 0 | BJ46: =IF(AND($F44 <= BJ45, $F44 > BI45), 1, 0) -> 0 | BK46: 0 | BL46: 0 | BM46: 0 | BN46: 0 | BO46: 0 | BP46: 0 | BQ46: 0 | BR46: 0 | BS46: =IF(AND($F44 <= BS45, $F44 > BR45), 1, 0) -> 0 | BT46: 0 | BU46: 0 | BV46: 0 | BW46: 0 | BX46: 0 | BY46: 0 | BZ46: 0
E48: =E$38 -> Construction start period flag | F48: 0 | G48: flag | H48: 1 | I48: 0 | J48: 0 | K48: 1 | L48: 0 | M48: 0 | N48: 0 | O48: 0 | P48: 0 | Q48: 0 | R48: 0 | S48: 0 | T48: 0 | U48: 0 | V48: 0 | W48: 0 | X48: 0 | Y48: 0 | Z48: 0 | AA48: 0 | AB48: 0 | AC48: 0 | AD48: 0 | AE48: 0 | AF48: 0 | AG48: 0 | AH48: 0 | AI48: 0 | AJ48: 0 | AK48: 0 | AL48: 0 | AM48: 0 | AN48: 0 | AO48: 0 | AP48: 0 | AQ48: 0 | AR48: 0 | AS48: 0 | AT48: 0 | AU48: 0 | AV48: 0 | AW48: 0 | AX48: 0 | AY48: 0 | AZ48: 0 | BA48: 0 | BB48: 0 | BC48: 0 | BD48: 0 | BE48: 0 | BF48: 0 | BG48: 0 | BH48: 0 | BI48: 0 | BJ48: 0 | BK48: 0 | BL48: 0 | BM48: 0 | BN48: 0 | BO48: 0 | BP48: 0 | BQ48: =BQ$38 -> 0 | BR48: =BR$38 -> 0 | BS48: =BS$38 -> 0 | BT48: 0 | BU48: 0 | BV48: 0 | BW48: 0 | BX48: 0 | BY48: 0 | BZ48: 0
E49: =E$46 -> Last construction period flag | F49: 0 | G49: flag | H49: 1 | I49: 0 | J49: 0 | K49: 0 | L49: 0 | M49: 0 | N49: 0 | O49: 0 | P49: 1 | Q49: 0 | R49: 0 | S49: 0 | T49: 0 | U49: 0 | V49: 0 | W49: 0 | X49: 0 | Y49: 0 | Z49: 0 | AA49: 0 | AB49: 0 | AC49: 0 | AD49: 0 | AE49: 0 | AF49: 0 | AG49: 0 | AH49: 0 | AI49: 0 | AJ49: 0 | AK49: 0 | AL49: 0 | AM49: 0 | AN49: 0 | AO49: 0 | AP49: 0 | AQ49: 0 | AR49: 0 | AS49: 0 | AT49: 0 | AU49: 0 | AV49: 0 | AW49: 0 | AX49: 0 | AY49: 0 | AZ49: 0 | BA49: 0 | BB49: 0 | BC49: 0 | BD49: 0 | BE49: 0 | BF49: 0 | BG49: 0 | BH49: 0 | BI49: 0 | BJ49: 0 | BK49: 0 | BL49: 0 | BM49: 0 | BN49: 0 | BO49: 0 | BP49: 0 | BQ49: =BQ$46 -> 0 | BR49: =BR$46 -> 0 | BS49: =BS$46 -> 0 | BT49: 0 | BU49: 0 | BV49: 0 | BW49: 0 | BX49: 0 | BY49: 0 | BZ49: 0
E50: Construction period flag | G50: flag | H50: =SUM(J50:BZ50) -> 6 | J50: =J48 - I49 + I50 -> 0 | K50: =K48 - J49 + J50 -> 1 | L50: 1 | M50: 1 | N50: 1 | O50: 1 | P50: 1 | Q50: 0 | R50: 0 | S50: 0 | T50: 0 | U50: 0 | V50: 0 | W50: 0 | X50: 0 | Y50: 0 | Z50: 0 | AA50: 0 | AB50: 0 | AC50: 0 | AD50: 0 | AE50: 0 | AF50: 0 | AG50: 0 | AH50: 0 | AI50: 0 | AJ50: 0 | AK50: 0 | AL50: 0 | AM50: 0 | AN50: 0 | AO50: 0 | AP50: 0 | AQ50: 0 | AR50: 0 | AS50: 0 | AT50: 0 | AU50: 0 | AV50: 0 | AW50: 0 | AX50: 0 | AY50: 0 | AZ50: 0 | BA50: 0 | BB50: 0 | BC50: 0 | BD50: 0 | BE50: 0 | BF50: 0 | BG50: 0 | BH50: 0 | BI50: 0 | BJ50: =BJ48 - BI49 + BI50 -> 0 | BK50: 0 | BL50: 0 | BM50: 0 | BN50: 0 | BO50: 0 | BP50: 0 | BQ50: 0 | BR50: 0 | BS50: =BS48 - BR49 + BR50 -> 0 | BT50: 0 | BU50: 0 | BV50: 0 | BW50: 0 | BX50: 0 | BY50: 0 | BZ50: 0
E52: =E$34 -> Construction start period date | F52: =F$34 -> 2016-07-01 | G52: =G$34 -> date
E53: =E$42 -> Construction end period date | F53: =F$42 -> 2019-06-30 | G53: =G$42 -> date
E54: =E$17 -> Model period beginning | F54: =F$17 -> 00:00:00 | G54: date | H54: 00:00:00 | I54: 00:00:00 | J54: 2016-01-01 | K54: 2016-07-01 | L54: 2017-01-01 | M54: 2017-07-01 | N54: 2018-01-01 | O54: 2018-07-01 | P54: 2019-01-01 | Q54: 2019-07-01 | R54: 2020-01-01 | S54: 2020-07-01 | T54: 2021-01-01 | U54: 2021-07-01 | V54: 2022-01-01 | W54: 2022-07-01 | X54: 2023-01-01 | Y54: 2023-07-01 | Z54: 2024-01-01 | AA54: 2024-07-01 | AB54: 2025-01-01 | AC54: 2025-07-01 | AD54: 2026-01-01 | AE54: 2026-07-01 | AF54: 2027-01-01 | AG54: 2027-07-01 | AH54: 2028-01-01 | AI54: 2028-07-01 | AJ54: 2029-01-01 | AK54: 2029-07-01 | AL54: 2030-01-01 | AM54: 2030-07-01 | AN54: 2031-01-01 | AO54: 2031-07-01 | AP54: 2032-01-01 | AQ54: 2032-07-01 | AR54: 2033-01-01 | AS54: 2033-07-01 | AT54: 2034-01-01 | AU54: 2034-07-01 | AV54: 2035-01-01 | AW54: 2035-07-01 | AX54: 2036-01-01 | AY54: 2036-07-01 | AZ54: 2037-01-01 | BA54: 2037-07-01 | BB54: 2038-01-01 | BC54: 2038-07-01 | BD54: 2039-01-01 | BE54: 2039-07-01 | BF54: 2040-01-01 | BG54: 2040-07-01 | BH54: 2041-01-01 | BI54: 2041-07-01 | BJ54: 2042-01-01 | BK54: 2042-07-01 | BL54: 2043-01-01 | BM54: 2043-07-01 | BN54: 2044-01-01 | BO54: 2044-07-01 | BP54: 2045-01-01 | BQ54: 2045-07-01 | BR54: =BR$17 -> 2046-01-01 | BS54: =BS$17 -> 2046-07-01 | BT54: 2047-01-01 | BU54: 2047-07-01 | BV54: 2048-01-01 | BW54: 2048-07-01 | BX54: 2049-01-01 | BY54: 2049-07-01 | BZ54: 2050-01-01
E55: =E$21 -> Model period ending | F55: 00:00:00 | G55: date | H55: 00:00:00 | I55: 00:00:00 | J55: 2016-06-30 | K55: 2016-12-31 | L55: 2017-06-30 | M55: 2017-12-31 | N55: 2018-06-30 | O55: 2018-12-31 | P55: 2019-06-30 | Q55: 2019-12-31 | R55: 2020-06-30 | S55: 2020-12-31 | T55: 2021-06-30 | U55: 2021-12-31 | V55: 2022-06-30 | W55: 2022-12-31 | X55: 2023-06-30 | Y55: 2023-12-31 | Z55: 2024-06-30 | AA55: 2024-12-31 | AB55: 2025-06-30 | AC55: 2025-12-31 | AD55: 2026-06-30 | AE55: 2026-12-31 | AF55: 2027-06-30 | AG55: 2027-12-31 | AH55: 2028-06-30 | AI55: 2028-12-31 | AJ55: 2029-06-30 | AK55: 2029-12-31 | AL55: 2030-06-30 | AM55: 2030-12-31 | AN55: 2031-06-30 | AO55: 2031-12-31 | AP55: 2032-06-30 | AQ55: 2032-12-31 | AR55: 2033-06-30 | AS55: 2033-12-31 | AT55: 2034-06-30 | AU55: 2034-12-31 | AV55: 2035-06-30 | AW55: 2035-12-31 | AX55: 2036-06-30 | AY55: 2036-12-31 | AZ55: 2037-06-30 | BA55: 2037-12-31 | BB55: 2038-06-30 | BC55: 2038-12-31 | BD55: 2039-06-30 | BE55: 2039-12-31 | BF55: 2040-06-30 | BG55: 2040-12-31 | BH55: 2041-06-30 | BI55: 2041-12-31 | BJ55: 2042-06-30 | BK55: 2042-12-31 | BL55: 2043-06-30 | BM55: 2043-12-31 | BN55: 2044-06-30 | BO55: 2044-12-31 | BP55: 2045-06-30 | BQ55: =BQ$21 -> 2045-12-31 | BR55: =BR$21 -> 2046-06-30 | BS55: =BS$21 -> 2046-12-31 | BT55: 2047-06-30 | BU55: 2047-12-31 | BV55: 2048-06-30 | BW55: 2048-12-31 | BX55: 2049-06-30 | BY55: 2049-12-31 | BZ55: 2050-06-30
E56: Days in construction period | G56: days | H56: =SUM(J56:BZ56) -> 1095 | J56: =MAX(0, (MIN($F53, J55) - MAX($F52, J54) + 1)) -> 0 | K56: 184 | L56: 181 | M56: 184 | N56: 181 | O56: 184 | P56: 181 | Q56: 0 | R56: 0 | S56: 0 | T56: 0 | U56: 0 | V56: 0 | W56: 0 | X56: 0 | Y56: 0 | Z56: 0 | AA56: 0 | AB56: 0 | AC56: 0 | AD56: 0 | AE56: 0 | AF56: 0 | AG56: 0 | AH56: 0 | AI56: 0 | AJ56: 0 | AK56: 0 | AL56: 0 | AM56: 0 | AN56: 0 | AO56: 0 | AP56: =MAX(0, (MIN($F53, AP55) - MAX($F52, AP54) + 1)) -> 0 | AQ56: 0 | AR56: 0 | AS56: 0 | AT56: 0 | AU56: 0 | AV56: 0 | AW56: 0 | AX56: 0 | AY56: 0 | AZ56: 0 | BA56: 0 | BB56: 0 | BC56: 0 | BD56: 0 | BE56: 0 | BF56: 0 | BG56: 0 | BH56: 0 | BI56: 0 | BJ56: 0 | BK56: 0 | BL56: 0 | BM56: 0 | BN56: 0 | BO56: 0 | BP56: 0 | BQ56: 0 | BR56: 0 | BS56: =MAX(0, (MIN($F53, BS55) - MAX($F52, BS54) + 1)) -> 0 | BT56: 0 | BU56: 0 | BV56: 0 | BW56: 0 | BX56: 0 | BY56: 0 | BZ56: 0
E58: =InpC!E$20 -> Days in a month | F58: =InpC!F$20 -> 30 | G58: =InpC!G$20 -> days
E59: =E$56 -> Days in construction period | F59: 0 | G59: days | H59: 1095 | I59: 0 | J59: 0 | K59: 184 | L59: 181 | M59: 184 | N59: 181 | O59: 184 | P59: 181 | Q59: 0 | R59: 0 | S59: 0 | T59: 0 | U59: 0 | V59: 0 | W59: 0 | X59: 0 | Y59: 0 | Z59: 0 | AA59: 0 | AB59: 0 | AC59: 0 | AD59: 0 | AE59: 0 | AF59: 0 | AG59: 0 | AH59: 0 | AI59: 0 | AJ59: 0 | AK59: =AK$56 -> 0 | AL59: 0 | AM59: 0 | AN59: 0 | AO59: 0 | AP59: 0 | AQ59: 0 | AR59: 0 | AS59: 0 | AT59: 0 | AU59: 0 | AV59: 0 | AW59: 0 | AX59: 0 | AY59: 0 | AZ59: 0 | BA59: 0 | BB59: 0 | BC59: 0 | BD59: 0 | BE59: 0 | BF59: 0 | BG59: 0 | BH59: 0 | BI59: 0 | BJ59: 0 | BK59: 0 | BL59: 0 | BM59: 0 | BN59: 0 | BO59: 0 | BP59: 0 | BQ59: 0 | BR59: 0 | BS59: 0 | BT59: 0 | BU59: 0 | BV59: 0 | BW59: 0 | BX59: 0 | BY59: 0 | BZ59: 0
E60: Months in construction period | G60: months | H60: =SUM(J60:BZ60) -> 36 | J60: =ROUND(J59 / $F58, 0) -> 0 | K60: 6 | L60: 6 | M60: 6 | N60: 6 | O60: 6 | P60: 6 | Q60: 0 | R60: 0 | S60: 0 | T60: 0 | U60: 0 | V60: 0 | W60: 0 | X60: 0 | Y60: 0 | Z60: 0 | AA60: 0 | AB60: 0 | AC60: 0 | AD60: 0 | AE60: 0 | AF60: 0 | AG60: 0 | AH60: 0 | AI60: 0 | AJ60: 0 | AK60: 0 | AL60: 0 | AM60: 0 | AN60: 0 | AO60: 0 | AP60: =ROUND(AP59 / $F58, 0) -> 0 | AQ60: 0 | AR60: 0 | AS60: 0 | AT60: 0 | AU60: 0 | AV60: 0 | AW60: 0 | AX60: 0 | AY60: 0 | AZ60: 0 | BA60: 0 | BB60: 0 | BC60: 0 | BD60: 0 | BE60: 0 | BF60: 0 | BG60: 0 | BH60: 0 | BI60: 0 | BJ60: 0 | BK60: 0 | BL60: 0 | BM60: 0 | BN60: 0 | BO60: 0 | BP60: 0 | BQ60: 0 | BR60: 0 | BS60: =ROUND(BS59 / $F58, 0) -> 0 | BT60: 0 | BU60: 0 | BV60: 0 | BW60: 0 | BX60: 0 | BY60: 0 | BZ60: 0
E62: =InpC!E$18 -> Months per model period | F62: =InpC!F$18 -> 6 | G62: =InpC!G$18 -> months
E63: =E$60 -> Months in construction period | F63: 0 | G63: months | H63: 36 | I63: 0 | J63: 0 | K63: 6 | L63: 6 | M63: 6 | N63: 6 | O63: 6 | P63: 6 | Q63: 0 | R63: 0 | S63: 0 | T63: 0 | U63: 0 | V63: 0 | W63: 0 | X63: 0 | Y63: 0 | Z63: 0 | AA63: 0 | AB63: 0 | AC63: 0 | AD63: 0 | AE63: 0 | AF63: 0 | AG63: 0 | AH63: 0 | AI63: 0 | AJ63: 0 | AK63: =AK$60 -> 0 | AL63: 0 | AM63: 0 | AN63: 0 | AO63: 0 | AP63: 0 | AQ63: 0 | AR63: 0 | AS63: 0 | AT63: 0 | AU63: 0 | AV63: 0 | AW63: 0 | AX63: 0 | AY63: 0 | AZ63: 0 | BA63: 0 | BB63: 0 | BC63: 0 | BD63: 0 | BE63: 0 | BF63: 0 | BG63: 0 | BH63: 0 | BI63: 0 | BJ63: 0 | BK63: 0 | BL63: 0 | BM63: 0 | BN63: 0 | BO63: 0 | BP63: 0 | BQ63: 0 | BR63: 0 | BS63: 0 | BT63: 0 | BU63: 0 | BV63: 0 | BW63: 0 | BX63: 0 | BY63: 0 | BZ63: 0
E64: Construction period PPF | G64: factor | H64: =SUM(J64:BZ64) -> 6 | J64: =J63 / $F62 -> 0 | K64: =K63 / $F62 -> 1 | L64: 1 | M64: 1 | N64: 1 | O64: 1 | P64: 1 | Q64: 0 | R64: 0 | S64: 0 | T64: 0 | U64: 0 | V64: 0 | W64: 0 | X64: 0 | Y64: 0 | Z64: 0 | AA64: 0 | AB64: 0 | AC64: 0 | AD64: 0 | AE64: 0 | AF64: 0 | AG64: 0 | AH64: 0 | AI64: 0 | AJ64: 0 | AK64: 0 | AL64: 0 | AM64: 0 | AN64: 0 | AO64: 0 | AP64: 0 | AQ64: 0 | AR64: 0 | AS64: 0 | AT64: 0 | AU64: 0 | AV64: 0 | AW64: 0 | AX64: 0 | AY64: 0 | AZ64: 0 | BA64: 0 | BB64: 0 | BC64: 0 | BD64: 0 | BE64: 0 | BF64: 0 | BG64: 0 | BH64: 0 | BI64: 0 | BJ64: 0 | BK64: 0 | BL64: 0 | BM64: 0 | BN64: 0 | BO64: 0 | BP64: 0 | BQ64: 0 | BR64: 0 | BS64: 0 | BT64: 0 | BU64: 0 | BV64: 0 | BW64: =BW63 / $F62 -> 0 | BX64: 0 | BY64: 0 | BZ64: 0
A67: OPERATION PERIOD
E69: =E$42 -> Construction end period date | F69: =F$42 -> 2019-06-30 | G69: =G$42 -> date
E70: Operation start period date | F70: =F69 + 1 -> 2019-07-01 | G70: date
E72: =E$70 -> Operation start period date | F72: =F$70 -> 2019-07-01 | G72: =G$70 -> date
E73: =E$21 -> Model period ending | F73: 00:00:00 | G73: date | H73: 00:00:00 | I73: 00:00:00 | J73: 2016-06-30 | K73: 2016-12-31 | L73: 2017-06-30 | M73: 2017-12-31 | N73: 2018-06-30 | O73: 2018-12-31 | P73: 2019-06-30 | Q73: 2019-12-31 | R73: 2020-06-30 | S73: 2020-12-31 | T73: 2021-06-30 | U73: 2021-12-31 | V73: 2022-06-30 | W73: 2022-12-31 | X73: 2023-06-30 | Y73: 2023-12-31 | Z73: 2024-06-30 | AA73: 2024-12-31 | AB73: 2025-06-30 | AC73: 2025-12-31 | AD73: 2026-06-30 | AE73: 2026-12-31 | AF73: 2027-06-30 | AG73: 2027-12-31 | AH73: 2028-06-30 | AI73: 2028-12-31 | AJ73: 2029-06-30 | AK73: 2029-12-31 | AL73: 2030-06-30 | AM73: 2030-12-31 | AN73: 2031-06-30 | AO73: 2031-12-31 | AP73: 2032-06-30 | AQ73: 2032-12-31 | AR73: 2033-06-30 | AS73: 2033-12-31 | AT73: 2034-06-30 | AU73: 2034-12-31 | AV73: 2035-06-30 | AW73: 2035-12-31 | AX73: 2036-06-30 | AY73: 2036-12-31 | AZ73: 2037-06-30 | BA73: 2037-12-31 | BB73: 2038-06-30 | BC73: 2038-12-31 | BD73: 2039-06-30 | BE73: 2039-12-31 | BF73: 2040-06-30 | BG73: 2040-12-31 | BH73: 2041-06-30 | BI73: 2041-12-31 | BJ73: 2042-06-30 | BK73: 2042-12-31 | BL73: 2043-06-30 | BM73: 2043-12-31 | BN73: 2044-06-30 | BO73: 2044-12-31 | BP73: 2045-06-30 | BQ73: =BQ$21 -> 2045-12-31 | BR73: =BR$21 -> 2046-06-30 | BS73: =BS$21 -> 2046-12-31 | BT73: 2047-06-30 | BU73: 2047-12-31 | BV73: 2048-06-30 | BW73: 2048-12-31 | BX73: 2049-06-30 | BY73: 2049-12-31 | BZ73: 2050-06-30
E74: Operation start period flag | G74: flag | H74: =SUM(J74:BZ74) -> 1 | J74: =IF(AND($F72 <= J73, $F72 > I73), 1, 0) -> 0 | K74: =IF(AND($F72 <= K73, $F72 > J73), 1, 0) -> 0 | L74: 0 | M74: 0 | N74: 0 | O74: 0 | P74: 0 | Q74: 1 | R74: 0 | S74: 0 | T74: 0 | U74: 0 | V74: 0 | W74: 0 | X74: 0 | Y74: 0 | Z74: 0 | AA74: 0 | AB74: 0 | AC74: 0 | AD74: 0 | AE74: 0 | AF74: 0 | AG74: 0 | AH74: 0 | AI74: 0 | AJ74: 0 | AK74: 0 | AL74: 0 | AM74: 0 | AN74: 0 | AO74: 0 | AP74: 0 | AQ74: 0 | AR74: 0 | AS74: 0 | AT74: 0 | AU74: 0 | AV74: 0 | AW74: 0 | AX74: 0 | AY74: 0 | AZ74: 0 | BA74: 0 | BB74: 0 | BC74: 0 | BD74: 0 | BE74: 0 | BF74: 0 | BG74: 0 | BH74: 0 | BI74: 0 | BJ74: =IF(AND($F72 <= BJ73, $F72 > BI73), 1, 0) -> 0 | BK74: 0 | BL74: 0 | BM74: 0 | BN74: 0 | BO74: 0 | BP74: 0 | BQ74: 0 | BR74: 0 | BS74: =IF(AND($F72 <= BS73, $F72 > BR73), 1, 0) -> 0 | BT74: 0 | BU74: 0 | BV74: 0 | BW74: 0 | BX74: 0 | BY74: 0 | BZ74: 0
E76: =E$70 -> Operation start period date | F76: =F$70 -> 2019-07-01 | G76: =G$70 -> date
E77: =InpC!E$14 -> Operation duration | F77: =InpC!F$14 -> 30 | G77: =InpC!G$14 -> years
E78: Operation end period date | F78: =DATE(YEAR(F76) + F77, MONTH(F76), DAY(F76) - 1) -> 2049-06-30 | G78: date
E80: =E$78 -> Operation end period date | F80: =F$78 -> 2049-06-30 | G80: =G$78 -> date
E81: =E$21 -> Model period ending | F81: 00:00:00 | G81: date | H81: 00:00:00 | I81: 00:00:00 | J81: 2016-06-30 | K81: 2016-12-31 | L81: 2017-06-30 | M81: 2017-12-31 | N81: 2018-06-30 | O81: 2018-12-31 | P81: 2019-06-30 | Q81: 2019-12-31 | R81: 2020-06-30 | S81: 2020-12-31 | T81: 2021-06-30 | U81: 2021-12-31 | V81: 2022-06-30 | W81: 2022-12-31 | X81: 2023-06-30 | Y81: 2023-12-31 | Z81: 2024-06-30 | AA81: 2024-12-31 | AB81: 2025-06-30 | AC81: 2025-12-31 | AD81: 2026-06-30 | AE81: 2026-12-31 | AF81: 2027-06-30 | AG81: 2027-12-31 | AH81: 2028-06-30 | AI81: 2028-12-31 | AJ81: 2029-06-30 | AK81: 2029-12-31 | AL81: 2030-06-30 | AM81: 2030-12-31 | AN81: 2031-06-30 | AO81: 2031-12-31 | AP81: 2032-06-30 | AQ81: 2032-12-31 | AR81: 2033-06-30 | AS81: 2033-12-31 | AT81: 2034-06-30 | AU81: 2034-12-31 | AV81: 2035-06-30 | AW81: 2035-12-31 | AX81: 2036-06-30 | AY81: 2036-12-31 | AZ81: 2037-06-30 | BA81: 2037-12-31 | BB81: 2038-06-30 | BC81: 2038-12-31 | BD81: 2039-06-30 | BE81: 2039-12-31 | BF81: 2040-06-30 | BG81: 2040-12-31 | BH81: 2041-06-30 | BI81: 2041-12-31 | BJ81: 2042-06-30 | BK81: 2042-12-31 | BL81: 2043-06-30 | BM81: 2043-12-31 | BN81: 2044-06-30 | BO81: 2044-12-31 | BP81: 2045-06-30 | BQ81: =BQ$21 -> 2045-12-31 | BR81: =BR$21 -> 2046-06-30 | BS81: =BS$21 -> 2046-12-31 | BT81: 2047-06-30 | BU81: 2047-12-31 | BV81: 2048-06-30 | BW81: 2048-12-31 | BX81: 2049-06-30 | BY81: 2049-12-31 | BZ81: 2050-06-30
E82: Last operations period flag | G82: flag | H82: =SUM(J82:BZ82) -> 1 | J82: =IF(AND($F80 <= J81, $F80 > I81), 1, 0) -> 0 | K82: =IF(AND($F80 <= K81, $F80 > J81), 1, 0) -> 0 | L82: 0 | M82: 0 | N82: 0 | O82: 0 | P82: 0 | Q82: 0 | R82: 0 | S82: 0 | T82: 0 | U82: 0 | V82: 0 | W82: 0 | X82: 0 | Y82: 0 | Z82: 0 | AA82: 0 | AB82: 0 | AC82: 0 | AD82: 0 | AE82: 0 | AF82: 0 | AG82: 0 | AH82: 0 | AI82: 0 | AJ82: 0 | AK82: 0 | AL82: 0 | AM82: 0 | AN82: 0 | AO82: 0 | AP82: 0 | AQ82: 0 | AR82: 0 | AS82: 0 | AT82: 0 | AU82: 0 | AV82: 0 | AW82: 0 | AX82: 0 | AY82: 0 | AZ82: 0 | BA82: 0 | BB82: 0 | BC82: 0 | BD82: 0 | BE82: 0 | BF82: 0 | BG82: 0 | BH82: 0 | BI82: 0 | BJ82: =IF(AND($F80 <= BJ81, $F80 > BI81), 1, 0) -> 0 | BK82: 0 | BL82: 0 | BM82: 0 | BN82: 0 | BO82: 0 | BP82: 0 | BQ82: 0 | BR82: 0 | BS82: =IF(AND($F80 <= BS81, $F80 > BR81), 1, 0) -> 0 | BT82: 0 | BU82: 0 | BV82: 0 | BW82: 0 | BX82: 1 | BY82: 0 | BZ82: 0
E84: =E$74 -> Operation start period flag | F84: 0 | G84: flag | H84: 1 | I84: 0 | J84: 0 | K84: 0 | L84: 0 | M84: 0 | N84: 0 | O84: 0 | P84: 0 | Q84: 1 | R84: 0 | S84: 0 | T84: 0 | U84: 0 | V84: 0 | W84: 0 | X84: 0 | Y84: 0 | Z84: 0 | AA84: 0 | AB84: 0 | AC84: 0 | AD84: 0 | AE84: 0 | AF84: 0 | AG84: 0 | AH84: 0 | AI84: 0 | AJ84: 0 | AK84: 0 | AL84: 0 | AM84: 0 | AN84: 0 | AO84: 0 | AP84: 0 | AQ84: 0 | AR84: 0 | AS84: 0 | AT84: 0 | AU84: 0 | AV84: 0 | AW84: 0 | AX84: 0 | AY84: 0 | AZ84: 0 | BA84: 0 | BB84: 0 | BC84: 0 | BD84: 0 | BE84: 0 | BF84: 0 | BG84: 0 | BH84: 0 | BI84: 0 | BJ84: 0 | BK84: 0 | BL84: 0 | BM84: 0 | BN84: 0 | BO84: 0 | BP84: 0 | BQ84: =BQ$74 -> 0 | BR84: =BR$74 -> 0 | BS84: =BS$74 -> 0 | BT84: 0 | BU84: 0 | BV84: 0 | BW84: 0 | BX84: 0 | BY84: 0 | BZ84: 0
E85: =E$82 -> Last operations period flag | F85: 0 | G85: flag | H85: 1 | I85: 0 | J85: 0 | K85: 0 | L85: 0 | M85: 0 | N85: 0 | O85: 0 | P85: 0 | Q85: 0 | R85: 0 | S85: 0 | T85: 0 | U85: 0 | V85: 0 | W85: 0 | X85: 0 | Y85: 0 | Z85: 0 | AA85: 0 | AB85: 0 | AC85: 0 | AD85: 0 | AE85: 0 | AF85: 0 | AG85: 0 | AH85: 0 | AI85: 0 | AJ85: 0 | AK85: 0 | AL85: 0 | AM85: 0 | AN85: 0 | AO85: 0 | AP85: 0 | AQ85: 0 | AR85: 0 | AS85: 0 | AT85: 0 | AU85: 0 | AV85: 0 | AW85: 0 | AX85: 0 | AY85: 0 | AZ85: 0 | BA85: 0 | BB85: 0 | BC85: 0 | BD85: 0 | BE85: 0 | BF85: 0 | BG85: 0 | BH85: 0 | BI85: 0 | BJ85: 0 | BK85: 0 | BL85: 0 | BM85: 0 | BN85: 0 | BO85: 0 | BP85: 0 | BQ85: =BQ$82 -> 0 | BR85: =BR$82 -> 0 | BS85: =BS$82 -> 0 | BT85: 0 | BU85: 0 | BV85: 0 | BW85: 0 | BX85: 1 | BY85: 0 | BZ85: 0
E86: Operations period flag | G86: flag | H86: =SUM(J86:BZ86) -> 60 | J86: =I86 + J84 - I85 -> 0 | K86: 0 | L86: 0 | M86: 0 | N86: 0 | O86: 0 | P86: 0 | Q86: 1 | R86: 1 | S86: 1 | T86: 1 | U86: 1 | V86: 1 | W86: 1 | X86: 1 | Y86: 1 | Z86: 1 | AA86: 1 | AB86: 1 | AC86: 1 | AD86: 1 | AE86: 1 | AF86: 1 | AG86: 1 | AH86: 1 | AI86: 1 | AJ86: 1 | AK86: 1 | AL86: 1 | AM86: 1 | AN86: 1 | AO86: 1 | AP86: =AO86 + AP84 - AO85 -> 1 | AQ86: 1 | AR86: 1 | AS86: 1 | AT86: 1 | AU86: 1 | AV86: 1 | AW86: 1 | AX86: 1 | AY86: 1 | AZ86: 1 | BA86: 1 | BB86: 1 | BC86: 1 | BD86: 1 | BE86: 1 | BF86: 1 | BG86: 1 | BH86: 1 | BI86: 1 | BJ86: =BI86 + BJ84 - BI85 -> 1 | BK86: 1 | BL86: 1 | BM86: 1 | BN86: 1 | BO86: 1 | BP86: 1 | BQ86: 1 | BR86: 1 | BS86: =BR86 + BS84 - BR85 -> 1 | BT86: 1 | BU86: 1 | BV86: 1 | BW86: 1 | BX86: 1 | BY86: 0 | BZ86: 0
E88: =E$70 -> Operation start period date | F88: =F$70 -> 2019-07-01 | G88: =G$70 -> date
E89: =E$78 -> Operation end period date | F89: =F$78 -> 2049-06-30 | G89: =G$78 -> date
E90: =E$17 -> Model period beginning | F90: =F$17 -> 00:00:00 | G90: date | H90: 00:00:00 | I90: 00:00:00 | J90: 2016-01-01 | K90: 2016-07-01 | L90: 2017-01-01 | M90: 2017-07-01 | N90: 2018-01-01 | O90: 2018-07-01 | P90: 2019-01-01 | Q90: 2019-07-01 | R90: 2020-01-01 | S90: 2020-07-01 | T90: 2021-01-01 | U90: 2021-07-01 | V90: 2022-01-01 | W90: 2022-07-01 | X90: 2023-01-01 | Y90: 2023-07-01 | Z90: 2024-01-01 | AA90: 2024-07-01 | AB90: 2025-01-01 | AC90: 2025-07-01 | AD90: 2026-01-01 | AE90: 2026-07-01 | AF90: 2027-01-01 | AG90: 2027-07-01 | AH90: 2028-01-01 | AI90: 2028-07-01 | AJ90: 2029-01-01 | AK90: 2029-07-01 | AL90: 2030-01-01 | AM90: 2030-07-01 | AN90: 2031-01-01 | AO90: 2031-07-01 | AP90: 2032-01-01 | AQ90: 2032-07-01 | AR90: 2033-01-01 | AS90: 2033-07-01 | AT90: 2034-01-01 | AU90: 2034-07-01 | AV90: 2035-01-01 | AW90: 2035-07-01 | AX90: 2036-01-01 | AY90: 2036-07-01 | AZ90: 2037-01-01 | BA90: 2037-07-01 | BB90: 2038-01-01 | BC90: 2038-07-01 | BD90: 2039-01-01 | BE90: 2039-07-01 | BF90: 2040-01-01 | BG90: 2040-07-01 | BH90: 2041-01-01 | BI90: 2041-07-01 | BJ90: 2042-01-01 | BK90: 2042-07-01 | BL90: 2043-01-01 | BM90: 2043-07-01 | BN90: 2044-01-01 | BO90: 2044-07-01 | BP90: 2045-01-01 | BQ90: 2045-07-01 | BR90: =BR$17 -> 2046-01-01 | BS90: =BS$17 -> 2046-07-01 | BT90: 2047-01-01 | BU90: 2047-07-01 | BV90: 2048-01-01 | BW90: 2048-07-01 | BX90: 2049-01-01 | BY90: 2049-07-01 | BZ90: 2050-01-01
E91: =E$21 -> Model period ending | F91: 00:00:00 | G91: date | H91: 00:00:00 | I91: 00:00:00 | J91: 2016-06-30 | K91: 2016-12-31 | L91: 2017-06-30 | M91: 2017-12-31 | N91: 2018-06-30 | O91: 2018-12-31 | P91: 2019-06-30 | Q91: 2019-12-31 | R91: 2020-06-30 | S91: 2020-12-31 | T91: 2021-06-30 | U91: 2021-12-31 | V91: 2022-06-30 | W91: 2022-12-31 | X91: 2023-06-30 | Y91: 2023-12-31 | Z91: 2024-06-30 | AA91: 2024-12-31 | AB91: 2025-06-30 | AC91: 2025-12-31 | AD91: 2026-06-30 | AE91: 2026-12-31 | AF91: 2027-06-30 | AG91: 2027-12-31 | AH91: 2028-06-30 | AI91: 2028-12-31 | AJ91: 2029-06-30 | AK91: 2029-12-31 | AL91: 2030-06-30 | AM91: 2030-12-31 | AN91: 2031-06-30 | AO91: 2031-12-31 | AP91: 2032-06-30 | AQ91: 2032-12-31 | AR91: 2033-06-30 | AS91: 2033-12-31 | AT91: 2034-06-30 | AU91: 2034-12-31 | AV91: 2035-06-30 | AW91: 2035-12-31 | AX91: 2036-06-30 | AY91: 2036-12-31 | AZ91: 2037-06-30 | BA91: 2037-12-31 | BB91: 2038-06-30 | BC91: 2038-12-31 | BD91: 2039-06-30 | BE91: 2039-12-31 | BF91: 2040-06-30 | BG91: 2040-12-31 | BH91: 2041-06-30 | BI91: 2041-12-31 | BJ91: 2042-06-30 | BK91: 2042-12-31 | BL91: 2043-06-30 | BM91: 2043-12-31 | BN91: 2044-06-30 | BO91: 2044-12-31 | BP91: 2045-06-30 | BQ91: =BQ$21 -> 2045-12-31 | BR91: =BR$21 -> 2046-06-30 | BS91: =BS$21 -> 2046-12-31 | BT91: 2047-06-30 | BU91: 2047-12-31 | BV91: 2048-06-30 | BW91: 2048-12-31 | BX91: 2049-06-30 | BY91: 2049-12-31 | BZ91: 2050-06-30
E92: Days in operation period | G92: days | H92: =SUM(J92:BZ92) -> 10958 | J92: =MAX(0, (MIN($F89, J91) - MAX($F88, J90) + 1)) -> 0 | K92: 0 | L92: 0 | M92: 0 | N92: 0 | O92: 0 | P92: 0 | Q92: 184 | R92: 182 | S92: 184 | T92: 181 | U92: 184 | V92: 181 | W92: 184 | X92: 181 | Y92: 184 | Z92: 182 | AA92: 184 | AB92: 181 | AC92: 184 | AD92: 181 | AE92: 184 | AF92: 181 | AG92: 184 | AH92: 182 | AI92: 184 | AJ92: 181 | AK92: 184 | AL92: 181 | AM92: 184 | AN92: 181 | AO92: 184 | AP92: =MAX(0, (MIN($F89, AP91) - MAX($F88, AP90) + 1)) -> 182 | AQ92: 184 | AR92: 181 | AS92: 184 | AT92: 181 | AU92: 184 | AV92: 181 | AW92: 184 | AX92: 182 | AY92: 184 | AZ92: 181 | BA92: 184 | BB92: 181 | BC92: 184 | BD92: 181 | BE92: 184 | BF92: 182 | BG92: 184 | BH92: 181 | BI92: 184 | BJ92: =MAX(0, (MIN($F89, BJ91) - MAX($F88, BJ90) + 1)) -> 181 | BK92: 184 | BL92: 181 | BM92: 184 | BN92: 182 | BO92: 184 | BP92: 181 | BQ92: 184 | BR92: 181 | BS92: =MAX(0, (MIN($F89, BS91) - MAX($F88, BS90) + 1)) -> 184 | BT92: 181 | BU92: 184 | BV92: 182 | BW92: 184 | BX92: 181 | BY92: 0 | BZ92: 0
E94: =InpC!E$20 -> Days in a month | F94: =InpC!F$20 -> 30 | G94: =InpC!G$20 -> days
E95: =E$92 -> Days in operation period | F95: =F$92 -> 0 | G95: days | H95: 10958 | I95: 0 | J95: 0 | K95: 0 | L95: 0 | M95: 0 | N95: 0 | O95: 0 | P95: 0 | Q95: 184 | R95: 182 | S95: 184 | T95: 181 | U95: 184 | V95: 181 | W95: 184 | X95: 181 | Y95: 184 | Z95: 182 | AA95: 184 | AB95: 181 | AC95: 184 | AD95: 181 | AE95: 184 | AF95: 181 | AG95: 184 | AH95: 182 | AI95: 184 | AJ95: 181 | AK95: 184 | AL95: 181 | AM95: 184 | AN95: 181 | AO95: 184 | AP95: 182 | AQ95: 184 | AR95: 181 | AS95: 184 | AT95: 181 | AU95: 184 | AV95: 181 | AW95: 184 | AX95: 182 | AY95: 184 | AZ95: 181 | BA95: 184 | BB95: 181 | BC95: 184 | BD95: 181 | BE95: 184 | BF95: 182 | BG95: 184 | BH95: 181 | BI95: 184 | BJ95: 181 | BK95: 184 | BL95: 181 | BM95: 184 | BN95: 182 | BO95: 184 | BP95: 181 | BQ95: 184 | BR95: =BR$92 -> 181 | BS95: =BS$92 -> 184 | BT95: 181 | BU95: 184 | BV95: 182 | BW95: 184 | BX95: 181 | BY95: 0 | BZ95: 0
E96: Months in operation period | G96: months | H96: =SUM(J96:BZ96) -> 360 | J96: =ROUND(J95 / $F94, 0) -> 0 | K96: 0 | L96: 0 | M96: 0 | N96: 0 | O96: 0 | P96: 0 | Q96: 6 | R96: 6 | S96: 6 | T96: 6 | U96: 6 | V96: 6 | W96: 6 | X96: 6 | Y96: 6 | Z96: 6 | AA96: 6 | AB96: 6 | AC96: 6 | AD96: 6 | AE96: 6 | AF96: 6 | AG96: 6 | AH96: 6 | AI96: 6 | AJ96: 6 | AK96: 6 | AL96: 6 | AM96: 6 | AN96: 6 | AO96: 6 | AP96: =ROUND(AP95 / $F94, 0) -> 6 | AQ96: 6 | AR96: 6 | AS96: 6 | AT96: 6 | AU96: 6 | AV96: 6 | AW96: 6 | AX96: 6 | AY96: 6 | AZ96: 6 | BA96: 6 | BB96: 6 | BC96: 6 | BD96: 6 | BE96: 6 | BF96: 6 | BG96: 6 | BH96: 6 | BI96: 6 | BJ96: 6 | BK96: 6 | BL96: 6 | BM96: 6 | BN96: 6 | BO96: 6 | BP96: 6 | BQ96: 6 | BR96: 6 | BS96: =ROUND(BS95 / $F94, 0) -> 6 | BT96: 6 | BU96: 6 | BV96: 6 | BW96: 6 | BX96: 6 | BY96: 0 | BZ96: 0
E98: =InpC!E$18 -> Months per model period | F98: =InpC!F$18 -> 6 | G98: =InpC!G$18 -> months
E99: =E$96 -> Months in operation period | F99: =F$96 -> 0 | G99: months | H99: 360 | I99: 0 | J99: 0 | K99: 0 | L99: 0 | M99: 0 | N99: 0 | O99: 0 | P99: 0 | Q99: 6 | R99: 6 | S99: 6 | T99: 6 | U99: 6 | V99: 6 | W99: 6 | X99: 6 | Y99: 6 | Z99: 6 | AA99: 6 | AB99: 6 | AC99: 6 | AD99: 6 | AE99: 6 | AF99: 6 | AG99: 6 | AH99: 6 | AI99: 6 | AJ99: 6 | AK99: 6 | AL99: 6 | AM99: 6 | AN99: 6 | AO99: 6 | AP99: 6 | AQ99: 6 | AR99: 6 | AS99: 6 | AT99: 6 | AU99: 6 | AV99: 6 | AW99: 6 | AX99: 6 | AY99: 6 | AZ99: 6 | BA99: 6 | BB99: 6 | BC99: 6 | BD99: 6 | BE99: 6 | BF99: 6 | BG99: 6 | BH99: 6 | BI99: 6 | BJ99: 6 | BK99: 6 | BL99: 6 | BM99: 6 | BN99: 6 | BO99: 6 | BP99: 6 | BQ99: 6 | BR99: =BR$96 -> 6 | BS99: =BS$96 -> 6 | BT99: 6 | BU99: 6 | BV99: 6 | BW99: 6 | BX99: 6 | BY99: 0 | BZ99: 0
E100: Operations period PPF | G100: factor | H100: =SUM(J100:BZ100) -> 60 | J100: =J99 / $F98 -> 0 | K100: =K99 / $F98 -> 0 | L100: 0 | M100: 0 | N100: 0 | O100: 0 | P100: 0 | Q100: 1 | R100: 1 | S100: 1 | T100: 1 | U100: 1 | V100: 1 | W100: 1 | X100: 1 | Y100: 1 | Z100: 1 | AA100: 1 | AB100: 1 | AC100: 1 | AD100: 1 | AE100: 1 | AF100: 1 | AG100: 1 | AH100: 1 | AI100: 1 | AJ100: 1 | AK100: 1 | AL100: 1 | AM100: 1 | AN100: 1 | AO100: 1 | AP100: 1 | AQ100: 1 | AR100: 1 | AS100: 1 | AT100: 1 | AU100: 1 | AV100: 1 | AW100: 1 | AX100: 1 | AY100: 1 | AZ100: 1 | BA100: 1 | BB100: 1 | BC100: 1 | BD100: 1 | BE100: 1 | BF100: 1 | BG100: 1 | BH100: 1 | BI100: 1 | BJ100: 1 | BK100: 1 | BL100: 1 | BM100: 1 | BN100: 1 | BO100: 1 | BP100: 1 | BQ100: 1 | BR100: 1 | BS100: 1 | BT100: 1 | BU100: 1 | BV100: 1 | BW100: =BW99 / $F98 -> 1 | BX100: 1 | BY100: 0 | BZ100: 0
A103: TIMELINE LABEL
E105: =E$28 -> Financial close flag | F105: 0 | G105: flag | H105: 1 | I105: 0 | J105: 1 | K105: 0 | L105: 0 | M105: 0 | N105: 0 | O105: 0 | P105: 0 | Q105: 0 | R105: 0 | S105: 0 | T105: 0 | U105: 0 | V105: 0 | W105: 0 | X105: 0 | Y105: 0 | Z105: 0 | AA105: 0 | AB105: 0 | AC105: 0 | AD105: 0 | AE105: 0 | AF105: 0 | AG105: 0 | AH105: 0 | AI105: 0 | AJ105: 0 | AK105: 0 | AL105: 0 | AM105: 0 | AN105: 0 | AO105: 0 | AP105: 0 | AQ105: 0 | AR105: 0 | AS105: 0 | AT105: 0 | AU105: 0 | AV105: 0 | AW105: 0 | AX105: 0 | AY105: 0 | AZ105: 0 | BA105: 0 | BB105: 0 | BC105: 0 | BD105: 0 | BE105: 0 | BF105: 0 | BG105: 0 | BH105: 0 | BI105: 0 | BJ105: 0 | BK105: 0 | BL105: 0 | BM105: 0 | BN105: 0 | BO105: 0 | BP105: 0 | BQ105: =BQ$28 -> 0 | BR105: =BR$28 -> 0 | BS105: =BS$28 -> 0 | BT105: 0 | BU105: 0 | BV105: 0 | BW105: 0 | BX105: 0 | BY105: 0 | BZ105: 0
E106: =E$50 -> Construction period flag | F106: 0 | G106: flag | H106: 6 | I106: 0 | J106: 0 | K106: 1 | L106: 1 | M106: 1 | N106: 1 | O106: 1 | P106: 1 | Q106: 0 | R106: 0 | S106: 0 | T106: 0 | U106: 0 | V106: 0 | W106: 0 | X106: 0 | Y106: 0 | Z106: 0 | AA106: 0 | AB106: 0 | AC106: 0 | AD106: 0 | AE106: 0 | AF106: 0 | AG106: 0 | AH106: 0 | AI106: 0 | AJ106: 0 | AK106: =AK$50 -> 0 | AL106: 0 | AM106: 0 | AN106: 0 | AO106: 0 | AP106: 0 | AQ106: 0 | AR106: 0 | AS106: 0 | AT106: 0 | AU106: 0 | AV106: 0 | AW106: 0 | AX106: 0 | AY106: 0 | AZ106: 0 | BA106: 0 | BB106: 0 | BC106: 0 | BD106: 0 | BE106: 0 | BF106: 0 | BG106: 0 | BH106: 0 | BI106: 0 | BJ106: 0 | BK106: 0 | BL106: 0 | BM106: 0 | BN106: 0 | BO106: 0 | BP106: 0 | BQ106: =BQ$50 -> 0 | BR106: 0 | BS106: 0 | BT106: 0 | BU106: 0 | BV106: 0 | BW106: 0 | BX106: 0 | BY106: 0 | BZ106: 0
E107: =E$86 -> Operations period flag | F107: 0 | G107: flag | H107: 60 | I107: 0 | J107: 0 | K107: 0 | L107: 0 | M107: 0 | N107: 0 | O107: 0 | P107: 0 | Q107: 1 | R107: 1 | S107: 1 | T107: 1 | U107: 1 | V107: 1 | W107: 1 | X107: 1 | Y107: 1 | Z107: 1 | AA107: 1 | AB107: 1 | AC107: 1 | AD107: 1 | AE107: 1 | AF107: 1 | AG107: 1 | AH107: 1 | AI107: 1 | AJ107: 1 | AK107: 1 | AL107: 1 | AM107: 1 | AN107: 1 | AO107: 1 | AP107: 1 | AQ107: 1 | AR107: 1 | AS107: 1 | AT107: 1 | AU107: 1 | AV107: 1 | AW107: 1 | AX107: 1 | AY107: 1 | AZ107: 1 | BA107: 1 | BB107: 1 | BC107: 1 | BD107: 1 | BE107: 1 | BF107: 1 | BG107: 1 | BH107: 1 | BI107: 1 | BJ107: 1 | BK107: 1 | BL107: 1 | BM107: 1 | BN107: 1 | BO107: 1 | BP107: 1 | BQ107: =BQ$86 -> 1 | BR107: =BR$86 -> 1 | BS107: =BS$86 -> 1 | BT107: 1 | BU107: 1 | BV107: 1 | BW107: 1 | BX107: 1 | BY107: 0 | BZ107: 0
E108: Actual vs forecast | G108: flag | J108: =IF(J105 = 1, "Fin Close", IF(AND(J106 = 1, J107 = 1), "Const / Ops", IF(J106 = 1, "Construction", IF(J107 =1, "Operations", "Post-Frcst")))) -> Fin Close | K108: =IF(K105 = 1, "Fin Close", IF(AND(K106 = 1, K107 = 1), "Const / Ops", IF(K106 = 1, "Construction", IF(K107 =1, "Operations", "Post-Frcst")))) -> Construction | L108: Construction | M108: Construction | N108: Construction | O108: Construction | P108: Construction | Q108: Operations | R108: Operations | S108: Operations | T108: Operations | U108: Operations | V108: Operations | W108: Operations | X108: Operations | Y108: Operations | Z108: Operations | AA108: Operations | AB108: Operations | AC108: Operations | AD108: Operations | AE108: Operations | AF108: Operations | AG108: Operations | AH108: Operations | AI108: Operations | AJ108: Operations | AK108: Operations | AL108: Operations | AM108: Operations | AN108: Operations | AO108: Operations | AP108: Operations | AQ108: Operations | AR108: Operations | AS108: Operations | AT108: Operations | AU108: Operations | AV108: Operations | AW108: Operations | AX108: Operations | AY108: Operations | AZ108: Operations | BA108: Operations | BB108: Operations | BC108: Operations | BD108: Operations | BE108: Operations | BF108: Operations | BG108: Operations | BH108: Operations | BI108: Operations | BJ108: =IF(BJ105 = 1, "Fin Close", IF(AND(BJ106 = 1, BJ107 = 1), "Const / Ops", IF(BJ106 = 1, "Construction", IF(BJ107 =1, "Operations", "Post-Frcst")))) -> Operations | BK108: Operations | BL108: Operations | BM108: Operations | BN108: Operations | BO108: Operations | BP108: Operations | BQ108: Operations | BR108: Operations | BS108: =IF(BS105 = 1, "Fin Close", IF(AND(BS106 = 1, BS107 = 1), "Const / Ops", IF(BS106 = 1, "Construction", IF(BS107 =1, "Operations", "Post-Frcst")))) -> Operations | BT108: Operations | BU108: Operations | BV108: Operations | BW108: Operations | BX108: Operations | BY108: Post-Frcst | BZ108: Post-Frcst
A111: FINANCIAL YEAR ENDING
E113: =InpC!E$8 -> Model column start date | F113: =InpC!F$8 -> 2016-01-01 | G113: =InpC!G$8 -> date
E114: =InpC!E$16 -> Financial year end month number | F114: =InpC!F$16 -> 12 | G114: =InpC!G$16 -> month #
E115: First modelling column financial year number | F115: =IF(MONTH(F113) <= F114, YEAR(F113), YEAR(F113) + 1) -> 2016 | G115: year #
E117: =E$115 -> First modelling column financial year number | F117: =F$115 -> 2016 | G117: year #
E118: =InpC!E$16 -> Financial year end month number | F118: =InpC!F$16 -> 12 | G118: =InpC!G$16 -> month #
E119: =E$21 -> Model period ending | F119: 00:00:00 | G119: date | H119: 00:00:00 | I119: 00:00:00 | J119: 2016-06-30 | K119: 2016-12-31 | L119: 2017-06-30 | M119: 2017-12-31 | N119: 2018-06-30 | O119: 2018-12-31 | P119: 2019-06-30 | Q119: 2019-12-31 | R119: 2020-06-30 | S119: 2020-12-31 | T119: 2021-06-30 | U119: 2021-12-31 | V119: 2022-06-30 | W119: 2022-12-31 | X119: 2023-06-30 | Y119: 2023-12-31 | Z119: 2024-06-30 | AA119: 2024-12-31 | AB119: 2025-06-30 | AC119: 2025-12-31 | AD119: 2026-06-30 | AE119: 2026-12-31 | AF119: 2027-06-30 | AG119: 2027-12-31 | AH119: 2028-06-30 | AI119: 2028-12-31 | AJ119: 2029-06-30 | AK119: 2029-12-31 | AL119: 2030-06-30 | AM119: 2030-12-31 | AN119: 2031-06-30 | AO119: 2031-12-31 | AP119: 2032-06-30 | AQ119: 2032-12-31 | AR119: 2033-06-30 | AS119: 2033-12-31 | AT119: 2034-06-30 | AU119: 2034-12-31 | AV119: 2035-06-30 | AW119: 2035-12-31 | AX119: 2036-06-30 | AY119: 2036-12-31 | AZ119: 2037-06-30 | BA119: 2037-12-31 | BB119: 2038-06-30 | BC119: 2038-12-31 | BD119: 2039-06-30 | BE119: 2039-12-31 | BF119: 2040-06-30 | BG119: 2040-12-31 | BH119: 2041-06-30 | BI119: 2041-12-31 | BJ119: 2042-06-30 | BK119: 2042-12-31 | BL119: 2043-06-30 | BM119: 2043-12-31 | BN119: 2044-06-30 | BO119: 2044-12-31 | BP119: 2045-06-30 | BQ119: =BQ$21 -> 2045-12-31 | BR119: =BR$21 -> 2046-06-30 | BS119: =BS$21 -> 2046-12-31 | BT119: 2047-06-30 | BU119: 2047-12-31 | BV119: 2048-06-30 | BW119: 2048-12-31 | BX119: 2049-06-30 | BY119: 2049-12-31 | BZ119: 2050-06-30
E120: =E$12 -> 1st model column flag | F120: 0 | G120: flag | H120: 1 | I120: 0 | J120: 1 | K120: 0 | L120: 0 | M120: 0 | N120: 0 | O120: 0 | P120: 0 | Q120: 0 | R120: 0 | S120: 0 | T120: 0 | U120: 0 | V120: 0 | W120: 0 | X120: 0 | Y120: 0 | Z120: 0 | AA120: 0 | AB120: 0 | AC120: 0 | AD120: 0 | AE120: 0 | AF120: 0 | AG120: 0 | AH120: 0 | AI120: 0 | AJ120: 0 | AK120: =AK$12 -> 0 | AL120: 0 | AM120: 0 | AN120: 0 | AO120: 0 | AP120: 0 | AQ120: 0 | AR120: 0 | AS120: 0 | AT120: 0 | AU120: 0 | AV120: 0 | AW120: 0 | AX120: 0 | AY120: 0 | AZ120: 0 | BA120: 0 | BB120: 0 | BC120: 0 | BD120: 0 | BE120: 0 | BF120: 0 | BG120: 0 | BH120: 0 | BI120: 0 | BJ120: 0 | BK120: 0 | BL120: 0 | BM120: 0 | BN120: 0 | BO120: 0 | BP120: 0 | BQ120: =BQ$12 -> 0 | BR120: 0 | BS120: 0 | BT120: 0 | BU120: 0 | BV120: 0 | BW120: 0 | BX120: 0 | BY120: 0 | BZ120: 0
E121: Financial year ending | G121: year # | J121: =IF(J120 = 1, $F117, IF(J119 > (DATE(I121, $F118 + 1, 1) - 1), I121 + 1, I121)) -> 2016 | K121: 2016 | L121: 2017 | M121: 2017 | N121: 2018 | O121: 2018 | P121: 2019 | Q121: 2019 | R121: 2020 | S121: 2020 | T121: 2021 | U121: 2021 | V121: 2022 | W121: 2022 | X121: 2023 | Y121: 2023 | Z121: 2024 | AA121: 2024 | AB121: 2025 | AC121: 2025 | AD121: 2026 | AE121: 2026 | AF121: 2027 | AG121: 2027 | AH121: 2028 | AI121: 2028 | AJ121: 2029 | AK121: 2029 | AL121: 2030 | AM121: 2030 | AN121: 2031 | AO121: 2031 | AP121: =IF(AP120 = 1, $F117, IF(AP119 > (DATE(AO121, $F118 + 1, 1) - 1), AO121 + 1, AO121)) -> 2032 | AQ121: 2032 | AR121: 2033 | AS121: 2033 | AT121: 2034 | AU121: 2034 | AV121: 2035 | AW121: 2035 | AX121: 2036 | AY121: 2036 | AZ121: 2037 | BA121: 2037 | BB121: 2038 | BC121: 2038 | BD121: 2039 | BE121: 2039 | BF121: 2040 | BG121: 2040 | BH121: 2041 | BI121: 2041 | BJ121: =IF(BJ120 = 1, $F117, IF(BJ119 > (DATE(BI121, $F118 + 1, 1) - 1), BI121 + 1, BI121)) -> 2042 | BK121: 2042 | BL121: 2043 | BM121: 2043 | BN121: 2044 | BO121: 2044 | BP121: 2045 | BQ121: 2045 | BR121: 2046 | BS121: =IF(BS120 = 1, $F117, IF(BS119 > (DATE(BR121, $F118 + 1, 1) - 1), BR121 + 1, BR121)) -> 2046 | BT121: 2047 | BU121: 2047 | BV121: 2048 | BW121: 2048 | BX121: 2049 | BY121: 2049 | BZ121: 2050
A124: ESCALATION PERIOD FLAGS
B126: CPI escalation period flag
E127: =InpC!E$29 -> CPI 1st step up escalation period end date | F127: =InpC!F$29 -> 2017-06-30 | G127: =InpC!G$29 -> date
E128: =E$21 -> Model period ending | F128: 00:00:00 | G128: date | H128: 00:00:00 | I128: 00:00:00 | J128: 2016-06-30 | K128: 2016-12-31 | L128: 2017-06-30 | M128: 2017-12-31 | N128: 2018-06-30 | O128: 2018-12-31 | P128: 2019-06-30 | Q128: 2019-12-31 | R128: 2020-06-30 | S128: 2020-12-31 | T128: 2021-06-30 | U128: 2021-12-31 | V128: 2022-06-30 | W128: 2022-12-31 | X128: 2023-06-30 | Y128: 2023-12-31 | Z128: 2024-06-30 | AA128: 2024-12-31 | AB128: 2025-06-30 | AC128: 2025-12-31 | AD128: 2026-06-30 | AE128: 2026-12-31 | AF128: 2027-06-30 | AG128: 2027-12-31 | AH128: 2028-06-30 | AI128: 2028-12-31 | AJ128: 2029-06-30 | AK128: 2029-12-31 | AL128: 2030-06-30 | AM128: 2030-12-31 | AN128: 2031-06-30 | AO128: 2031-12-31 | AP128: 2032-06-30 | AQ128: 2032-12-31 | AR128: 2033-06-30 | AS128: 2033-12-31 | AT128: 2034-06-30 | AU128: 2034-12-31 | AV128: 2035-06-30 | AW128: 2035-12-31 | AX128: 2036-06-30 | AY128: 2036-12-31 | AZ128: 2037-06-30 | BA128: 2037-12-31 | BB128: 2038-06-30 | BC128: 2038-12-31 | BD128: 2039-06-30 | BE128: 2039-12-31 | BF128: 2040-06-30 | BG128: 2040-12-31 | BH128: 2041-06-30 | BI128: 2041-12-31 | BJ128: 2042-06-30 | BK128: 2042-12-31 | BL128: 2043-06-30 | BM128: 2043-12-31 | BN128: 2044-06-30 | BO128: 2044-12-31 | BP128: 2045-06-30 | BQ128: =BQ$21 -> 2045-12-31 | BR128: =BR$21 -> 2046-06-30 | BS128: =BS$21 -> 2046-12-31 | BT128: 2047-06-30 | BU128: 2047-12-31 | BV128: 2048-06-30 | BW128: 2048-12-31 | BX128: 2049-06-30 | BY128: 2049-12-31 | BZ128: 2050-06-30
E129: CPI escalation period flag | G129: date | H129: =SUM(J129:BZ129) -> 34 | J129: =IF(AND(J128 >= $F127, MONTH(J128) = MONTH($F127)), 1, 0) -> 0 | K129: =IF(AND(K128 >= $F127, MONTH(K128) = MONTH($F127)), 1, 0) -> 0 | L129: 1 | M129: 0 | N129: 1 | O129: 0 | P129: 1 | Q129: 0 | R129: 1 | S129: 0 | T129: 1 | U129: 0 | V129: 1 | W129: 0 | X129: 1 | Y129: 0 | Z129: 1 | AA129: 0 | AB129: 1 | AC129: 0 | AD129: 1 | AE129: 0 | AF129: 1 | AG129: 0 | AH129: 1 | AI129: 0 | AJ129: 1 | AK129: 0 | AL129: 1 | AM129: 0 | AN129: 1 | AO129: 0 | AP129: 1 | AQ129: 0 | AR129: 1 | AS129: 0 | AT129: 1 | AU129: 0 | AV129: 1 | AW129: 0 | AX129: 1 | AY129: 0 | AZ129: 1 | BA129: 0 | BB129: 1 | BC129: 0 | BD129: 1 | BE129: 0 | BF129: 1 | BG129: 0 | BH129: 1 | BI129: 0 | BJ129: =IF(AND(BJ128 >= $F127, MONTH(BJ128) = MONTH($F127)), 1, 0) -> 1 | BK129: 0 | BL129: 1 | BM129: 0 | BN129: 1 | BO129: 0 | BP129: 1 | BQ129: 0 | BR129: 1 | BS129: =IF(AND(BS128 >= $F127, MONTH(BS128) = MONTH($F127)), 1, 0) -> 0 | BT129: 1 | BU129: 0 | BV129: 1 | BW129: 0 | BX129: 1 | BY129: 0 | BZ129: 1

Sheet Esc
A1: =RIGHT(CELL("filename", $A$1), LEN(CELL("filename", $A$1)) - SEARCH("]", CELL("filename", $A$1))) -> Esc
E2: =Time!E$21 -> Model period ending | J2: =Time!J$21 -> 2016-06-30 | K2: =Time!K$21 -> 2016-12-31 | L2: =Time!L$21 -> 2017-06-30 | M2: =Time!M$21 -> 2017-12-31 | N2: =Time!N$21 -> 2018-06-30 | O2: =Time!O$21 -> 2018-12-31 | P2: =Time!P$21 -> 2019-06-30 | Q2: =Time!Q$21 -> 2019-12-31 | R2: =Time!R$21 -> 2020-06-30 | S2: =Time!S$21 -> 2020-12-31 | T2: =Time!T$21 -> 2021-06-30 | U2: =Time!U$21 -> 2021-12-31 | V2: =Time!V$21 -> 2022-06-30 | W2: =Time!W$21 -> 2022-12-31 | X2: =Time!X$21 -> 2023-06-30 | Y2: =Time!Y$21 -> 2023-12-31 | Z2: =Time!Z$21 -> 2024-06-30 | AA2: =Time!AA$21 -> 2024-12-31 | AB2: =Time!AB$21 -> 2025-06-30 | AC2: =Time!AC$21 -> 2025-12-31 | AD2: =Time!AD$21 -> 2026-06-30 | AE2: =Time!AE$21 -> 2026-12-31 | AF2: =Time!AF$21 -> 2027-06-30 | AG2: =Time!AG$21 -> 2027-12-31 | AH2: =Time!AH$21 -> 2028-06-30 | AI2: =Time!AI$21 -> 2028-12-31 | AJ2: =Time!AJ$21 -> 2029-06-30 | AK2: =Time!AK$21 -> 2029-12-31 | AL2: =Time!AL$21 -> 2030-06-30 | AM2: =Time!AM$21 -> 2030-12-31 | AN2: =Time!AN$21 -> 2031-06-30 | AO2: =Time!AO$21 -> 2031-12-31 | AP2: =Time!AP$21 -> 2032-06-30 | AQ2: =Time!AQ$21 -> 2032-12-31 | AR2: =Time!AR$21 -> 2033-06-30 | AS2: =Time!AS$21 -> 2033-12-31 | AT2: =Time!AT$21 -> 2034-06-30 | AU2: =Time!AU$21 -> 2034-12-31 | AV2: =Time!AV$21 -> 2035-06-30 | AW2: =Time!AW$21 -> 2035-12-31 | AX2: =Time!AX$21 -> 2036-06-30 | AY2: =Time!AY$21 -> 2036-12-31 | AZ2: =Time!AZ$21 -> 2037-06-30 | BA2: =Time!BA$21 -> 2037-12-31 | BB2: =Time!BB$21 -> 2038-06-30 | BC2: =Time!BC$21 -> 2038-12-31 | BD2: =Time!BD$21 -> 2039-06-30 | BE2: =Time!BE$21 -> 2039-12-31 | BF2: =Time!BF$21 -> 2040-06-30 | BG2: =Time!BG$21 -> 2040-12-31 | BH2: =Time!BH$21 -> 2041-06-30 | BI2: =Time!BI$21 -> 2041-12-31 | BJ2: =Time!BJ$21 -> 2042-06-30 | BK2: =Time!BK$21 -> 2042-12-31 | BL2: =Time!BL$21 -> 2043-06-30 | BM2: =Time!BM$21 -> 2043-12-31 | BN2: =Time!BN$21 -> 2044-06-30 | BO2: =Time!BO$21 -> 2044-12-31 | BP2: =Time!BP$21 -> 2045-06-30 | BQ2: =Time!BQ$21 -> 2045-12-31 | BR2: =Time!BR$21 -> 2046-06-30 | BS2: =Time!BS$21 -> 2046-12-31 | BT2: =Time!BT$21 -> 2047-06-30 | BU2: =Time!BU$21 -> 2047-12-31 | BV2: =Time!BV$21 -> 2048-06-30 | BW2: =Time!BW$21 -> 2048-12-31 | BX2: =Time!BX$21 -> 2049-06-30 | BY2: =Time!BY$21 -> 2049-12-31 | BZ2: =Time!BZ$21 -> 2050-06-30
E3: =Time!E$108 -> Actual vs forecast | J3: =Time!J$108 -> Fin Close | K3: =Time!K$108 -> Construction | L3: =Time!L$108 -> Construction | M3: =Time!M$108 -> Construction | N3: =Time!N$108 -> Construction | O3: =Time!O$108 -> Construction | P3: =Time!P$108 -> Construction | Q3: =Time!Q$108 -> Operations | R3: =Time!R$108 -> Operations | S3: =Time!S$108 -> Operations | T3: =Time!T$108 -> Operations | U3: =Time!U$108 -> Operations | V3: =Time!V$108 -> Operations | W3: =Time!W$108 -> Operations | X3: =Time!X$108 -> Operations | Y3: =Time!Y$108 -> Operations | Z3: =Time!Z$108 -> Operations | AA3: =Time!AA$108 -> Operations | AB3: =Time!AB$108 -> Operations | AC3: =Time!AC$108 -> Operations | AD3: =Time!AD$108 -> Operations | AE3: =Time!AE$108 -> Operations | AF3: =Time!AF$108 -> Operations | AG3: =Time!AG$108 -> Operations | AH3: =Time!AH$108 -> Operations | AI3: =Time!AI$108 -> Operations | AJ3: =Time!AJ$108 -> Operations | AK3: =Time!AK$108 -> Operations | AL3: =Time!AL$108 -> Operations | AM3: =Time!AM$108 -> Operations | AN3: =Time!AN$108 -> Operations | AO3: =Time!AO$108 -> Operations | AP3: =Time!AP$108 -> Operations | AQ3: =Time!AQ$108 -> Operations | AR3: =Time!AR$108 -> Operations | AS3: =Time!AS$108 -> Operations | AT3: =Time!AT$108 -> Operations | AU3: =Time!AU$108 -> Operations | AV3: =Time!AV$108 -> Operations | AW3: =Time!AW$108 -> Operations | AX3: =Time!AX$108 -> Operations | AY3: =Time!AY$108 -> Operations | AZ3: =Time!AZ$108 -> Operations | BA3: =Time!BA$108 -> Operations | BB3: =Time!BB$108 -> Operations | BC3: =Time!BC$108 -> Operations | BD3: =Time!BD$108 -> Operations | BE3: =Time!BE$108 -> Operations | BF3: =Time!BF$108 -> Operations | BG3: =Time!BG$108 -> Operations | BH3: =Time!BH$108 -> Operations | BI3: =Time!BI$108 -> Operations | BJ3: =Time!BJ$108 -> Operations | BK3: =Time!BK$108 -> Operations | BL3: =Time!BL$108 -> Operations | BM3: =Time!BM$108 -> Operations | BN3: =Time!BN$108 -> Operations | BO3: =Time!BO$108 -> Operations | BP3: =Time!BP$108 -> Operations | BQ3: =Time!BQ$108 -> Operations | BR3: =Time!BR$108 -> Operations | BS3: =Time!BS$108 -> Operations | BT3: =Time!BT$108 -> Operations | BU3: =Time!BU$108 -> Operations | BV3: =Time!BV$108 -> Operations | BW3: =Time!BW$108 -> Operations | BX3: =Time!BX$108 -> Operations | BY3: =Time!BY$108 -> Post-Frcst | BZ3: =Time!BZ$108 -> Post-Frcst
E4: =Time!E$121 -> Financial year ending | J4: =Time!J$121 -> 2016 | K4: =Time!K$121 -> 2016 | L4: =Time!L$121 -> 2017 | M4: =Time!M$121 -> 2017 | N4: =Time!N$121 -> 2018 | O4: =Time!O$121 -> 2018 | P4: =Time!P$121 -> 2019 | Q4: =Time!Q$121 -> 2019 | R4: =Time!R$121 -> 2020 | S4: =Time!S$121 -> 2020 | T4: =Time!T$121 -> 2021 | U4: =Time!U$121 -> 2021 | V4: =Time!V$121 -> 2022 | W4: =Time!W$121 -> 2022 | X4: =Time!X$121 -> 2023 | Y4: =Time!Y$121 -> 2023 | Z4: =Time!Z$121 -> 2024 | AA4: =Time!AA$121 -> 2024 | AB4: =Time!AB$121 -> 2025 | AC4: =Time!AC$121 -> 2025 | AD4: =Time!AD$121 -> 2026 | AE4: =Time!AE$121 -> 2026 | AF4: =Time!AF$121 -> 2027 | AG4: =Time!AG$121 -> 2027 | AH4: =Time!AH$121 -> 2028 | AI4: =Time!AI$121 -> 2028 | AJ4: =Time!AJ$121 -> 2029 | AK4: =Time!AK$121 -> 2029 | AL4: =Time!AL$121 -> 2030 | AM4: =Time!AM$121 -> 2030 | AN4: =Time!AN$121 -> 2031 | AO4: =Time!AO$121 -> 2031 | AP4: =Time!AP$121 -> 2032 | AQ4: =Time!AQ$121 -> 2032 | AR4: =Time!AR$121 -> 2033 | AS4: =Time!AS$121 -> 2033 | AT4: =Time!AT$121 -> 2034 | AU4: =Time!AU$121 -> 2034 | AV4: =Time!AV$121 -> 2035 | AW4: =Time!AW$121 -> 2035 | AX4: =Time!AX$121 -> 2036 | AY4: =Time!AY$121 -> 2036 | AZ4: =Time!AZ$121 -> 2037 | BA4: =Time!BA$121 -> 2037 | BB4: =Time!BB$121 -> 2038 | BC4: =Time!BC$121 -> 2038 | BD4: =Time!BD$121 -> 2039 | BE4: =Time!BE$121 -> 2039 | BF4: =Time!BF$121 -> 2040 | BG4: =Time!BG$121 -> 2040 | BH4: =Time!BH$121 -> 2041 | BI4: =Time!BI$121 -> 2041 | BJ4: =Time!BJ$121 -> 2042 | BK4: =Time!BK$121 -> 2042 | BL4: =Time!BL$121 -> 2043 | BM4: =Time!BM$121 -> 2043 | BN4: =Time!BN$121 -> 2044 | BO4: =Time!BO$121 -> 2044 | BP4: =Time!BP$121 -> 2045 | BQ4: =Time!BQ$121 -> 2045 | BR4: =Time!BR$121 -> 2046 | BS4: =Time!BS$121 -> 2046 | BT4: =Time!BT$121 -> 2047 | BU4: =Time!BU$121 -> 2047 | BV4: =Time!BV$121 -> 2048 | BW4: =Time!BW$121 -> 2048 | BX4: =Time!BX$121 -> 2049 | BY4: =Time!BY$121 -> 2049 | BZ4: =Time!BZ$121 -> 2050
E5: =Time!E$9 -> Model column counter | F5: Constant | G5: Unit | H5: Total | J5: =Time!J$9 -> 1 | K5: =Time!K$9 -> 2 | L5: =Time!L$9 -> 3 | M5: =Time!M$9 -> 4 | N5: =Time!N$9 -> 5 | O5: =Time!O$9 -> 6 | P5: =Time!P$9 -> 7 | Q5: =Time!Q$9 -> 8 | R5: =Time!R$9 -> 9 | S5: =Time!S$9 -> 10 | T5: =Time!T$9 -> 11 | U5: =Time!U$9 -> 12 | V5: =Time!V$9 -> 13 | W5: =Time!W$9 -> 14 | X5: =Time!X$9 -> 15 | Y5: =Time!Y$9 -> 16 | Z5: =Time!Z$9 -> 17 | AA5: =Time!AA$9 -> 18 | AB5: =Time!AB$9 -> 19 | AC5: =Time!AC$9 -> 20 | AD5: =Time!AD$9 -> 21 | AE5: =Time!AE$9 -> 22 | AF5: =Time!AF$9 -> 23 | AG5: =Time!AG$9 -> 24 | AH5: =Time!AH$9 -> 25 | AI5: =Time!AI$9 -> 26 | AJ5: =Time!AJ$9 -> 27 | AK5: =Time!AK$9 -> 28 | AL5: =Time!AL$9 -> 29 | AM5: =Time!AM$9 -> 30 | AN5: =Time!AN$9 -> 31 | AO5: =Time!AO$9 -> 32 | AP5: =Time!AP$9 -> 33 | AQ5: =Time!AQ$9 -> 34 | AR5: =Time!AR$9 -> 35 | AS5: =Time!AS$9 -> 36 | AT5: =Time!AT$9 -> 37 | AU5: =Time!AU$9 -> 38 | AV5: =Time!AV$9 -> 39 | AW5: =Time!AW$9 -> 40 | AX5: =Time!AX$9 -> 41 | AY5: =Time!AY$9 -> 42 | AZ5: =Time!AZ$9 -> 43 | BA5: =Time!BA$9 -> 44 | BB5: =Time!BB$9 -> 45 | BC5: =Time!BC$9 -> 46 | BD5: =Time!BD$9 -> 47 | BE5: =Time!BE$9 -> 48 | BF5: =Time!BF$9 -> 49 | BG5: =Time!BG$9 -> 50 | BH5: =Time!BH$9 -> 51 | BI5: =Time!BI$9 -> 52 | BJ5: =Time!BJ$9 -> 53 | BK5: =Time!BK$9 -> 54 | BL5: =Time!BL$9 -> 55 | BM5: =Time!BM$9 -> 56 | BN5: =Time!BN$9 -> 57 | BO5: =Time!BO$9 -> 58 | BP5: =Time!BP$9 -> 59 | BQ5: =Time!BQ$9 -> 60 | BR5: =Time!BR$9 -> 61 | BS5: =Time!BS$9 -> 62 | BT5: =Time!BT$9 -> 63 | BU5: =Time!BU$9 -> 64 | BV5: =Time!BV$9 -> 65 | BW5: =Time!BW$9 -> 66 | BX5: =Time!BX$9 -> 67 | BY5: =Time!BY$9 -> 68 | BZ5: =Time!BZ$9 -> 69
A7: CPI ESCALATION FACTOR
E9: =InpC!E$73 -> Base factor | F9: =InpC!F$73 -> 1 | G9: =InpC!G$73 -> factor
E10: =InpC!E$25 -> CPI escalation rate | F10: =InpC!F$25 -> 0.025 | G10: =InpC!G$25 -> %
E11: =InpC!E$27 -> CPI base period end date | F11: =InpC!F$27 -> 2016-06-30 | G11: =InpC!G$27 -> date
E12: =Time!E$21 -> Model period ending | F12: =Time!F$21 -> 00:00:00 | G12: =Time!G$21 -> date | H12: =Time!H$21 -> 00:00:00 | I12: =Time!I$21 -> 00:00:00 | J12: =Time!J$21 -> 2016-06-30 | K12: =Time!K$21 -> 2016-12-31 | L12: =Time!L$21 -> 2017-06-30 | M12: =Time!M$21 -> 2017-12-31 | N12: =Time!N$21 -> 2018-06-30 | O12: =Time!O$21 -> 2018-12-31 | P12: =Time!P$21 -> 2019-06-30 | Q12: =Time!Q$21 -> 2019-12-31 | R12: =Time!R$21 -> 2020-06-30 | S12: =Time!S$21 -> 2020-12-31 | T12: =Time!T$21 -> 2021-06-30 | U12: =Time!U$21 -> 2021-12-31 | V12: =Time!V$21 -> 2022-06-30 | W12: =Time!W$21 -> 2022-12-31 | X12: =Time!X$21 -> 2023-06-30 | Y12: =Time!Y$21 -> 2023-12-31 | Z12: =Time!Z$21 -> 2024-06-30 | AA12: =Time!AA$21 -> 2024-12-31 | AB12: =Time!AB$21 -> 2025-06-30 | AC12: =Time!AC$21 -> 2025-12-31 | AD12: =Time!AD$21 -> 2026-06-30 | AE12: =Time!AE$21 -> 2026-12-31 | AF12: =Time!AF$21 -> 2027-06-30 | AG12: =Time!AG$21 -> 2027-12-31 | AH12: =Time!AH$21 -> 2028-06-30 | AI12: =Time!AI$21 -> 2028-12-31 | AJ12: =Time!AJ$21 -> 2029-06-30 | AK12: =Time!AK$21 -> 2029-12-31 | AL12: =Time!AL$21 -> 2030-06-30 | AM12: =Time!AM$21 -> 2030-12-31 | AN12: =Time!AN$21 -> 2031-06-30 | AO12: =Time!AO$21 -> 2031-12-31 | AP12: =Time!AP$21 -> 2032-06-30 | AQ12: =Time!AQ$21 -> 2032-12-31 | AR12: =Time!AR$21 -> 2033-06-30 | AS12: =Time!AS$21 -> 2033-12-31 | AT12: =Time!AT$21 -> 2034-06-30 | AU12: =Time!AU$21 -> 2034-12-31 | AV12: =Time!AV$21 -> 2035-06-30 | AW12: =Time!AW$21 -> 2035-12-31 | AX12: =Time!AX$21 -> 2036-06-30 | AY12: =Time!AY$21 -> 2036-12-31 | AZ12: =Time!AZ$21 -> 2037-06-30 | BA12: =Time!BA$21 -> 2037-12-31 | BB12: =Time!BB$21 -> 2038-06-30 | BC12: =Time!BC$21 -> 2038-12-31 | BD12: =Time!BD$21 -> 2039-06-30 | BE12: =Time!BE$21 -> 2039-12-31 | BF12: =Time!BF$21 -> 2040-06-30 | BG12: =Time!BG$21 -> 2040-12-31 | BH12: =Time!BH$21 -> 2041-06-30 | BI12: =Time!BI$21 -> 2041-12-31 | BJ12: =Time!BJ$21 -> 2042-06-30 | BK12: =Time!BK$21 -> 2042-12-31 | BL12: =Time!BL$21 -> 2043-06-30 | BM12: =Time!BM$21 -> 2043-12-31 | BN12: =Time!BN$21 -> 2044-06-30 | BO12: =Time!BO$21 -> 2044-12-31 | BP12: =Time!BP$21 -> 2045-06-30 | BQ12: =Time!BQ$21 -> 2045-12-31 | BR12: =Time!BR$21 -> 2046-06-30 | BS12: =Time!BS$21 -> 2046-12-31 | BT12: =Time!BT$21 -> 2047-06-30 | BU12: =Time!BU$21 -> 2047-12-31 | BV12: =Time!BV$21 -> 2048-06-30 | BW12: =Time!BW$21 -> 2048-12-31 | BX12: =Time!BX$21 -> 2049-06-30 | BY12: =Time!BY$21 -> 2049-12-31 | BZ12: =Time!BZ$21 -> 2050-06-30
E13: =Time!E$129 -> CPI escalation period flag | F13: =Time!F$129 -> 0 | G13: =Time!G$129 -> date | H13: =Time!H$129 -> 34 | I13: =Time!I$129 -> 0 | J13: =Time!J$129 -> 0 | K13: =Time!K$129 -> 0 | L13: =Time!L$129 -> 1 | M13: =Time!M$129 -> 0 | N13: =Time!N$129 -> 1 | O13: =Time!O$129 -> 0 | P13: =Time!P$129 -> 1 | Q13: =Time!Q$129 -> 0 | R13: =Time!R$129 -> 1 | S13: =Time!S$129 -> 0 | T13: =Time!T$129 -> 1 | U13: =Time!U$129 -> 0 | V13: =Time!V$129 -> 1 | W13: =Time!W$129 -> 0 | X13: =Time!X$129 -> 1 | Y13: =Time!Y$129 -> 0 | Z13: =Time!Z$129 -> 1 | AA13: =Time!AA$129 -> 0 | AB13: =Time!AB$129 -> 1 | AC13: =Time!AC$129 -> 0 | AD13: =Time!AD$129 -> 1 | AE13: =Time!AE$129 -> 0 | AF13: =Time!AF$129 -> 1 | AG13: =Time!AG$129 -> 0 | AH13: =Time!AH$129 -> 1 | AI13: =Time!AI$129 -> 0 | AJ13: =Time!AJ$129 -> 1 | AK13: =Time!AK$129 -> 0 | AL13: =Time!AL$129 -> 1 | AM13: =Time!AM$129 -> 0 | AN13: =Time!AN$129 -> 1 | AO13: =Time!AO$129 -> 0 | AP13: =Time!AP$129 -> 1 | AQ13: =Time!AQ$129 -> 0 | AR13: =Time!AR$129 -> 1 | AS13: =Time!AS$129 -> 0 | AT13: =Time!AT$129 -> 1 | AU13: =Time!AU$129 -> 0 | AV13: =Time!AV$129 -> 1 | AW13: =Time!AW$129 -> 0 | AX13: =Time!AX$129 -> 1 | AY13: =Time!AY$129 -> 0 | AZ13: =Time!AZ$129 -> 1 | BA13: =Time!BA$129 -> 0 | BB13: =Time!BB$129 -> 1 | BC13: =Time!BC$129 -> 0 | BD13: =Time!BD$129 -> 1 | BE13: =Time!BE$129 -> 0 | BF13: =Time!BF$129 -> 1 | BG13: =Time!BG$129 -> 0 | BH13: =Time!BH$129 -> 1 | BI13: =Time!BI$129 -> 0 | BJ13: =Time!BJ$129 -> 1 | BK13: =Time!BK$129 -> 0 | BL13: =Time!BL$129 -> 1 | BM13: =Time!BM$129 -> 0 | BN13: =Time!BN$129 -> 1 | BO13: =Time!BO$129 -> 0 | BP13: =Time!BP$129 -> 1 | BQ13: =Time!BQ$129 -> 0 | BR13: =Time!BR$129 -> 1 | BS13: =Time!BS$129 -> 0 | BT13: =Time!BT$129 -> 1 | BU13: =Time!BU$129 -> 0 | BV13: =Time!BV$129 -> 1 | BW13: =Time!BW$129 -> 0 | BX13: =Time!BX$129 -> 1 | BY13: =Time!BY$129 -> 0 | BZ13: =Time!BZ$129 -> 1
E14: CPI escalation factor | G14: factor | J14: =IF( $F11 >= J12, $F9, IF(J13 = 1, I14 * (1 + $F10), I14)) -> 1 | K14: =IF( $F11 >= K12, $F9, IF(K13 = 1, J14 * (1 + $F10), J14)) -> 1 | L14: 1.025 | M14: 1.025 | N14: 1.050625 | O14: 1.050625 | P14: 1.076890625 | Q14: 1.076890625 | R14: 1.103812891 | S14: 1.103812891 | T14: 1.131408213 | U14: 1.131408213 | V14: 1.159693418 | W14: 1.159693418 | X14: 1.188685754 | Y14: 1.188685754 | Z14: 1.218402898 | AA14: 1.218402898 | AB14: 1.24886297 | AC14: 1.24886297 | AD14: 1.280084544 | AE14: 1.280084544 | AF14: 1.312086658 | AG14: 1.312086658 | AH14: 1.344888824 | AI14: 1.344888824 | AJ14: 1.378511045 | AK14: 1.378511045 | AL14: 1.412973821 | AM14: 1.412973821 | AN14: 1.448298166 | AO14: 1.448298166 | AP14: 1.484505621 | AQ14: 1.484505621 | AR14: 1.521618261 | AS14: 1.521618261 | AT14: 1.559658718 | AU14: 1.559658718 | AV14: 1.598650186 | AW14: 1.598650186 | AX14: 1.63861644 | AY14: 1.63861644 | AZ14: 1.679581851 | BA14: 1.679581851 | BB14: 1.721571398 | BC14: 1.721571398 | BD14: 1.764610683 | BE14: 1.764610683 | BF14: 1.80872595 | BG14: 1.80872595 | BH14: 1.853944098 | BI14: 1.853944098 | BJ14: =IF( $F11 >= BJ12, $F9, IF(BJ13 = 1, BI14 * (1 + $F10), BI14)) -> 1.900292701 | BK14: 1.900292701 | BL14: 1.947800018 | BM14: 1.947800018 | BN14: 1.996495019 | BO14: 1.996495019 | BP14: 2.046407394 | BQ14: 2.046407394 | BR14: 2.097567579 | BS14: =IF( $F11 >= BS12, $F9, IF(BS13 = 1, BR14 * (1 + $F10), BR14)) -> 2.097567579 | BT14: 2.150006769 | BU14: 2.150006769 | BV14: 2.203756938 | BW14: 2.203756938 | BX14: 2.258850861 | BY14: 2.258850861 | BZ14: 2.315322133

Sheet OpRev
A1: =RIGHT(CELL("filename", $A$1), LEN(CELL("filename", $A$1)) - SEARCH("]", CELL("filename", $A$1))) -> OpRev
E2: =Time!E$21 -> Model period ending | J2: =Time!J$21 -> 2016-06-30 | K2: =Time!K$21 -> 2016-12-31 | L2: =Time!L$21 -> 2017-06-30 | M2: =Time!M$21 -> 2017-12-31 | N2: =Time!N$21 -> 2018-06-30 | O2: =Time!O$21 -> 2018-12-31 | P2: =Time!P$21 -> 2019-06-30 | Q2: =Time!Q$21 -> 2019-12-31 | R2: =Time!R$21 -> 2020-06-30 | S2: =Time!S$21 -> 2020-12-31 | T2: =Time!T$21 -> 2021-06-30 | U2: =Time!U$21 -> 2021-12-31 | V2: =Time!V$21 -> 2022-06-30 | W2: =Time!W$21 -> 2022-12-31 | X2: =Time!X$21 -> 2023-06-30 | Y2: =Time!Y$21 -> 2023-12-31 | Z2: =Time!Z$21 -> 2024-06-30 | AA2: =Time!AA$21 -> 2024-12-31 | AB2: =Time!AB$21 -> 2025-06-30 | AC2: =Time!AC$21 -> 2025-12-31 | AD2: =Time!AD$21 -> 2026-06-30 | AE2: =Time!AE$21 -> 2026-12-31 | AF2: =Time!AF$21 -> 2027-06-30 | AG2: =Time!AG$21 -> 2027-12-31 | AH2: =Time!AH$21 -> 2028-06-30 | AI2: =Time!AI$21 -> 2028-12-31 | AJ2: =Time!AJ$21 -> 2029-06-30 | AK2: =Time!AK$21 -> 2029-12-31 | AL2: =Time!AL$21 -> 2030-06-30 | AM2: =Time!AM$21 -> 2030-12-31 | AN2: =Time!AN$21 -> 2031-06-30 | AO2: =Time!AO$21 -> 2031-12-31 | AP2: =Time!AP$21 -> 2032-06-30 | AQ2: =Time!AQ$21 -> 2032-12-31 | AR2: =Time!AR$21 -> 2033-06-30 | AS2: =Time!AS$21 -> 2033-12-31 | AT2: =Time!AT$21 -> 2034-06-30 | AU2: =Time!AU$21 -> 2034-12-31 | AV2: =Time!AV$21 -> 2035-06-30 | AW2: =Time!AW$21 -> 2035-12-31 | AX2: =Time!AX$21 -> 2036-06-30 | AY2: =Time!AY$21 -> 2036-12-31 | AZ2: =Time!AZ$21 -> 2037-06-30 | BA2: =Time!BA$21 -> 2037-12-31 | BB2: =Time!BB$21 -> 2038-06-30 | BC2: =Time!BC$21 -> 2038-12-31 | BD2: =Time!BD$21 -> 2039-06-30 | BE2: =Time!BE$21 -> 2039-12-31 | BF2: =Time!BF$21 -> 2040-06-30 | BG2: =Time!BG$21 -> 2040-12-31 | BH2: =Time!BH$21 -> 2041-06-30 | BI2: =Time!BI$21 -> 2041-12-31 | BJ2: =Time!BJ$21 -> 2042-06-30 | BK2: =Time!BK$21 -> 2042-12-31 | BL2: =Time!BL$21 -> 2043-06-30 | BM2: =Time!BM$21 -> 2043-12-31 | BN2: =Time!BN$21 -> 2044-06-30 | BO2: =Time!BO$21 -> 2044-12-31 | BP2: =Time!BP$21 -> 2045-06-30 | BQ2: =Time!BQ$21 -> 2045-12-31 | BR2: =Time!BR$21 -> 2046-06-30 | BS2: =Time!BS$21 -> 2046-12-31 | BT2: =Time!BT$21 -> 2047-06-30 | BU2: =Time!BU$21 -> 2047-12-31 | BV2: =Time!BV$21 -> 2048-06-30 | BW2: =Time!BW$21 -> 2048-12-31 | BX2: =Time!BX$21 -> 2049-06-30 | BY2: =Time!BY$21 -> 2049-12-31 | BZ2: =Time!BZ$21 -> 2050-06-30
E3: =Time!E$108 -> Actual vs forecast | J3: =Time!J$108 -> Fin Close | K3: =Time!K$108 -> Construction | L3: =Time!L$108 -> Construction | M3: =Time!M$108 -> Construction | N3: =Time!N$108 -> Construction | O3: =Time!O$108 -> Construction | P3: =Time!P$108 -> Construction | Q3: =Time!Q$108 -> Operations | R3: =Time!R$108 -> Operations | S3: =Time!S$108 -> Operations | T3: =Time!T$108 -> Operations | U3: =Time!U$108 -> Operations | V3: =Time!V$108 -> Operations | W3: =Time!W$108 -> Operations | X3: =Time!X$108 -> Operations | Y3: =Time!Y$108 -> Operations | Z3: =Time!Z$108 -> Operations | AA3: =Time!AA$108 -> Operations | AB3: =Time!AB$108 -> Operations | AC3: =Time!AC$108 -> Operations | AD3: =Time!AD$108 -> Operations | AE3: =Time!AE$108 -> Operations | AF3: =Time!AF$108 -> Operations | AG3: =Time!AG$108 -> Operations | AH3: =Time!AH$108 -> Operations | AI3: =Time!AI$108 -> Operations | AJ3: =Time!AJ$108 -> Operations | AK3: =Time!AK$108 -> Operations | AL3: =Time!AL$108 -> Operations | AM3: =Time!AM$108 -> Operations | AN3: =Time!AN$108 -> Operations | AO3: =Time!AO$108 -> Operations | AP3: =Time!AP$108 -> Operations | AQ3: =Time!AQ$108 -> Operations | AR3: =Time!AR$108 -> Operations | AS3: =Time!AS$108 -> Operations | AT3: =Time!AT$108 -> Operations | AU3: =Time!AU$108 -> Operations | AV3: =Time!AV$108 -> Operations | AW3: =Time!AW$108 -> Operations | AX3: =Time!AX$108 -> Operations | AY3: =Time!AY$108 -> Operations | AZ3: =Time!AZ$108 -> Operations | BA3: =Time!BA$108 -> Operations | BB3: =Time!BB$108 -> Operations | BC3: =Time!BC$108 -> Operations | BD3: =Time!BD$108 -> Operations | BE3: =Time!BE$108 -> Operations | BF3: =Time!BF$108 -> Operations | BG3: =Time!BG$108 -> Operations | BH3: =Time!BH$108 -> Operations | BI3: =Time!BI$108 -> Operations | BJ3: =Time!BJ$108 -> Operations | BK3: =Time!BK$108 -> Operations | BL3: =Time!BL$108 -> Operations | BM3: =Time!BM$108 -> Operations | BN3: =Time!BN$108 -> Operations | BO3: =Time!BO$108 -> Operations | BP3: =Time!BP$108 -> Operations | BQ3: =Time!BQ$108 -> Operations | BR3: =Time!BR$108 -> Operations | BS3: =Time!BS$108 -> Operations | BT3: =Time!BT$108 -> Operations | BU3: =Time!BU$108 -> Operations | BV3: =Time!BV$108 -> Operations | BW3: =Time!BW$108 -> Operations | BX3: =Time!BX$108 -> Operations | BY3: =Time!BY$108 -> Post-Frcst | BZ3: =Time!BZ$108 -> Post-Frcst
E4: =Time!E$121 -> Financial year ending | J4: =Time!J$121 -> 2016 | K4: =Time!K$121 -> 2016 | L4: =Time!L$121 -> 2017 | M4: =Time!M$121 -> 2017 | N4: =Time!N$121 -> 2018 | O4: =Time!O$121 -> 2018 | P4: =Time!P$121 -> 2019 | Q4: =Time!Q$121 -> 2019 | R4: =Time!R$121 -> 2020 | S4: =Time!S$121 -> 2020 | T4: =Time!T$121 -> 2021 | U4: =Time!U$121 -> 2021 | V4: =Time!V$121 -> 2022 | W4: =Time!W$121 -> 2022 | X4: =Time!X$121 -> 2023 | Y4: =Time!Y$121 -> 2023 | Z4: =Time!Z$121 -> 2024 | AA4: =Time!AA$121 -> 2024 | AB4: =Time!AB$121 -> 2025 | AC4: =Time!AC$121 -> 2025 | AD4: =Time!AD$121 -> 2026 | AE4: =Time!AE$121 -> 2026 | AF4: =Time!AF$121 -> 2027 | AG4: =Time!AG$121 -> 2027 | AH4: =Time!AH$121 -> 2028 | AI4: =Time!AI$121 -> 2028 | AJ4: =Time!AJ$121 -> 2029 | AK4: =Time!AK$121 -> 2029 | AL4: =Time!AL$121 -> 2030 | AM4: =Time!AM$121 -> 2030 | AN4: =Time!AN$121 -> 2031 | AO4: =Time!AO$121 -> 2031 | AP4: =Time!AP$121 -> 2032 | AQ4: =Time!AQ$121 -> 2032 | AR4: =Time!AR$121 -> 2033 | AS4: =Time!AS$121 -> 2033 | AT4: =Time!AT$121 -> 2034 | AU4: =Time!AU$121 -> 2034 | AV4: =Time!AV$121 -> 2035 | AW4: =Time!AW$121 -> 2035 | AX4: =Time!AX$121 -> 2036 | AY4: =Time!AY$121 -> 2036 | AZ4: =Time!AZ$121 -> 2037 | BA4: =Time!BA$121 -> 2037 | BB4: =Time!BB$121 -> 2038 | BC4: =Time!BC$121 -> 2038 | BD4: =Time!BD$121 -> 2039 | BE4: =Time!BE$121 -> 2039 | BF4: =Time!BF$121 -> 2040 | BG4: =Time!BG$121 -> 2040 | BH4: =Time!BH$121 -> 2041 | BI4: =Time!BI$121 -> 2041 | BJ4: =Time!BJ$121 -> 2042 | BK4: =Time!BK$121 -> 2042 | BL4: =Time!BL$121 -> 2043 | BM4: =Time!BM$121 -> 2043 | BN4: =Time!BN$121 -> 2044 | BO4: =Time!BO$121 -> 2044 | BP4: =Time!BP$121 -> 2045 | BQ4: =Time!BQ$121 -> 2045 | BR4: =Time!BR$121 -> 2046 | BS4: =Time!BS$121 -> 2046 | BT4: =Time!BT$121 -> 2047 | BU4: =Time!BU$121 -> 2047 | BV4: =Time!BV$121 -> 2048 | BW4: =Time!BW$121 -> 2048 | BX4: =Time!BX$121 -> 2049 | BY4: =Time!BY$121 -> 2049 | BZ4: =Time!BZ$121 -> 2050
E5: =Time!E$9 -> Model column counter | F5: Constant | G5: Unit | H5: Total | J5: =Time!J$9 -> 1 | K5: =Time!K$9 -> 2 | L5: =Time!L$9 -> 3 | M5: =Time!M$9 -> 4 | N5: =Time!N$9 -> 5 | O5: =Time!O$9 -> 6 | P5: =Time!P$9 -> 7 | Q5: =Time!Q$9 -> 8 | R5: =Time!R$9 -> 9 | S5: =Time!S$9 -> 10 | T5: =Time!T$9 -> 11 | U5: =Time!U$9 -> 12 | V5: =Time!V$9 -> 13 | W5: =Time!W$9 -> 14 | X5: =Time!X$9 -> 15 | Y5: =Time!Y$9 -> 16 | Z5: =Time!Z$9 -> 17 | AA5: =Time!AA$9 -> 18 | AB5: =Time!AB$9 -> 19 | AC5: =Time!AC$9 -> 20 | AD5: =Time!AD$9 -> 21 | AE5: =Time!AE$9 -> 22 | AF5: =Time!AF$9 -> 23 | AG5: =Time!AG$9 -> 24 | AH5: =Time!AH$9 -> 25 | AI5: =Time!AI$9 -> 26 | AJ5: =Time!AJ$9 -> 27 | AK5: =Time!AK$9 -> 28 | AL5: =Time!AL$9 -> 29 | AM5: =Time!AM$9 -> 30 | AN5: =Time!AN$9 -> 31 | AO5: =Time!AO$9 -> 32 | AP5: =Time!AP$9 -> 33 | AQ5: =Time!AQ$9 -> 34 | AR5: =Time!AR$9 -> 35 | AS5: =Time!AS$9 -> 36 | AT5: =Time!AT$9 -> 37 | AU5: =Time!AU$9 -> 38 | AV5: =Time!AV$9 -> 39 | AW5: =Time!AW$9 -> 40 | AX5: =Time!AX$9 -> 41 | AY5: =Time!AY$9 -> 42 | AZ5: =Time!AZ$9 -> 43 | BA5: =Time!BA$9 -> 44 | BB5: =Time!BB$9 -> 45 | BC5: =Time!BC$9 -> 46 | BD5: =Time!BD$9 -> 47 | BE5: =Time!BE$9 -> 48 | BF5: =Time!BF$9 -> 49 | BG5: =Time!BG$9 -> 50 | BH5: =Time!BH$9 -> 51 | BI5: =Time!BI$9 -> 52 | BJ5: =Time!BJ$9 -> 53 | BK5: =Time!BK$9 -> 54 | BL5: =Time!BL$9 -> 55 | BM5: =Time!BM$9 -> 56 | BN5: =Time!BN$9 -> 57 | BO5: =Time!BO$9 -> 58 | BP5: =Time!BP$9 -> 59 | BQ5: =Time!BQ$9 -> 60 | BR5: =Time!BR$9 -> 61 | BS5: =Time!BS$9 -> 62 | BT5: =Time!BT$9 -> 63 | BU5: =Time!BU$9 -> 64 | BV5: =Time!BV$9 -> 65 | BW5: =Time!BW$9 -> 66 | BX5: =Time!BX$9 -> 67 | BY5: =Time!BY$9 -> 68 | BZ5: =Time!BZ$9 -> 69
A7: OPERATING REVENUE
B9: Net energy production
E10: =InpC!E$34 -> Annual electricity production | F10: =InpC!F$34 -> 1000 | G10: =InpC!G$34 -> MWh p.a.
E11: =InpC!E$69 -> Semi annual period in a year | F11: =InpC!F$69 -> 2 | G11: =InpC!G$69 -> periods
E12: Electricity production | F12: =F10 / F11 -> 500 | G12: MWh
E14: =E$12 -> Electricity production | F14: =F$12 -> 500 | G14: MWh
E15: =Esc!E$14 -> CPI escalation factor | F15: =Esc!F$14 -> 0 | G15: =Esc!G$14 -> factor | H15: =Esc!H$14 -> 0 | I15: =Esc!I$14 -> 0 | J15: =Esc!J$14 -> 1 | K15: =Esc!K$14 -> 1 | L15: =Esc!L$14 -> 1.025 | M15: =Esc!M$14 -> 1.025 | N15: =Esc!N$14 -> 1.050625 | O15: =Esc!O$14 -> 1.050625 | P15: =Esc!P$14 -> 1.076890625 | Q15: =Esc!Q$14 -> 1.076890625 | R15: =Esc!R$14 -> 1.103812891 | S15: =Esc!S$14 -> 1.103812891 | T15: =Esc!T$14 -> 1.131408213 | U15: =Esc!U$14 -> 1.131408213 | V15: =Esc!V$14 -> 1.159693418 | W15: =Esc!W$14 -> 1.159693418 | X15: =Esc!X$14 -> 1.188685754 | Y15: =Esc!Y$14 -> 1.188685754 | Z15: =Esc!Z$14 -> 1.218402898 | AA15: =Esc!AA$14 -> 1.218402898 | AB15: =Esc!AB$14 -> 1.24886297 | AC15: =Esc!AC$14 -> 1.24886297 | AD15: =Esc!AD$14 -> 1.280084544 | AE15: =Esc!AE$14 -> 1.280084544 | AF15: =Esc!AF$14 -> 1.312086658 | AG15: =Esc!AG$14 -> 1.312086658 | AH15: =Esc!AH$14 -> 1.344888824 | AI15: =Esc!AI$14 -> 1.344888824 | AJ15: =Esc!AJ$14 -> 1.378511045 | AK15: =Esc!AK$14 -> 1.378511045 | AL15: =Esc!AL$14 -> 1.412973821 | AM15: =Esc!AM$14 -> 1.412973821 | AN15: =Esc!AN$14 -> 1.448298166 | AO15: =Esc!AO$14 -> 1.448298166 | AP15: =Esc!AP$14 -> 1.484505621 | AQ15: =Esc!AQ$14 -> 1.484505621 | AR15: =Esc!AR$14 -> 1.521618261 | AS15: =Esc!AS$14 -> 1.521618261 | AT15: =Esc!AT$14 -> 1.559658718 | AU15: =Esc!AU$14 -> 1.559658718 | AV15: =Esc!AV$14 -> 1.598650186 | AW15: =Esc!AW$14 -> 1.598650186 | AX15: =Esc!AX$14 -> 1.63861644 | AY15: =Esc!AY$14 -> 1.63861644 | AZ15: =Esc!AZ$14 -> 1.679581851 | BA15: =Esc!BA$14 -> 1.679581851 | BB15: =Esc!BB$14 -> 1.721571398 | BC15: =Esc!BC$14 -> 1.721571398 | BD15: =Esc!BD$14 -> 1.764610683 | BE15: =Esc!BE$14 -> 1.764610683 | BF15: =Esc!BF$14 -> 1.80872595 | BG15: =Esc!BG$14 -> 1.80872595 | BH15: =Esc!BH$14 -> 1.853944098 | BI15: =Esc!BI$14 -> 1.853944098 | BJ15: =Esc!BJ$14 -> 1.900292701 | BK15: =Esc!BK$14 -> 1.900292701 | BL15: =Esc!BL$14 -> 1.947800018 | BM15: =Esc!BM$14 -> 1.947800018 | BN15: =Esc!BN$14 -> 1.996495019 | BO15: =Esc!BO$14 -> 1.996495019 | BP15: =Esc!BP$14 -> 2.046407394 | BQ15: =Esc!BQ$14 -> 2.046407394 | BR15: =Esc!BR$14 -> 2.097567579 | BS15: =Esc!BS$14 -> 2.097567579 | BT15: =Esc!BT$14 -> 2.150006769 | BU15: =Esc!BU$14 -> 2.150006769 | BV15: =Esc!BV$14 -> 2.203756938 | BW15: =Esc!BW$14 -> 2.203756938 | BX15: =Esc!BX$14 -> 2.258850861 | BY15: =Esc!BY$14 -> 2.258850861 | BZ15: =Esc!BZ$14 -> 2.315322133
E16: =Time!E$100 -> Operations period PPF | F16: =Time!F$100 -> 0 | G16: =Time!G$100 -> factor | H16: =Time!H$100 -> 60 | I16: =Time!I$100 -> 0 | J16: =Time!J$100 -> 0 | K16: =Time!K$100 -> 0 | L16: =Time!L$100 -> 0 | M16: =Time!M$100 -> 0 | N16: =Time!N$100 -> 0 | O16: =Time!O$100 -> 0 | P16: =Time!P$100 -> 0 | Q16: =Time!Q$100 -> 1 | R16: =Time!R$100 -> 1 | S16: =Time!S$100 -> 1 | T16: =Time!T$100 -> 1 | U16: =Time!U$100 -> 1 | V16: =Time!V$100 -> 1 | W16: =Time!W$100 -> 1 | X16: =Time!X$100 -> 1 | Y16: =Time!Y$100 -> 1 | Z16: =Time!Z$100 -> 1 | AA16: =Time!AA$100 -> 1 | AB16: =Time!AB$100 -> 1 | AC16: =Time!AC$100 -> 1 | AD16: =Time!AD$100 -> 1 | AE16: =Time!AE$100 -> 1 | AF16: =Time!AF$100 -> 1 | AG16: =Time!AG$100 -> 1 | AH16: =Time!AH$100 -> 1 | AI16: =Time!AI$100 -> 1 | AJ16: =Time!AJ$100 -> 1 | AK16: =Time!AK$100 -> 1 | AL16: =Time!AL$100 -> 1 | AM16: =Time!AM$100 -> 1 | AN16: =Time!AN$100 -> 1 | AO16: =Time!AO$100 -> 1 | AP16: =Time!AP$100 -> 1 | AQ16: =Time!AQ$100 -> 1 | AR16: =Time!AR$100 -> 1 | AS16: =Time!AS$100 -> 1 | AT16: =Time!AT$100 -> 1 | AU16: =Time!AU$100 -> 1 | AV16: =Time!AV$100 -> 1 | AW16: =Time!AW$100 -> 1 | AX16: =Time!AX$100 -> 1 | AY16: =Time!AY$100 -> 1 | AZ16: =Time!AZ$100 -> 1 | BA16: =Time!BA$100 -> 1 | BB16: =Time!BB$100 -> 1 | BC16: =Time!BC$100 -> 1 | BD16: =Time!BD$100 -> 1 | BE16: =Time!BE$100 -> 1 | BF16: =Time!BF$100 -> 1 | BG16: =Time!BG$100 -> 1 | BH16: =Time!BH$100 -> 1 | BI16: =Time!BI$100 -> 1 | BJ16: =Time!BJ$100 -> 1 | BK16: =Time!BK$100 -> 1 | BL16: =Time!BL$100 -> 1 | BM16: =Time!BM$100 -> 1 | BN16: =Time!BN$100 -> 1 | BO16: =Time!BO$100 -> 1 | BP16: =Time!BP$100 -> 1 | BQ16: =Time!BQ$100 -> 1 | BR16: =Time!BR$100 -> 1 | BS16: =Time!BS$100 -> 1 | BT16: =Time!BT$100 -> 1 | BU16: =Time!BU$100 -> 1 | BV16: =Time!BV$100 -> 1 | BW16: =Time!BW$100 -> 1 | BX16: =Time!BX$100 -> 1 | BY16: =Time!BY$100 -> 0 | BZ16: =Time!BZ$100 -> 0
E17: Net energy production | G17: MWh | H17: =SUM(J17:BZ17) -> 47869.38957 | J17: =$F14 * J15 * J16 -> 0 | K17: =$F14 * K15 * K16 -> 0 | L17: 0 | M17: 0 | N17: 0 | O17: 0 | P17: 0 | Q17: 538.4453125 | R17: 551.9064453 | S17: 551.9064453 | T17: 565.7041064 | U17: 565.7041064 | V17: 579.8467091 | W17: 579.8467091 | X17: 594.3428768 | Y17: 594.3428768 | Z17: 609.2014488 | AA17: 609.2014488 | AB17: 624.431485 | AC17: 624.431485 | AD17: 640.0422721 | AE17: 640.0422721 | AF17: 656.0433289 | AG17: 656.0433289 | AH17: 672.4444121 | AI17: 672.4444121 | AJ17: 689.2555224 | AK17: 689.2555224 | AL17: 706.4869105 | AM17: 706.4869105 | AN17: 724.1490832 | AO17: 724.1490832 | AP17: 742.2528103 | AQ17: 742.2528103 | AR17: 760.8091306 | AS17: 760.8091306 | AT17: 779.8293589 | AU17: 779.8293589 | AV17: 799.3250928 | AW17: 799.3250928 | AX17: 819.3082201 | AY17: 819.3082201 | AZ17: 839.7909256 | BA17: 839.7909256 | BB17: 860.7856988 | BC17: 860.7856988 | BD17: 882.3053413 | BE17: 882.3053413 | BF17: 904.3629748 | BG17: 904.3629748 | BH17: 926.9720492 | BI17: 926.9720492 | BJ17: 950.1463504 | BK17: 950.1463504 | BL17: 973.9000091 | BM17: 973.9000091 | BN17: 998.2475094 | BO17: 998.2475094 | BP17: 1023.203697 | BQ17: 1023.203697 | BR17: 1048.78379 | BS17: 1048.78379 | BT17: 1075.003384 | BU17: 1075.003384 | BV17: 1101.878469 | BW17: =$F14 * BW15 * BW16 -> 1101.878469 | BX17: 1129.425431 | BY17: 0 | BZ17: 0
B19: Electricity price
E20: =InpC!E$36 -> Annual electricity price | F20: =InpC!F$36 -> 40 | G20: =InpC!G$36 -> EUR k p.a.
E21: =InpC!E$69 -> Semi annual period in a year | F21: =InpC!F$69 -> 2 | G21: =InpC!G$69 -> periods
E22: Electricity price - semi | F22: =F20 / F21 -> 20 | G22: EUR k
E24: =E$22 -> Electricity price - semi | F24: =F$22 -> 20 | G24: EUR k
E25: =Esc!E$14 -> CPI escalation factor | F25: =Esc!F$14 -> 0 | G25: =Esc!G$14 -> factor | H25: =Esc!H$14 -> 0 | I25: =Esc!I$14 -> 0 | J25: =Esc!J$14 -> 1 | K25: =Esc!K$14 -> 1 | L25: =Esc!L$14 -> 1.025 | M25: =Esc!M$14 -> 1.025 | N25: =Esc!N$14 -> 1.050625 | O25: =Esc!O$14 -> 1.050625 | P25: =Esc!P$14 -> 1.076890625 | Q25: =Esc!Q$14 -> 1.076890625 | R25: =Esc!R$14 -> 1.103812891 | S25: =Esc!S$14 -> 1.103812891 | T25: =Esc!T$14 -> 1.131408213 | U25: =Esc!U$14 -> 1.131408213 | V25: =Esc!V$14 -> 1.159693418 | W25: =Esc!W$14 -> 1.159693418 | X25: =Esc!X$14 -> 1.188685754 | Y25: =Esc!Y$14 -> 1.188685754 | Z25: =Esc!Z$14 -> 1.218402898 | AA25: =Esc!AA$14 -> 1.218402898 | AB25: =Esc!AB$14 -> 1.24886297 | AC25: =Esc!AC$14 -> 1.24886297 | AD25: =Esc!AD$14 -> 1.280084544 | AE25: =Esc!AE$14 -> 1.280084544 | AF25: =Esc!AF$14 -> 1.312086658 | AG25: =Esc!AG$14 -> 1.312086658 | AH25: =Esc!AH$14 -> 1.344888824 | AI25: =Esc!AI$14 -> 1.344888824 | AJ25: =Esc!AJ$14 -> 1.378511045 | AK25: =Esc!AK$14 -> 1.378511045 | AL25: =Esc!AL$14 -> 1.412973821 | AM25: =Esc!AM$14 -> 1.412973821 | AN25: =Esc!AN$14 -> 1.448298166 | AO25: =Esc!AO$14 -> 1.448298166 | AP25: =Esc!AP$14 -> 1.484505621 | AQ25: =Esc!AQ$14 -> 1.484505621 | AR25: =Esc!AR$14 -> 1.521618261 | AS25: =Esc!AS$14 -> 1.521618261 | AT25: =Esc!AT$14 -> 1.559658718 | AU25: =Esc!AU$14 -> 1.559658718 | AV25: =Esc!AV$14 -> 1.598650186 | AW25: =Esc!AW$14 -> 1.598650186 | AX25: =Esc!AX$14 -> 1.63861644 | AY25: =Esc!AY$14 -> 1.63861644 | AZ25: =Esc!AZ$14 -> 1.679581851 | BA25: =Esc!BA$14 -> 1.679581851 | BB25: =Esc!BB$14 -> 1.721571398 | BC25: =Esc!BC$14 -> 1.721571398 | BD25: =Esc!BD$14 -> 1.764610683 | BE25: =Esc!BE$14 -> 1.764610683 | BF25: =Esc!BF$14 -> 1.80872595 | BG25: =Esc!BG$14 -> 1.80872595 | BH25: =Esc!BH$14 -> 1.853944098 | BI25: =Esc!BI$14 -> 1.853944098 | BJ25: =Esc!BJ$14 -> 1.900292701 | BK25: =Esc!BK$14 -> 1.900292701 | BL25: =Esc!BL$14 -> 1.947800018 | BM25: =Esc!BM$14 -> 1.947800018 | BN25: =Esc!BN$14 -> 1.996495019 | BO25: =Esc!BO$14 -> 1.996495019 | BP25: =Esc!BP$14 -> 2.046407394 | BQ25: =Esc!BQ$14 -> 2.046407394 | BR25: =Esc!BR$14 -> 2.097567579 | BS25: =Esc!BS$14 -> 2.097567579 | BT25: =Esc!BT$14 -> 2.150006769 | BU25: =Esc!BU$14 -> 2.150006769 | BV25: =Esc!BV$14 -> 2.203756938 | BW25: =Esc!BW$14 -> 2.203756938 | BX25: =Esc!BX$14 -> 2.258850861 | BY25: =Esc!BY$14 -> 2.258850861 | BZ25: =Esc!BZ$14 -> 2.315322133
E26: =Time!E$100 -> Operations period PPF | F26: =Time!F$100 -> 0 | G26: =Time!G$100 -> factor | H26: =Time!H$100 -> 60 | I26: =Time!I$100 -> 0 | J26: =Time!J$100 -> 0 | K26: =Time!K$100 -> 0 | L26: =Time!L$100 -> 0 | M26: =Time!M$100 -> 0 | N26: =Time!N$100 -> 0 | O26: =Time!O$100 -> 0 | P26: =Time!P$100 -> 0 | Q26: =Time!Q$100 -> 1 | R26: =Time!R$100 -> 1 | S26: =Time!S$100 -> 1 | T26: =Time!T$100 -> 1 | U26: =Time!U$100 -> 1 | V26: =Time!V$100 -> 1 | W26: =Time!W$100 -> 1 | X26: =Time!X$100 -> 1 | Y26: =Time!Y$100 -> 1 | Z26: =Time!Z$100 -> 1 | AA26: =Time!AA$100 -> 1 | AB26: =Time!AB$100 -> 1 | AC26: =Time!AC$100 -> 1 | AD26: =Time!AD$100 -> 1 | AE26: =Time!AE$100 -> 1 | AF26: =Time!AF$100 -> 1 | AG26: =Time!AG$100 -> 1 | AH26: =Time!AH$100 -> 1 | AI26: =Time!AI$100 -> 1 | AJ26: =Time!AJ$100 -> 1 | AK26: =Time!AK$100 -> 1 | AL26: =Time!AL$100 -> 1 | AM26: =Time!AM$100 -> 1 | AN26: =Time!AN$100 -> 1 | AO26: =Time!AO$100 -> 1 | AP26: =Time!AP$100 -> 1 | AQ26: =Time!AQ$100 -> 1 | AR26: =Time!AR$100 -> 1 | AS26: =Time!AS$100 -> 1 | AT26: =Time!AT$100 -> 1 | AU26: =Time!AU$100 -> 1 | AV26: =Time!AV$100 -> 1 | AW26: =Time!AW$100 -> 1 | AX26: =Time!AX$100 -> 1 | AY26: =Time!AY$100 -> 1 | AZ26: =Time!AZ$100 -> 1 | BA26: =Time!BA$100 -> 1 | BB26: =Time!BB$100 -> 1 | BC26: =Time!BC$100 -> 1 | BD26: =Time!BD$100 -> 1 | BE26: =Time!BE$100 -> 1 | BF26: =Time!BF$100 -> 1 | BG26: =Time!BG$100 -> 1 | BH26: =Time!BH$100 -> 1 | BI26: =Time!BI$100 -> 1 | BJ26: =Time!BJ$100 -> 1 | BK26: =Time!BK$100 -> 1 | BL26: =Time!BL$100 -> 1 | BM26: =Time!BM$100 -> 1 | BN26: =Time!BN$100 -> 1 | BO26: =Time!BO$100 -> 1 | BP26: =Time!BP$100 -> 1 | BQ26: =Time!BQ$100 -> 1 | BR26: =Time!BR$100 -> 1 | BS26: =Time!BS$100 -> 1 | BT26: =Time!BT$100 -> 1 | BU26: =Time!BU$100 -> 1 | BV26: =Time!BV$100 -> 1 | BW26: =Time!BW$100 -> 1 | BX26: =Time!BX$100 -> 1 | BY26: =Time!BY$100 -> 0 | BZ26: =Time!BZ$100 -> 0
E27: Electricity price | G27: EUR k | J27: =$F24 * J25 * J26 -> 0 | K27: =$F24 * K25 * K26 -> 0 | L27: =$F24 * L25 * L26 -> 0 | M27: =$F24 * M25 * M26 -> 0 | N27: =$F24 * N25 * N26 -> 0 | O27: =$F24 * O25 * O26 -> 0 | P27: =$F24 * P25 * P26 -> 0 | Q27: =$F24 * Q25 * Q26 -> 21.5378125 | R27: =$F24 * R25 * R26 -> 22.07625781 | S27: =$F24 * S25 * S26 -> 22.07625781 | T27: =$F24 * T25 * T26 -> 22.62816426 | U27: =$F24 * U25 * U26 -> 22.62816426 | V27: =$F24 * V25 * V26 -> 23.19386836 | W27: =$F24 * W25 * W26 -> 23.19386836 | X27: =$F24 * X25 * X26 -> 23.77371507 | Y27: =$F24 * Y25 * Y26 -> 23.77371507 | Z27: =$F24 * Z25 * Z26 -> 24.36805795 | AA27: =$F24 * AA25 * AA26 -> 24.36805795 | AB27: =$F24 * AB25 * AB26 -> 24.9772594 | AC27: =$F24 * AC25 * AC26 -> 24.9772594 | AD27: =$F24 * AD25 * AD26 -> 25.60169088 | AE27: =$F24 * AE25 * AE26 -> 25.60169088 | AF27: =$F24 * AF25 * AF26 -> 26.24173316 | AG27: =$F24 * AG25 * AG26 -> 26.24173316 | AH27: =$F24 * AH25 * AH26 -> 26.89777648 | AI27: =$F24 * AI25 * AI26 -> 26.89777648 | AJ27: =$F24 * AJ25 * AJ26 -> 27.5702209 | AK27: =$F24 * AK25 * AK26 -> 27.5702209 | AL27: =$F24 * AL25 * AL26 -> 28.25947642 | AM27: =$F24 * AM25 * AM26 -> 28.25947642 | AN27: =$F24 * AN25 * AN26 -> 28.96596333 | AO27: =$F24 * AO25 * AO26 -> 28.96596333 | AP27: =$F24 * AP25 * AP26 -> 29.69011241 | AQ27: =$F24 * AQ25 * AQ26 -> 29.69011241 | AR27: =$F24 * AR25 * AR26 -> 30.43236522 | AS27: =$F24 * AS25 * AS26 -> 30.43236522 | AT27: =$F24 * AT25 * AT26 -> 31.19317435 | AU27: =$F24 * AU25 * AU26 -> 31.19317435 | AV27: =$F24 * AV25 * AV26 -> 31.97300371 | AW27: =$F24 * AW25 * AW26 -> 31.97300371 | AX27: =$F24 * AX25 * AX26 -> 32.77232881 | AY27: =$F24 * AY25 * AY26 -> 32.77232881 | AZ27: =$F24 * AZ25 * AZ26 -> 33.59163703 | BA27: =$F24 * BA25 * BA26 -> 33.59163703 | BB27: =$F24 * BB25 * BB26 -> 34.43142795 | BC27: =$F24 * BC25 * BC26 -> 34.43142795 | BD27: =$F24 * BD25 * BD26 -> 35.29221365 | BE27: =$F24 * BE25 * BE26 -> 35.29221365 | BF27: =$F24 * BF25 * BF26 -> 36.17451899 | BG27: =$F24 * BG25 * BG26 -> 36.17451899 | BH27: =$F24 * BH25 * BH26 -> 37.07888197 | BI27: =$F24 * BI25 * BI26 -> 37.07888197 | BJ27: =$F24 * BJ25 * BJ26 -> 38.00585402 | BK27: =$F24 * BK25 * BK26 -> 38.00585402 | BL27: =$F24 * BL25 * BL26 -> 38.95600037 | BM27: =$F24 * BM25 * BM26 -> 38.95600037 | BN27: =$F24 * BN25 * BN26 -> 39.92990038 | BO27: =$F24 * BO25 * BO26 -> 39.92990038 | BP27: =$F24 * BP25 * BP26 -> 40.92814788 | BQ27: =$F24 * BQ25 * BQ26 -> 40.92814788 | BR27: =$F24 * BR25 * BR26 -> 41.95135158 | BS27: =$F24 * BS25 * BS26 -> 41.95135158 | BT27: =$F24 * BT25 * BT26 -> 43.00013537 | BU27: =$F24 * BU25 * BU26 -> 43.00013537 | BV27: =$F24 * BV25 * BV26 -> 44.07513876 | BW27: =$F24 * BW25 * BW26 -> 44.07513876 | BX27: =$F24 * BX25 * BX26 -> 45.17701722 | BY27: =$F24 * BY25 * BY26 -> 0 | BZ27: =$F24 * BZ25 * BZ26 -> 0
B29: Electricity sales
E30: =E$17 -> Net energy production | F30: =F$17 -> 0 | G30: MWh | H30: 47869.38957 | I30: 0 | J30: 0 | K30: 0 | L30: 0 | M30: 0 | N30: 0 | O30: 0 | P30: 0 | Q30: 538.4453125 | R30: 551.9064453 | S30: 551.9064453 | T30: 565.7041064 | U30: 565.7041064 | V30: 579.8467091 | W30: 579.8467091 | X30: 594.3428768 | Y30: 594.3428768 | Z30: 609.2014488 | AA30: 609.2014488 | AB30: 624.431485 | AC30: 624.431485 | AD30: 640.0422721 | AE30: 640.0422721 | AF30: 656.0433289 | AG30: 656.0433289 | AH30: 672.4444121 | AI30: 672.4444121 | AJ30: 689.2555224 | AK30: 689.2555224 | AL30: 706.4869105 | AM30: 706.4869105 | AN30: 724.1490832 | AO30: 724.1490832 | AP30: 742.2528103 | AQ30: 742.2528103 | AR30: 760.8091306 | AS30: 760.8091306 | AT30: 779.8293589 | AU30: 779.8293589 | AV30: 799.3250928 | AW30: 799.3250928 | AX30: 819.3082201 | AY30: 819.3082201 | AZ30: 839.7909256 | BA30: 839.7909256 | BB30: 860.7856988 | BC30: 860.7856988 | BD30: 882.3053413 | BE30: 882.3053413 | BF30: 904.3629748 | BG30: 904.3629748 | BH30: 926.9720492 | BI30: 926.9720492 | BJ30: 950.1463504 | BK30: 950.1463504 | BL30: 973.9000091 | BM30: 973.9000091 | BN30: 998.2475094 | BO30: 998.2475094 | BP30: 1023.203697 | BQ30: 1023.203697 | BR30: =BR$17 -> 1048.78379 | BS30: 1048.78379 | BT30: 1075.003384 | BU30: 1075.003384 | BV30: 1101.878469 | BW30: 1101.878469 | BX30: 1129.425431 | BY30: 0 | BZ30: 0
E31: =E$27 -> Electricity price | F31: =F$27 -> 0 | G31: EUR k | H31: 0 | I31: 0 | J31: 0 | K31: 0 | L31: 0 | M31: 0 | N31: 0 | O31: 0 | P31: 0 | Q31: 21.5378125 | R31: 22.07625781 | S31: 22.07625781 | T31: 22.62816426 | U31: 22.62816426 | V31: 23.19386836 | W31: 23.19386836 | X31: 23.77371507 | Y31: 23.77371507 | Z31: 24.36805795 | AA31: 24.36805795 | AB31: 24.9772594 | AC31: 24.9772594 | AD31: 25.60169088 | AE31: 25.60169088 | AF31: 26.24173316 | AG31: 26.24173316 | AH31: 26.89777648 | AI31: 26.89777648 | AJ31: 27.5702209 | AK31: 27.5702209 | AL31: 28.25947642 | AM31: 28.25947642 | AN31: 28.96596333 | AO31: 28.96596333 | AP31: 29.69011241 | AQ31: 29.69011241 | AR31: 30.43236522 | AS31: 30.43236522 | AT31: 31.19317435 | AU31: 31.19317435 | AV31: 31.97300371 | AW31: 31.97300371 | AX31: 32.77232881 | AY31: 32.77232881 | AZ31: 33.59163703 | BA31: 33.59163703 | BB31: 34.43142795 | BC31: 34.43142795 | BD31: 35.29221365 | BE31: 35.29221365 | BF31: 36.17451899 | BG31: 36.17451899 | BH31: 37.07888197 | BI31: 37.07888197 | BJ31: 38.00585402 | BK31: 38.00585402 | BL31: 38.95600037 | BM31: 38.95600037 | BN31: 39.92990038 | BO31: 39.92990038 | BP31: 40.92814788 | BQ31: 40.92814788 | BR31: =BR$27 -> 41.95135158 | BS31: 41.95135158 | BT31: 43.00013537 | BU31: 43.00013537 | BV31: 44.07513876 | BW31: 44.07513876 | BX31: 45.17701722 | BY31: 0 | BZ31: 0
E32: Electricity sales | F32: PL | G32: EUR k | H32: =SUM(J32:BZ32) -> 1597042.464 | J32: =J30 * J31 -> 0 | K32: 0 | L32: 0 | M32: 0 | N32: 0 | O32: 0 | P32: 0 | Q32: 11596.93418 | R32: 12184.02898 | S32: 12184.02898 | T32: 12800.84544 | U32: 12800.84544 | V32: 13448.88824 | W32: 13448.88824 | X32: 14129.73821 | Y32: 14129.73821 | Z32: 14845.05621 | AA32: 14845.05621 | AB32: 15596.58718 | AC32: 15596.58718 | AD32: 16386.1644 | AE32: 16386.1644 | AF32: 17215.71398 | AG32: 17215.71398 | AH32: 18087.2595 | AI32: 18087.2595 | AJ32: 19002.92701 | AK32: 19002.92701 | AL32: 19964.95019 | AM32: 19964.95019 | AN32: 20975.67579 | AO32: 20975.67579 | AP32: =AP30 * AP31 -> 22037.56938 | AQ32: 22037.56938 | AR32: 23153.22133 | AS32: 23153.22133 | AT32: 24325.35316 | AU32: 24325.35316 | AV32: 25556.82416 | AW32: 25556.82416 | AX32: 26850.63838 | AY32: 26850.63838 | AZ32: 28209.95195 | BA32: 28209.95195 | BB32: 29638.08077 | BC32: 29638.08077 | BD32: 31138.50861 | BE32: 31138.50861 | BF32: 32714.89561 | BG32: 32714.89561 | BH32: 34371.0872 | BI32: 34371.0872 | BJ32: 36111.12349 | BK32: 36111.12349 | BL32: 37939.24911 | BM32: 37939.24911 | BN32: 39859.9236 | BO32: 39859.9236 | BP32: 41877.83223 | BQ32: 41877.83223 | BR32: 43997.89749 | BS32: 43997.89749 | BT32: 46225.29105 | BU32: 46225.29105 | BV32: =BV30 * BV31 -> 48565.44641 | BW32: 48565.44641 | BX32: 51024.07213 | BY32: 0 | BZ32: 0

Sheet OpCost
A1: =RIGHT(CELL("filename", $A$1), LEN(CELL("filename", $A$1)) - SEARCH("]", CELL("filename", $A$1))) -> OpCost
E2: =Time!E$21 -> Model period ending | J2: =Time!J$21 -> 2016-06-30 | K2: =Time!K$21 -> 2016-12-31 | L2: =Time!L$21 -> 2017-06-30 | M2: =Time!M$21 -> 2017-12-31 | N2: =Time!N$21 -> 2018-06-30 | O2: =Time!O$21 -> 2018-12-31 | P2: =Time!P$21 -> 2019-06-30 | Q2: =Time!Q$21 -> 2019-12-31 | R2: =Time!R$21 -> 2020-06-30 | S2: =Time!S$21 -> 2020-12-31 | T2: =Time!T$21 -> 2021-06-30 | U2: =Time!U$21 -> 2021-12-31 | V2: =Time!V$21 -> 2022-06-30 | W2: =Time!W$21 -> 2022-12-31 | X2: =Time!X$21 -> 2023-06-30 | Y2: =Time!Y$21 -> 2023-12-31 | Z2: =Time!Z$21 -> 2024-06-30 | AA2: =Time!AA$21 -> 2024-12-31 | AB2: =Time!AB$21 -> 2025-06-30 | AC2: =Time!AC$21 -> 2025-12-31 | AD2: =Time!AD$21 -> 2026-06-30 | AE2: =Time!AE$21 -> 2026-12-31 | AF2: =Time!AF$21 -> 2027-06-30 | AG2: =Time!AG$21 -> 2027-12-31 | AH2: =Time!AH$21 -> 2028-06-30 | AI2: =Time!AI$21 -> 2028-12-31 | AJ2: =Time!AJ$21 -> 2029-06-30 | AK2: =Time!AK$21 -> 2029-12-31 | AL2: =Time!AL$21 -> 2030-06-30 | AM2: =Time!AM$21 -> 2030-12-31 | AN2: =Time!AN$21 -> 2031-06-30 | AO2: =Time!AO$21 -> 2031-12-31 | AP2: =Time!AP$21 -> 2032-06-30 | AQ2: =Time!AQ$21 -> 2032-12-31 | AR2: =Time!AR$21 -> 2033-06-30 | AS2: =Time!AS$21 -> 2033-12-31 | AT2: =Time!AT$21 -> 2034-06-30 | AU2: =Time!AU$21 -> 2034-12-31 | AV2: =Time!AV$21 -> 2035-06-30 | AW2: =Time!AW$21 -> 2035-12-31 | AX2: =Time!AX$21 -> 2036-06-30 | AY2: =Time!AY$21 -> 2036-12-31 | AZ2: =Time!AZ$21 -> 2037-06-30 | BA2: =Time!BA$21 -> 2037-12-31 | BB2: =Time!BB$21 -> 2038-06-30 | BC2: =Time!BC$21 -> 2038-12-31 | BD2: =Time!BD$21 -> 2039-06-30 | BE2: =Time!BE$21 -> 2039-12-31 | BF2: =Time!BF$21 -> 2040-06-30 | BG2: =Time!BG$21 -> 2040-12-31 | BH2: =Time!BH$21 -> 2041-06-30 | BI2: =Time!BI$21 -> 2041-12-31 | BJ2: =Time!BJ$21 -> 2042-06-30 | BK2: =Time!BK$21 -> 2042-12-31 | BL2: =Time!BL$21 -> 2043-06-30 | BM2: =Time!BM$21 -> 2043-12-31 | BN2: =Time!BN$21 -> 2044-06-30 | BO2: =Time!BO$21 -> 2044-12-31 | BP2: =Time!BP$21 -> 2045-06-30 | BQ2: =Time!BQ$21 -> 2045-12-31 | BR2: =Time!BR$21 -> 2046-06-30 | BS2: =Time!BS$21 -> 2046-12-31 | BT2: =Time!BT$21 -> 2047-06-30 | BU2: =Time!BU$21 -> 2047-12-31 | BV2: =Time!BV$21 -> 2048-06-30 | BW2: =Time!BW$21 -> 2048-12-31 | BX2: =Time!BX$21 -> 2049-06-30 | BY2: =Time!BY$21 -> 2049-12-31 | BZ2: =Time!BZ$21 -> 2050-06-30
E3: =Time!E$108 -> Actual vs forecast | J3: =Time!J$108 -> Fin Close | K3: =Time!K$108 -> Construction | L3: =Time!L$108 -> Construction | M3: =Time!M$108 -> Construction | N3: =Time!N$108 -> Construction | O3: =Time!O$108 -> Construction | P3: =Time!P$108 -> Construction | Q3: =Time!Q$108 -> Operations | R3: =Time!R$108 -> Operations | S3: =Time!S$108 -> Operations | T3: =Time!T$108 -> Operations | U3: =Time!U$108 -> Operations | V3: =Time!V$108 -> Operations | W3: =Time!W$108 -> Operations | X3: =Time!X$108 -> Operations | Y3: =Time!Y$108 -> Operations | Z3: =Time!Z$108 -> Operations | AA3: =Time!AA$108 -> Operations | AB3: =Time!AB$108 -> Operations | AC3: =Time!AC$108 -> Operations | AD3: =Time!AD$108 -> Operations | AE3: =Time!AE$108 -> Operations | AF3: =Time!AF$108 -> Operations | AG3: =Time!AG$108 -> Operations | AH3: =Time!AH$108 -> Operations | AI3: =Time!AI$108 -> Operations | AJ3: =Time!AJ$108 -> Operations | AK3: =Time!AK$108 -> Operations | AL3: =Time!AL$108 -> Operations | AM3: =Time!AM$108 -> Operations | AN3: =Time!AN$108 -> Operations | AO3: =Time!AO$108 -> Operations | AP3: =Time!AP$108 -> Operations | AQ3: =Time!AQ$108 -> Operations | AR3: =Time!AR$108 -> Operations | AS3: =Time!AS$108 -> Operations | AT3: =Time!AT$108 -> Operations | AU3: =Time!AU$108 -> Operations | AV3: =Time!AV$108 -> Operations | AW3: =Time!AW$108 -> Operations | AX3: =Time!AX$108 -> Operations | AY3: =Time!AY$108 -> Operations | AZ3: =Time!AZ$108 -> Operations | BA3: =Time!BA$108 -> Operations | BB3: =Time!BB$108 -> Operations | BC3: =Time!BC$108 -> Operations | BD3: =Time!BD$108 -> Operations | BE3: =Time!BE$108 -> Operations | BF3: =Time!BF$108 -> Operations | BG3: =Time!BG$108 -> Operations | BH3: =Time!BH$108 -> Operations | BI3: =Time!BI$108 -> Operations | BJ3: =Time!BJ$108 -> Operations | BK3: =Time!BK$108 -> Operations | BL3: =Time!BL$108 -> Operations | BM3: =Time!BM$108 -> Operations | BN3: =Time!BN$108 -> Operations | BO3: =Time!BO$108 -> Operations | BP3: =Time!BP$108 -> Operations | BQ3: =Time!BQ$108 -> Operations | BR3: =Time!BR$108 -> Operations | BS3: =Time!BS$108 -> Operations | BT3: =Time!BT$108 -> Operations | BU3: =Time!BU$108 -> Operations | BV3: =Time!BV$108 -> Operations | BW3: =Time!BW$108 -> Operations | BX3: =Time!BX$108 -> Operations | BY3: =Time!BY$108 -> Post-Frcst | BZ3: =Time!BZ$108 -> Post-Frcst
E4: =Time!E$121 -> Financial year ending | J4: =Time!J$121 -> 2016 | K4: =Time!K$121 -> 2016 | L4: =Time!L$121 -> 2017 | M4: =Time!M$121 -> 2017 | N4: =Time!N$121 -> 2018 | O4: =Time!O$121 -> 2018 | P4: =Time!P$121 -> 2019 | Q4: =Time!Q$121 -> 2019 | R4: =Time!R$121 -> 2020 | S4: =Time!S$121 -> 2020 | T4: =Time!T$121 -> 2021 | U4: =Time!U$121 -> 2021 | V4: =Time!V$121 -> 2022 | W4: =Time!W$121 -> 2022 | X4: =Time!X$121 -> 2023 | Y4: =Time!Y$121 -> 2023 | Z4: =Time!Z$121 -> 2024 | AA4: =Time!AA$121 -> 2024 | AB4: =Time!AB$121 -> 2025 | AC4: =Time!AC$121 -> 2025 | AD4: =Time!AD$121 -> 2026 | AE4: =Time!AE$121 -> 2026 | AF4: =Time!AF$121 -> 2027 | AG4: =Time!AG$121 -> 2027 | AH4: =Time!AH$121 -> 2028 | AI4: =Time!AI$121 -> 2028 | AJ4: =Time!AJ$121 -> 2029 | AK4: =Time!AK$121 -> 2029 | AL4: =Time!AL$121 -> 2030 | AM4: =Time!AM$121 -> 2030 | AN4: =Time!AN$121 -> 2031 | AO4: =Time!AO$121 -> 2031 | AP4: =Time!AP$121 -> 2032 | AQ4: =Time!AQ$121 -> 2032 | AR4: =Time!AR$121 -> 2033 | AS4: =Time!AS$121 -> 2033 | AT4: =Time!AT$121 -> 2034 | AU4: =Time!AU$121 -> 2034 | AV4: =Time!AV$121 -> 2035 | AW4: =Time!AW$121 -> 2035 | AX4: =Time!AX$121 -> 2036 | AY4: =Time!AY$121 -> 2036 | AZ4: =Time!AZ$121 -> 2037 | BA4: =Time!BA$121 -> 2037 | BB4: =Time!BB$121 -> 2038 | BC4: =Time!BC$121 -> 2038 | BD4: =Time!BD$121 -> 2039 | BE4: =Time!BE$121 -> 2039 | BF4: =Time!BF$121 -> 2040 | BG4: =Time!BG$121 -> 2040 | BH4: =Time!BH$121 -> 2041 | BI4: =Time!BI$121 -> 2041 | BJ4: =Time!BJ$121 -> 2042 | BK4: =Time!BK$121 -> 2042 | BL4: =Time!BL$121 -> 2043 | BM4: =Time!BM$121 -> 2043 | BN4: =Time!BN$121 -> 2044 | BO4: =Time!BO$121 -> 2044 | BP4: =Time!BP$121 -> 2045 | BQ4: =Time!BQ$121 -> 2045 | BR4: =Time!BR$121 -> 2046 | BS4: =Time!BS$121 -> 2046 | BT4: =Time!BT$121 -> 2047 | BU4: =Time!BU$121 -> 2047 | BV4: =Time!BV$121 -> 2048 | BW4: =Time!BW$121 -> 2048 | BX4: =Time!BX$121 -> 2049 | BY4: =Time!BY$121 -> 2049 | BZ4: =Time!BZ$121 -> 2050
E5: =Time!E$9 -> Model column counter | F5: Constant | G5: Unit | H5: Total | J5: =Time!J$9 -> 1 | K5: =Time!K$9 -> 2 | L5: =Time!L$9 -> 3 | M5: =Time!M$9 -> 4 | N5: =Time!N$9 -> 5 | O5: =Time!O$9 -> 6 | P5: =Time!P$9 -> 7 | Q5: =Time!Q$9 -> 8 | R5: =Time!R$9 -> 9 | S5: =Time!S$9 -> 10 | T5: =Time!T$9 -> 11 | U5: =Time!U$9 -> 12 | V5: =Time!V$9 -> 13 | W5: =Time!W$9 -> 14 | X5: =Time!X$9 -> 15 | Y5: =Time!Y$9 -> 16 | Z5: =Time!Z$9 -> 17 | AA5: =Time!AA$9 -> 18 | AB5: =Time!AB$9 -> 19 | AC5: =Time!AC$9 -> 20 | AD5: =Time!AD$9 -> 21 | AE5: =Time!AE$9 -> 22 | AF5: =Time!AF$9 -> 23 | AG5: =Time!AG$9 -> 24 | AH5: =Time!AH$9 -> 25 | AI5: =Time!AI$9 -> 26 | AJ5: =Time!AJ$9 -> 27 | AK5: =Time!AK$9 -> 28 | AL5: =Time!AL$9 -> 29 | AM5: =Time!AM$9 -> 30 | AN5: =Time!AN$9 -> 31 | AO5: =Time!AO$9 -> 32 | AP5: =Time!AP$9 -> 33 | AQ5: =Time!AQ$9 -> 34 | AR5: =Time!AR$9 -> 35 | AS5: =Time!AS$9 -> 36 | AT5: =Time!AT$9 -> 37 | AU5: =Time!AU$9 -> 38 | AV5: =Time!AV$9 -> 39 | AW5: =Time!AW$9 -> 40 | AX5: =Time!AX$9 -> 41 | AY5: =Time!AY$9 -> 42 | AZ5: =Time!AZ$9 -> 43 | BA5: =Time!BA$9 -> 44 | BB5: =Time!BB$9 -> 45 | BC5: =Time!BC$9 -> 46 | BD5: =Time!BD$9 -> 47 | BE5: =Time!BE$9 -> 48 | BF5: =Time!BF$9 -> 49 | BG5: =Time!BG$9 -> 50 | BH5: =Time!BH$9 -> 51 | BI5: =Time!BI$9 -> 52 | BJ5: =Time!BJ$9 -> 53 | BK5: =Time!BK$9 -> 54 | BL5: =Time!BL$9 -> 55 | BM5: =Time!BM$9 -> 56 | BN5: =Time!BN$9 -> 57 | BO5: =Time!BO$9 -> 58 | BP5: =Time!BP$9 -> 59 | BQ5: =Time!BQ$9 -> 60 | BR5: =Time!BR$9 -> 61 | BS5: =Time!BS$9 -> 62 | BT5: =Time!BT$9 -> 63 | BU5: =Time!BU$9 -> 64 | BV5: =Time!BV$9 -> 65 | BW5: =Time!BW$9 -> 66 | BX5: =Time!BX$9 -> 67 | BY5: =Time!BY$9 -> 68 | BZ5: =Time!BZ$9 -> 69
A7: OPERATING COST
B9: Land lease cost
E10: =InpC!E$42 -> Land lease cost | F10: =InpC!F$42 -> 3000000 | G10: =InpC!G$42 -> EUR / year
E11: =InpC!E$75 -> Conversion from EUR to EUR k | F11: =InpC!F$75 -> 1000 | G11: =InpC!G$75 -> EUR / EUR k
E12: =InpC!E$69 -> Semi annual period in a year | F12: =InpC!F$69 -> 2 | G12: =InpC!G$69 -> periods
E13: =Esc!E$14 -> CPI escalation factor | F13: =Esc!F$14 -> 0 | G13: =Esc!G$14 -> factor | H13: =Esc!H$14 -> 0 | I13: =Esc!I$14 -> 0 | J13: =Esc!J$14 -> 1 | K13: =Esc!K$14 -> 1 | L13: =Esc!L$14 -> 1.025 | M13: =Esc!M$14 -> 1.025 | N13: =Esc!N$14 -> 1.050625 | O13: =Esc!O$14 -> 1.050625 | P13: =Esc!P$14 -> 1.076890625 | Q13: =Esc!Q$14 -> 1.076890625 | R13: =Esc!R$14 -> 1.103812891 | S13: =Esc!S$14 -> 1.103812891 | T13: =Esc!T$14 -> 1.131408213 | U13: =Esc!U$14 -> 1.131408213 | V13: =Esc!V$14 -> 1.159693418 | W13: =Esc!W$14 -> 1.159693418 | X13: =Esc!X$14 -> 1.188685754 | Y13: =Esc!Y$14 -> 1.188685754 | Z13: =Esc!Z$14 -> 1.218402898 | AA13: =Esc!AA$14 -> 1.218402898 | AB13: =Esc!AB$14 -> 1.24886297 | AC13: =Esc!AC$14 -> 1.24886297 | AD13: =Esc!AD$14 -> 1.280084544 | AE13: =Esc!AE$14 -> 1.280084544 | AF13: =Esc!AF$14 -> 1.312086658 | AG13: =Esc!AG$14 -> 1.312086658 | AH13: =Esc!AH$14 -> 1.344888824 | AI13: =Esc!AI$14 -> 1.344888824 | AJ13: =Esc!AJ$14 -> 1.378511045 | AK13: =Esc!AK$14 -> 1.378511045 | AL13: =Esc!AL$14 -> 1.412973821 | AM13: =Esc!AM$14 -> 1.412973821 | AN13: =Esc!AN$14 -> 1.448298166 | AO13: =Esc!AO$14 -> 1.448298166 | AP13: =Esc!AP$14 -> 1.484505621 | AQ13: =Esc!AQ$14 -> 1.484505621 | AR13: =Esc!AR$14 -> 1.521618261 | AS13: =Esc!AS$14 -> 1.521618261 | AT13: =Esc!AT$14 -> 1.559658718 | AU13: =Esc!AU$14 -> 1.559658718 | AV13: =Esc!AV$14 -> 1.598650186 | AW13: =Esc!AW$14 -> 1.598650186 | AX13: =Esc!AX$14 -> 1.63861644 | AY13: =Esc!AY$14 -> 1.63861644 | AZ13: =Esc!AZ$14 -> 1.679581851 | BA13: =Esc!BA$14 -> 1.679581851 | BB13: =Esc!BB$14 -> 1.721571398 | BC13: =Esc!BC$14 -> 1.721571398 | BD13: =Esc!BD$14 -> 1.764610683 | BE13: =Esc!BE$14 -> 1.764610683 | BF13: =Esc!BF$14 -> 1.80872595 | BG13: =Esc!BG$14 -> 1.80872595 | BH13: =Esc!BH$14 -> 1.853944098 | BI13: =Esc!BI$14 -> 1.853944098 | BJ13: =Esc!BJ$14 -> 1.900292701 | BK13: =Esc!BK$14 -> 1.900292701 | BL13: =Esc!BL$14 -> 1.947800018 | BM13: =Esc!BM$14 -> 1.947800018 | BN13: =Esc!BN$14 -> 1.996495019 | BO13: =Esc!BO$14 -> 1.996495019 | BP13: =Esc!BP$14 -> 2.046407394 | BQ13: =Esc!BQ$14 -> 2.046407394 | BR13: =Esc!BR$14 -> 2.097567579 | BS13: =Esc!BS$14 -> 2.097567579 | BT13: =Esc!BT$14 -> 2.150006769 | BU13: =Esc!BU$14 -> 2.150006769 | BV13: =Esc!BV$14 -> 2.203756938 | BW13: =Esc!BW$14 -> 2.203756938 | BX13: =Esc!BX$14 -> 2.258850861 | BY13: =Esc!BY$14 -> 2.258850861 | BZ13: =Esc!BZ$14 -> 2.315322133
E14: =Time!E$100 -> Operations period PPF | F14: =Time!F$100 -> 0 | G14: =Time!G$100 -> factor | H14: =Time!H$100 -> 60 | I14: =Time!I$100 -> 0 | J14: =Time!J$100 -> 0 | K14: =Time!K$100 -> 0 | L14: =Time!L$100 -> 0 | M14: =Time!M$100 -> 0 | N14: =Time!N$100 -> 0 | O14: =Time!O$100 -> 0 | P14: =Time!P$100 -> 0 | Q14: =Time!Q$100 -> 1 | R14: =Time!R$100 -> 1 | S14: =Time!S$100 -> 1 | T14: =Time!T$100 -> 1 | U14: =Time!U$100 -> 1 | V14: =Time!V$100 -> 1 | W14: =Time!W$100 -> 1 | X14: =Time!X$100 -> 1 | Y14: =Time!Y$100 -> 1 | Z14: =Time!Z$100 -> 1 | AA14: =Time!AA$100 -> 1 | AB14: =Time!AB$100 -> 1 | AC14: =Time!AC$100 -> 1 | AD14: =Time!AD$100 -> 1 | AE14: =Time!AE$100 -> 1 | AF14: =Time!AF$100 -> 1 | AG14: =Time!AG$100 -> 1 | AH14: =Time!AH$100 -> 1 | AI14: =Time!AI$100 -> 1 | AJ14: =Time!AJ$100 -> 1 | AK14: =Time!AK$100 -> 1 | AL14: =Time!AL$100 -> 1 | AM14: =Time!AM$100 -> 1 | AN14: =Time!AN$100 -> 1 | AO14: =Time!AO$100 -> 1 | AP14: =Time!AP$100 -> 1 | AQ14: =Time!AQ$100 -> 1 | AR14: =Time!AR$100 -> 1 | AS14: =Time!AS$100 -> 1 | AT14: =Time!AT$100 -> 1 | AU14: =Time!AU$100 -> 1 | AV14: =Time!AV$100 -> 1 | AW14: =Time!AW$100 -> 1 | AX14: =Time!AX$100 -> 1 | AY14: =Time!AY$100 -> 1 | AZ14: =Time!AZ$100 -> 1 | BA14: =Time!BA$100 -> 1 | BB14: =Time!BB$100 -> 1 | BC14: =Time!BC$100 -> 1 | BD14: =Time!BD$100 -> 1 | BE14: =Time!BE$100 -> 1 | BF14: =Time!BF$100 -> 1 | BG14: =Time!BG$100 -> 1 | BH14: =Time!BH$100 -> 1 | BI14: =Time!BI$100 -> 1 | BJ14: =Time!BJ$100 -> 1 | BK14: =Time!BK$100 -> 1 | BL14: =Time!BL$100 -> 1 | BM14: =Time!BM$100 -> 1 | BN14: =Time!BN$100 -> 1 | BO14: =Time!BO$100 -> 1 | BP14: =Time!BP$100 -> 1 | BQ14: =Time!BQ$100 -> 1 | BR14: =Time!BR$100 -> 1 | BS14: =Time!BS$100 -> 1 | BT14: =Time!BT$100 -> 1 | BU14: =Time!BU$100 -> 1 | BV14: =Time!BV$100 -> 1 | BW14: =Time!BW$100 -> 1 | BX14: =Time!BX$100 -> 1 | BY14: =Time!BY$100 -> 0 | BZ14: =Time!BZ$100 -> 0
E15: Land lease cost POS | G15: EUR k | H15: =SUM(J15:BZ15) -> 143608.1687 | J15: =($F10 * J13 * J14) / ($F11 * $F12) -> 0 | K15: =($F10 * K13 * K14) / ($F11 * $F12) -> 0 | L15: 0 | M15: 0 | N15: 0 | O15: 0 | P15: 0 | Q15: 1615.335937 | R15: 1655.719336 | S15: 1655.719336 | T15: 1697.112319 | U15: 1697.112319 | V15: 1739.540127 | W15: 1739.540127 | X15: 1783.028631 | Y15: 1783.028631 | Z15: 1827.604346 | AA15: 1827.604346 | AB15: 1873.294455 | AC15: 1873.294455 | AD15: 1920.126816 | AE15: 1920.126816 | AF15: 1968.129987 | AG15: 1968.129987 | AH15: 2017.333236 | AI15: 2017.333236 | AJ15: 2067.766567 | AK15: 2067.766567 | AL15: 2119.460731 | AM15: 2119.460731 | AN15: 2172.44725 | AO15: 2172.44725 | AP15: 2226.758431 | AQ15: 2226.758431 | AR15: 2282.427392 | AS15: 2282.427392 | AT15: 2339.488077 | AU15: 2339.488077 | AV15: 2397.975278 | AW15: 2397.975278 | AX15: 2457.92466 | AY15: 2457.92466 | AZ15: 2519.372777 | BA15: 2519.372777 | BB15: 2582.357096 | BC15: 2582.357096 | BD15: 2646.916024 | BE15: 2646.916024 | BF15: 2713.088924 | BG15: 2713.088924 | BH15: 2780.916147 | BI15: 2780.916147 | BJ15: 2850.439051 | BK15: 2850.439051 | BL15: 2921.700027 | BM15: 2921.700027 | BN15: 2994.742528 | BO15: 2994.742528 | BP15: 3069.611091 | BQ15: 3069.611091 | BR15: 3146.351369 | BS15: 3146.351369 | BT15: 3225.010153 | BU15: 3225.010153 | BV15: 3305.635407 | BW15: =($F10 * BW13 * BW14) / ($F11 * $F12) -> 3305.635407 | BX15: 3388.276292 | BY15: 0 | BZ15: 0
E16: =LEFT(E15, LEN(E15) - 4) -> Land lease cost | F16: PL | G16: EUR k | H16: =SUM(J16:BZ16) -> -143608.1687 | J16: =-1 * J15 -> 0 | K16: 0 | L16: 0 | M16: 0 | N16: 0 | O16: 0 | P16: 0 | Q16: -1615.335937 | R16: -1655.719336 | S16: -1655.719336 | T16: -1697.112319 | U16: -1697.112319 | V16: -1739.540127 | W16: -1739.540127 | X16: -1783.028631 | Y16: -1783.028631 | Z16: -1827.604346 | AA16: -1827.604346 | AB16: -1873.294455 | AC16: -1873.294455 | AD16: -1920.126816 | AE16: -1920.126816 | AF16: -1968.129987 | AG16: -1968.129987 | AH16: -2017.333236 | AI16: -2017.333236 | AJ16: -2067.766567 | AK16: -2067.766567 | AL16: -2119.460731 | AM16: -2119.460731 | AN16: -2172.44725 | AO16: -2172.44725 | AP16: =-1 * AP15 -> -2226.758431 | AQ16: -2226.758431 | AR16: -2282.427392 | AS16: -2282.427392 | AT16: -2339.488077 | AU16: -2339.488077 | AV16: -2397.975278 | AW16: -2397.975278 | AX16: -2457.92466 | AY16: -2457.92466 | AZ16: -2519.372777 | BA16: -2519.372777 | BB16: -2582.357096 | BC16: -2582.357096 | BD16: -2646.916024 | BE16: -2646.916024 | BF16: -2713.088924 | BG16: -2713.088924 | BH16: -2780.916147 | BI16: -2780.916147 | BJ16: -2850.439051 | BK16: -2850.439051 | BL16: -2921.700027 | BM16: -2921.700027 | BN16: -2994.742528 | BO16: -2994.742528 | BP16: -3069.611091 | BQ16: -3069.611091 | BR16: -3146.351369 | BS16: -3146.351369 | BT16: -3225.010153 | BU16: -3225.010153 | BV16: =-1 * BV15 -> -3305.635407 | BW16: -3305.635407 | BX16: -3388.276292 | BY16: 0 | BZ16: 0
B18: Maintenance Cost
E19: =Capex!E$22 -> Infrastructure cost | F19: =Capex!F$22 -> 200000 | G19: =Capex!G$22 -> EUR k
E20: =InpC!E$45 -> Maintenance cost % of infrastructure | F20: =InpC!F$45 -> 0.025 | G20: =InpC!G$45 -> % p.a.
E21: =InpC!E$69 -> Semi annual period in a year | F21: =InpC!F$69 -> 2 | G21: =InpC!G$69 -> periods
E22: =Esc!E$14 -> CPI escalation factor | F22: =Esc!F$14 -> 0 | G22: =Esc!G$14 -> factor | H22: =Esc!H$14 -> 0 | I22: =Esc!I$14 -> 0 | J22: =Esc!J$14 -> 1 | K22: =Esc!K$14 -> 1 | L22: =Esc!L$14 -> 1.025 | M22: =Esc!M$14 -> 1.025 | N22: =Esc!N$14 -> 1.050625 | O22: =Esc!O$14 -> 1.050625 | P22: =Esc!P$14 -> 1.076890625 | Q22: =Esc!Q$14 -> 1.076890625 | R22: =Esc!R$14 -> 1.103812891 | S22: =Esc!S$14 -> 1.103812891 | T22: =Esc!T$14 -> 1.131408213 | U22: =Esc!U$14 -> 1.131408213 | V22: =Esc!V$14 -> 1.159693418 | W22: =Esc!W$14 -> 1.159693418 | X22: =Esc!X$14 -> 1.188685754 | Y22: =Esc!Y$14 -> 1.188685754 | Z22: =Esc!Z$14 -> 1.218402898 | AA22: =Esc!AA$14 -> 1.218402898 | AB22: =Esc!AB$14 -> 1.24886297 | AC22: =Esc!AC$14 -> 1.24886297 | AD22: =Esc!AD$14 -> 1.280084544 | AE22: =Esc!AE$14 -> 1.280084544 | AF22: =Esc!AF$14 -> 1.312086658 | AG22: =Esc!AG$14 -> 1.312086658 | AH22: =Esc!AH$14 -> 1.344888824 | AI22: =Esc!AI$14 -> 1.344888824 | AJ22: =Esc!AJ$14 -> 1.378511045 | AK22: =Esc!AK$14 -> 1.378511045 | AL22: =Esc!AL$14 -> 1.412973821 | AM22: =Esc!AM$14 -> 1.412973821 | AN22: =Esc!AN$14 -> 1.448298166 | AO22: =Esc!AO$14 -> 1.448298166 | AP22: =Esc!AP$14 -> 1.484505621 | AQ22: =Esc!AQ$14 -> 1.484505621 | AR22: =Esc!AR$14 -> 1.521618261 | AS22: =Esc!AS$14 -> 1.521618261 | AT22: =Esc!AT$14 -> 1.559658718 | AU22: =Esc!AU$14 -> 1.559658718 | AV22: =Esc!AV$14 -> 1.598650186 | AW22: =Esc!AW$14 -> 1.598650186 | AX22: =Esc!AX$14 -> 1.63861644 | AY22: =Esc!AY$14 -> 1.63861644 | AZ22: =Esc!AZ$14 -> 1.679581851 | BA22: =Esc!BA$14 -> 1.679581851 | BB22: =Esc!BB$14 -> 1.721571398 | BC22: =Esc!BC$14 -> 1.721571398 | BD22: =Esc!BD$14 -> 1.764610683 | BE22: =Esc!BE$14 -> 1.764610683 | BF22: =Esc!BF$14 -> 1.80872595 | BG22: =Esc!BG$14 -> 1.80872595 | BH22: =Esc!BH$14 -> 1.853944098 | BI22: =Esc!BI$14 -> 1.853944098 | BJ22: =Esc!BJ$14 -> 1.900292701 | BK22: =Esc!BK$14 -> 1.900292701 | BL22: =Esc!BL$14 -> 1.947800018 | BM22: =Esc!BM$14 -> 1.947800018 | BN22: =Esc!BN$14 -> 1.996495019 | BO22: =Esc!BO$14 -> 1.996495019 | BP22: =Esc!BP$14 -> 2.046407394 | BQ22: =Esc!BQ$14 -> 2.046407394 | BR22: =Esc!BR$14 -> 2.097567579 | BS22: =Esc!BS$14 -> 2.097567579 | BT22: =Esc!BT$14 -> 2.150006769 | BU22: =Esc!BU$14 -> 2.150006769 | BV22: =Esc!BV$14 -> 2.203756938 | BW22: =Esc!BW$14 -> 2.203756938 | BX22: =Esc!BX$14 -> 2.258850861 | BY22: =Esc!BY$14 -> 2.258850861 | BZ22: =Esc!BZ$14 -> 2.315322133
E23: =Time!E$100 -> Operations period PPF | F23: =Time!F$100 -> 0 | G23: =Time!G$100 -> factor | H23: =Time!H$100 -> 60 | I23: =Time!I$100 -> 0 | J23: =Time!J$100 -> 0 | K23: =Time!K$100 -> 0 | L23: =Time!L$100 -> 0 | M23: =Time!M$100 -> 0 | N23: =Time!N$100 -> 0 | O23: =Time!O$100 -> 0 | P23: =Time!P$100 -> 0 | Q23: =Time!Q$100 -> 1 | R23: =Time!R$100 -> 1 | S23: =Time!S$100 -> 1 | T23: =Time!T$100 -> 1 | U23: =Time!U$100 -> 1 | V23: =Time!V$100 -> 1 | W23: =Time!W$100 -> 1 | X23: =Time!X$100 -> 1 | Y23: =Time!Y$100 -> 1 | Z23: =Time!Z$100 -> 1 | AA23: =Time!AA$100 -> 1 | AB23: =Time!AB$100 -> 1 | AC23: =Time!AC$100 -> 1 | AD23: =Time!AD$100 -> 1 | AE23: =Time!AE$100 -> 1 | AF23: =Time!AF$100 -> 1 | AG23: =Time!AG$100 -> 1 | AH23: =Time!AH$100 -> 1 | AI23: =Time!AI$100 -> 1 | AJ23: =Time!AJ$100 -> 1 | AK23: =Time!AK$100 -> 1 | AL23: =Time!AL$100 -> 1 | AM23: =Time!AM$100 -> 1 | AN23: =Time!AN$100 -> 1 | AO23: =Time!AO$100 -> 1 | AP23: =Time!AP$100 -> 1 | AQ23: =Time!AQ$100 -> 1 | AR23: =Time!AR$100 -> 1 | AS23: =Time!AS$100 -> 1 | AT23: =Time!AT$100 -> 1 | AU23: =Time!AU$100 -> 1 | AV23: =Time!AV$100 -> 1 | AW23: =Time!AW$100 -> 1 | AX23: =Time!AX$100 -> 1 | AY23: =Time!AY$100 -> 1 | AZ23: =Time!AZ$100 -> 1 | BA23: =Time!BA$100 -> 1 | BB23: =Time!BB$100 -> 1 | BC23: =Time!BC$100 -> 1 | BD23: =Time!BD$100 -> 1 | BE23: =Time!BE$100 -> 1 | BF23: =Time!BF$100 -> 1 | BG23: =Time!BG$100 -> 1 | BH23: =Time!BH$100 -> 1 | BI23: =Time!BI$100 -> 1 | BJ23: =Time!BJ$100 -> 1 | BK23: =Time!BK$100 -> 1 | BL23: =Time!BL$100 -> 1 | BM23: =Time!BM$100 -> 1 | BN23: =Time!BN$100 -> 1 | BO23: =Time!BO$100 -> 1 | BP23: =Time!BP$100 -> 1 | BQ23: =Time!BQ$100 -> 1 | BR23: =Time!BR$100 -> 1 | BS23: =Time!BS$100 -> 1 | BT23: =Time!BT$100 -> 1 | BU23: =Time!BU$100 -> 1 | BV23: =Time!BV$100 -> 1 | BW23: =Time!BW$100 -> 1 | BX23: =Time!BX$100 -> 1 | BY23: =Time!BY$100 -> 0 | BZ23: =Time!BZ$100 -> 0
E24: Maintenance cost POS | G24: EUR k | H24: =SUM(J24:BZ24) -> 239346.9478 | J24: =($F19 * $F20 * J22 * J23) / $F21 -> 0 | K24: =($F19 * $F20 * K22 * K23) / $F21 -> 0 | L24: 0 | M24: 0 | N24: 0 | O24: 0 | P24: 0 | Q24: 2692.226562 | R24: 2759.532227 | S24: 2759.532227 | T24: 2828.520532 | U24: 2828.520532 | V24: 2899.233546 | W24: 2899.233546 | X24: 2971.714384 | Y24: 2971.714384 | Z24: 3046.007244 | AA24: 3046.007244 | AB24: 3122.157425 | AC24: 3122.157425 | AD24: 3200.21136 | AE24: 3200.21136 | AF24: 3280.216645 | AG24: 3280.216645 | AH24: 3362.222061 | AI24: 3362.222061 | AJ24: 3446.277612 | AK24: 3446.277612 | AL24: 3532.434552 | AM24: 3532.434552 | AN24: 3620.745416 | AO24: 3620.745416 | AP24: 3711.264052 | AQ24: 3711.264052 | AR24: 3804.045653 | AS24: 3804.045653 | AT24: 3899.146794 | AU24: 3899.146794 | AV24: 3996.625464 | AW24: 3996.625464 | AX24: 4096.541101 | AY24: 4096.541101 | AZ24: 4198.954628 | BA24: 4198.954628 | BB24: 4303.928494 | BC24: 4303.928494 | BD24: 4411.526706 | BE24: 4411.526706 | BF24: 4521.814874 | BG24: 4521.814874 | BH24: 4634.860246 | BI24: 4634.860246 | BJ24: 4750.731752 | BK24: 4750.731752 | BL24: 4869.500046 | BM24: 4869.500046 | BN24: 4991.237547 | BO24: 4991.237547 | BP24: 5116.018486 | BQ24: 5116.018486 | BR24: 5243.918948 | BS24: 5243.918948 | BT24: 5375.016921 | BU24: 5375.016921 | BV24: 5509.392344 | BW24: =($F19 * $F20 * BW22 * BW23) / $F21 -> 5509.392344 | BX24: 5647.127153 | BY24: 0 | BZ24: 0
E25: =LEFT(E24, LEN(E24) - 4) -> Maintenance cost | F25: PL | G25: EUR k | H25: =SUM(J25:BZ25) -> -239346.9478 | J25: =-1 * J24 -> 0 | K25: 0 | L25: 0 | M25: 0 | N25: 0 | O25: 0 | P25: 0 | Q25: -2692.226562 | R25: -2759.532227 | S25: -2759.532227 | T25: -2828.520532 | U25: -2828.520532 | V25: -2899.233546 | W25: -2899.233546 | X25: -2971.714384 | Y25: -2971.714384 | Z25: -3046.007244 | AA25: -3046.007244 | AB25: -3122.157425 | AC25: -3122.157425 | AD25: -3200.21136 | AE25: -3200.21136 | AF25: -3280.216645 | AG25: -3280.216645 | AH25: -3362.222061 | AI25: -3362.222061 | AJ25: -3446.277612 | AK25: -3446.277612 | AL25: -3532.434552 | AM25: -3532.434552 | AN25: -3620.745416 | AO25: -3620.745416 | AP25: =-1 * AP24 -> -3711.264052 | AQ25: -3711.264052 | AR25: -3804.045653 | AS25: -3804.045653 | AT25: -3899.146794 | AU25: -3899.146794 | AV25: -3996.625464 | AW25: -3996.625464 | AX25: -4096.541101 | AY25: -4096.541101 | AZ25: -4198.954628 | BA25: -4198.954628 | BB25: -4303.928494 | BC25: -4303.928494 | BD25: -4411.526706 | BE25: -4411.526706 | BF25: -4521.814874 | BG25: -4521.814874 | BH25: -4634.860246 | BI25: -4634.860246 | BJ25: =-1 * BJ24 -> -4750.731752 | BK25: -4750.731752 | BL25: -4869.500046 | BM25: -4869.500046 | BN25: -4991.237547 | BO25: -4991.237547 | BP25: -5116.018486 | BQ25: -5116.018486 | BR25: -5243.918948 | BS25: =-1 * BS24 -> -5243.918948 | BT25: -5375.016921 | BU25: -5375.016921 | BV25: -5509.392344 | BW25: -5509.392344 | BX25: -5647.127153 | BY25: 0 | BZ25: 0
B27: Other cost
E28: =InpC!E$48 -> Other operational cost | F28: =InpC!F$48 -> 50000 | G28: =InpC!G$48 -> EUR / year
E29: =InpC!E$75 -> Conversion from EUR to EUR k | F29: =InpC!F$75 -> 1000 | G29: =InpC!G$75 -> EUR / EUR k
E30: =InpC!E$69 -> Semi annual period in a year | F30: =InpC!F$69 -> 2 | G30: =InpC!G$69 -> periods
E31: =Esc!E$14 -> CPI escalation factor | F31: =Esc!F$14 -> 0 | G31: =Esc!G$14 -> factor | H31: =Esc!H$14 -> 0 | I31: =Esc!I$14 -> 0 | J31: =Esc!J$14 -> 1 | K31: =Esc!K$14 -> 1 | L31: =Esc!L$14 -> 1.025 | M31: =Esc!M$14 -> 1.025 | N31: =Esc!N$14 -> 1.050625 | O31: =Esc!O$14 -> 1.050625 | P31: =Esc!P$14 -> 1.076890625 | Q31: =Esc!Q$14 -> 1.076890625 | R31: =Esc!R$14 -> 1.103812891 | S31: =Esc!S$14 -> 1.103812891 | T31: =Esc!T$14 -> 1.131408213 | U31: =Esc!U$14 -> 1.131408213 | V31: =Esc!V$14 -> 1.159693418 | W31: =Esc!W$14 -> 1.159693418 | X31: =Esc!X$14 -> 1.188685754 | Y31: =Esc!Y$14 -> 1.188685754 | Z31: =Esc!Z$14 -> 1.218402898 | AA31: =Esc!AA$14 -> 1.218402898 | AB31: =Esc!AB$14 -> 1.24886297 | AC31: =Esc!AC$14 -> 1.24886297 | AD31: =Esc!AD$14 -> 1.280084544 | AE31: =Esc!AE$14 -> 1.280084544 | AF31: =Esc!AF$14 -> 1.312086658 | AG31: =Esc!AG$14 -> 1.312086658 | AH31: =Esc!AH$14 -> 1.344888824 | AI31: =Esc!AI$14 -> 1.344888824 | AJ31: =Esc!AJ$14 -> 1.378511045 | AK31: =Esc!AK$14 -> 1.378511045 | AL31: =Esc!AL$14 -> 1.412973821 | AM31: =Esc!AM$14 -> 1.412973821 | AN31: =Esc!AN$14 -> 1.448298166 | AO31: =Esc!AO$14 -> 1.448298166 | AP31: =Esc!AP$14 -> 1.484505621 | AQ31: =Esc!AQ$14 -> 1.484505621 | AR31: =Esc!AR$14 -> 1.521618261 | AS31: =Esc!AS$14 -> 1.521618261 | AT31: =Esc!AT$14 -> 1.559658718 | AU31: =Esc!AU$14 -> 1.559658718 | AV31: =Esc!AV$14 -> 1.598650186 | AW31: =Esc!AW$14 -> 1.598650186 | AX31: =Esc!AX$14 -> 1.63861644 | AY31: =Esc!AY$14 -> 1.63861644 | AZ31: =Esc!AZ$14 -> 1.679581851 | BA31: =Esc!BA$14 -> 1.679581851 | BB31: =Esc!BB$14 -> 1.721571398 | BC31: =Esc!BC$14 -> 1.721571398 | BD31: =Esc!BD$14 -> 1.764610683 | BE31: =Esc!BE$14 -> 1.764610683 | BF31: =Esc!BF$14 -> 1.80872595 | BG31: =Esc!BG$14 -> 1.80872595 | BH31: =Esc!BH$14 -> 1.853944098 | BI31: =Esc!BI$14 -> 1.853944098 | BJ31: =Esc!BJ$14 -> 1.900292701 | BK31: =Esc!BK$14 -> 1.900292701 | BL31: =Esc!BL$14 -> 1.947800018 | BM31: =Esc!BM$14 -> 1.947800018 | BN31: =Esc!BN$14 -> 1.996495019 | BO31: =Esc!BO$14 -> 1.996495019 | BP31: =Esc!BP$14 -> 2.046407394 | BQ31: =Esc!BQ$14 -> 2.046407394 | BR31: =Esc!BR$14 -> 2.097567579 | BS31: =Esc!BS$14 -> 2.097567579 | BT31: =Esc!BT$14 -> 2.150006769 | BU31: =Esc!BU$14 -> 2.150006769 | BV31: =Esc!BV$14 -> 2.203756938 | BW31: =Esc!BW$14 -> 2.203756938 | BX31: =Esc!BX$14 -> 2.258850861 | BY31: =Esc!BY$14 -> 2.258850861 | BZ31: =Esc!BZ$14 -> 2.315322133
E32: =Time!E$100 -> Operations period PPF | F32: =Time!F$100 -> 0 | G32: =Time!G$100 -> factor | H32: =Time!H$100 -> 60 | I32: =Time!I$100 -> 0 | J32: =Time!J$100 -> 0 | K32: =Time!K$100 -> 0 | L32: =Time!L$100 -> 0 | M32: =Time!M$100 -> 0 | N32: =Time!N$100 -> 0 | O32: =Time!O$100 -> 0 | P32: =Time!P$100 -> 0 | Q32: =Time!Q$100 -> 1 | R32: =Time!R$100 -> 1 | S32: =Time!S$100 -> 1 | T32: =Time!T$100 -> 1 | U32: =Time!U$100 -> 1 | V32: =Time!V$100 -> 1 | W32: =Time!W$100 -> 1 | X32: =Time!X$100 -> 1 | Y32: =Time!Y$100 -> 1 | Z32: =Time!Z$100 -> 1 | AA32: =Time!AA$100 -> 1 | AB32: =Time!AB$100 -> 1 | AC32: =Time!AC$100 -> 1 | AD32: =Time!AD$100 -> 1 | AE32: =Time!AE$100 -> 1 | AF32: =Time!AF$100 -> 1 | AG32: =Time!AG$100 -> 1 | AH32: =Time!AH$100 -> 1 | AI32: =Time!AI$100 -> 1 | AJ32: =Time!AJ$100 -> 1 | AK32: =Time!AK$100 -> 1 | AL32: =Time!AL$100 -> 1 | AM32: =Time!AM$100 -> 1 | AN32: =Time!AN$100 -> 1 | AO32: =Time!AO$100 -> 1 | AP32: =Time!AP$100 -> 1 | AQ32: =Time!AQ$100 -> 1 | AR32: =Time!AR$100 -> 1 | AS32: =Time!AS$100 -> 1 | AT32: =Time!AT$100 -> 1 | AU32: =Time!AU$100 -> 1 | AV32: =Time!AV$100 -> 1 | AW32: =Time!AW$100 -> 1 | AX32: =Time!AX$100 -> 1 | AY32: =Time!AY$100 -> 1 | AZ32: =Time!AZ$100 -> 1 | BA32: =Time!BA$100 -> 1 | BB32: =Time!BB$100 -> 1 | BC32: =Time!BC$100 -> 1 | BD32: =Time!BD$100 -> 1 | BE32: =Time!BE$100 -> 1 | BF32: =Time!BF$100 -> 1 | BG32: =Time!BG$100 -> 1 | BH32: =Time!BH$100 -> 1 | BI32: =Time!BI$100 -> 1 | BJ32: =Time!BJ$100 -> 1 | BK32: =Time!BK$100 -> 1 | BL32: =Time!BL$100 -> 1 | BM32: =Time!BM$100 -> 1 | BN32: =Time!BN$100 -> 1 | BO32: =Time!BO$100 -> 1 | BP32: =Time!BP$100 -> 1 | BQ32: =Time!BQ$100 -> 1 | BR32: =Time!BR$100 -> 1 | BS32: =Time!BS$100 -> 1 | BT32: =Time!BT$100 -> 1 | BU32: =Time!BU$100 -> 1 | BV32: =Time!BV$100 -> 1 | BW32: =Time!BW$100 -> 1 | BX32: =Time!BX$100 -> 1 | BY32: =Time!BY$100 -> 0 | BZ32: =Time!BZ$100 -> 0
E33: Other operational cost POS | G33: EUR k | H33: =SUM(J33:BZ33) -> 2393.469478 | J33: =($F28 * J31 * J32) / ($F29 * $F30) -> 0 | K33: =($F28 * K31 * K32) / ($F29 * $F30) -> 0 | L33: 0 | M33: 0 | N33: 0 | O33: 0 | P33: 0 | Q33: 26.92226562 | R33: 27.59532227 | S33: 27.59532227 | T33: 28.28520532 | U33: 28.28520532 | V33: 28.99233546 | W33: 28.99233546 | X33: 29.71714384 | Y33: 29.71714384 | Z33: 30.46007244 | AA33: 30.46007244 | AB33: 31.22157425 | AC33: 31.22157425 | AD33: 32.0021136 | AE33: 32.0021136 | AF33: 32.80216645 | AG33: 32.80216645 | AH33: 33.62222061 | AI33: 33.62222061 | AJ33: 34.46277612 | AK33: 34.46277612 | AL33: 35.32434552 | AM33: 35.32434552 | AN33: 36.20745416 | AO33: 36.20745416 | AP33: 37.11264052 | AQ33: 37.11264052 | AR33: 38.04045653 | AS33: 38.04045653 | AT33: 38.99146794 | AU33: 38.99146794 | AV33: 39.96625464 | AW33: 39.96625464 | AX33: 40.96541101 | AY33: 40.96541101 | AZ33: 41.98954628 | BA33: 41.98954628 | BB33: 43.03928494 | BC33: 43.03928494 | BD33: 44.11526706 | BE33: 44.11526706 | BF33: 45.21814874 | BG33: 45.21814874 | BH33: 46.34860246 | BI33: 46.34860246 | BJ33: 47.50731752 | BK33: 47.50731752 | BL33: 48.69500046 | BM33: 48.69500046 | BN33: 49.91237547 | BO33: 49.91237547 | BP33: 51.16018486 | BQ33: 51.16018486 | BR33: 52.43918948 | BS33: 52.43918948 | BT33: 53.75016921 | BU33: 53.75016921 | BV33: 55.09392344 | BW33: =($F28 * BW31 * BW32) / ($F29 * $F30) -> 55.09392344 | BX33: 56.47127153 | BY33: 0 | BZ33: 0
E34: =LEFT(E33, LEN(E33) - 4) -> Other operational cost | F34: PL | G34: EUR k | H34: =SUM(J34:BZ34) -> -2393.469478 | J34: =-1 * J33 -> 0 | K34: 0 | L34: 0 | M34: 0 | N34: 0 | O34: 0 | P34: 0 | Q34: -26.92226562 | R34: -27.59532227 | S34: -27.59532227 | T34: -28.28520532 | U34: -28.28520532 | V34: -28.99233546 | W34: -28.99233546 | X34: -29.71714384 | Y34: -29.71714384 | Z34: -30.46007244 | AA34: -30.46007244 | AB34: -31.22157425 | AC34: -31.22157425 | AD34: -32.0021136 | AE34: -32.0021136 | AF34: -32.80216645 | AG34: -32.80216645 | AH34: -33.62222061 | AI34: -33.62222061 | AJ34: -34.46277612 | AK34: -34.46277612 | AL34: -35.32434552 | AM34: -35.32434552 | AN34: -36.20745416 | AO34: -36.20745416 | AP34: =-1 * AP33 -> -37.11264052 | AQ34: -37.11264052 | AR34: -38.04045653 | AS34: -38.04045653 | AT34: -38.99146794 | AU34: -38.99146794 | AV34: -39.96625464 | AW34: -39.96625464 | AX34: -40.96541101 | AY34: -40.96541101 | AZ34: -41.98954628 | BA34: -41.98954628 | BB34: -43.03928494 | BC34: -43.03928494 | BD34: -44.11526706 | BE34: -44.11526706 | BF34: -45.21814874 | BG34: -45.21814874 | BH34: -46.34860246 | BI34: -46.34860246 | BJ34: -47.50731752 | BK34: -47.50731752 | BL34: -48.69500046 | BM34: -48.69500046 | BN34: -49.91237547 | BO34: -49.91237547 | BP34: -51.16018486 | BQ34: -51.16018486 | BR34: -52.43918948 | BS34: -52.43918948 | BT34: -53.75016921 | BU34: -53.75016921 | BV34: =-1 * BV33 -> -55.09392344 | BW34: -55.09392344 | BX34: -56.47127153 | BY34: 0 | BZ34: 0

Sheet Capex
A1: =RIGHT(CELL("filename", $A$1), LEN(CELL("filename", $A$1)) - SEARCH("]", CELL("filename", $A$1))) -> Capex
E2: =Time!E$21 -> Model period ending | J2: =Time!J$21 -> 2016-06-30 | K2: =Time!K$21 -> 2016-12-31 | L2: =Time!L$21 -> 2017-06-30 | M2: =Time!M$21 -> 2017-12-31 | N2: =Time!N$21 -> 2018-06-30 | O2: =Time!O$21 -> 2018-12-31 | P2: =Time!P$21 -> 2019-06-30 | Q2: =Time!Q$21 -> 2019-12-31 | R2: =Time!R$21 -> 2020-06-30 | S2: =Time!S$21 -> 2020-12-31 | T2: =Time!T$21 -> 2021-06-30 | U2: =Time!U$21 -> 2021-12-31 | V2: =Time!V$21 -> 2022-06-30 | W2: =Time!W$21 -> 2022-12-31 | X2: =Time!X$21 -> 2023-06-30 | Y2: =Time!Y$21 -> 2023-12-31 | Z2: =Time!Z$21 -> 2024-06-30 | AA2: =Time!AA$21 -> 2024-12-31 | AB2: =Time!AB$21 -> 2025-06-30 | AC2: =Time!AC$21 -> 2025-12-31 | AD2: =Time!AD$21 -> 2026-06-30 | AE2: =Time!AE$21 -> 2026-12-31 | AF2: =Time!AF$21 -> 2027-06-30 | AG2: =Time!AG$21 -> 2027-12-31 | AH2: =Time!AH$21 -> 2028-06-30 | AI2: =Time!AI$21 -> 2028-12-31 | AJ2: =Time!AJ$21 -> 2029-06-30 | AK2: =Time!AK$21 -> 2029-12-31 | AL2: =Time!AL$21 -> 2030-06-30 | AM2: =Time!AM$21 -> 2030-12-31 | AN2: =Time!AN$21 -> 2031-06-30 | AO2: =Time!AO$21 -> 2031-12-31 | AP2: =Time!AP$21 -> 2032-06-30 | AQ2: =Time!AQ$21 -> 2032-12-31 | AR2: =Time!AR$21 -> 2033-06-30 | AS2: =Time!AS$21 -> 2033-12-31 | AT2: =Time!AT$21 -> 2034-06-30 | AU2: =Time!AU$21 -> 2034-12-31 | AV2: =Time!AV$21 -> 2035-06-30 | AW2: =Time!AW$21 -> 2035-12-31 | AX2: =Time!AX$21 -> 2036-06-30 | AY2: =Time!AY$21 -> 2036-12-31 | AZ2: =Time!AZ$21 -> 2037-06-30 | BA2: =Time!BA$21 -> 2037-12-31 | BB2: =Time!BB$21 -> 2038-06-30 | BC2: =Time!BC$21 -> 2038-12-31 | BD2: =Time!BD$21 -> 2039-06-30 | BE2: =Time!BE$21 -> 2039-12-31 | BF2: =Time!BF$21 -> 2040-06-30 | BG2: =Time!BG$21 -> 2040-12-31 | BH2: =Time!BH$21 -> 2041-06-30 | BI2: =Time!BI$21 -> 2041-12-31 | BJ2: =Time!BJ$21 -> 2042-06-30 | BK2: =Time!BK$21 -> 2042-12-31 | BL2: =Time!BL$21 -> 2043-06-30 | BM2: =Time!BM$21 -> 2043-12-31 | BN2: =Time!BN$21 -> 2044-06-30 | BO2: =Time!BO$21 -> 2044-12-31 | BP2: =Time!BP$21 -> 2045-06-30 | BQ2: =Time!BQ$21 -> 2045-12-31 | BR2: =Time!BR$21 -> 2046-06-30 | BS2: =Time!BS$21 -> 2046-12-31 | BT2: =Time!BT$21 -> 2047-06-30 | BU2: =Time!BU$21 -> 2047-12-31 | BV2: =Time!BV$21 -> 2048-06-30 | BW2: =Time!BW$21 -> 2048-12-31 | BX2: =Time!BX$21 -> 2049-06-30 | BY2: =Time!BY$21 -> 2049-12-31 | BZ2: =Time!BZ$21 -> 2050-06-30
E3: =Time!E$108 -> Actual vs forecast | J3: =Time!J$108 -> Fin Close | K3: =Time!K$108 -> Construction | L3: =Time!L$108 -> Construction | M3: =Time!M$108 -> Construction | N3: =Time!N$108 -> Construction | O3: =Time!O$108 -> Construction | P3: =Time!P$108 -> Construction | Q3: =Time!Q$108 -> Operations | R3: =Time!R$108 -> Operations | S3: =Time!S$108 -> Operations | T3: =Time!T$108 -> Operations | U3: =Time!U$108 -> Operations | V3: =Time!V$108 -> Operations | W3: =Time!W$108 -> Operations | X3: =Time!X$108 -> Operations | Y3: =Time!Y$108 -> Operations | Z3: =Time!Z$108 -> Operations | AA3: =Time!AA$108 -> Operations | AB3: =Time!AB$108 -> Operations | AC3: =Time!AC$108 -> Operations | AD3: =Time!AD$108 -> Operations | AE3: =Time!AE$108 -> Operations | AF3: =Time!AF$108 -> Operations | AG3: =Time!AG$108 -> Operations | AH3: =Time!AH$108 -> Operations | AI3: =Time!AI$108 -> Operations | AJ3: =Time!AJ$108 -> Operations | AK3: =Time!AK$108 -> Operations | AL3: =Time!AL$108 -> Operations | AM3: =Time!AM$108 -> Operations | AN3: =Time!AN$108 -> Operations | AO3: =Time!AO$108 -> Operations | AP3: =Time!AP$108 -> Operations | AQ3: =Time!AQ$108 -> Operations | AR3: =Time!AR$108 -> Operations | AS3: =Time!AS$108 -> Operations | AT3: =Time!AT$108 -> Operations | AU3: =Time!AU$108 -> Operations | AV3: =Time!AV$108 -> Operations | AW3: =Time!AW$108 -> Operations | AX3: =Time!AX$108 -> Operations | AY3: =Time!AY$108 -> Operations | AZ3: =Time!AZ$108 -> Operations | BA3: =Time!BA$108 -> Operations | BB3: =Time!BB$108 -> Operations | BC3: =Time!BC$108 -> Operations | BD3: =Time!BD$108 -> Operations | BE3: =Time!BE$108 -> Operations | BF3: =Time!BF$108 -> Operations | BG3: =Time!BG$108 -> Operations | BH3: =Time!BH$108 -> Operations | BI3: =Time!BI$108 -> Operations | BJ3: =Time!BJ$108 -> Operations | BK3: =Time!BK$108 -> Operations | BL3: =Time!BL$108 -> Operations | BM3: =Time!BM$108 -> Operations | BN3: =Time!BN$108 -> Operations | BO3: =Time!BO$108 -> Operations | BP3: =Time!BP$108 -> Operations | BQ3: =Time!BQ$108 -> Operations | BR3: =Time!BR$108 -> Operations | BS3: =Time!BS$108 -> Operations | BT3: =Time!BT$108 -> Operations | BU3: =Time!BU$108 -> Operations | BV3: =Time!BV$108 -> Operations | BW3: =Time!BW$108 -> Operations | BX3: =Time!BX$108 -> Operations | BY3: =Time!BY$108 -> Post-Frcst | BZ3: =Time!BZ$108 -> Post-Frcst
E4: =Time!E$121 -> Financial year ending | J4: =Time!J$121 -> 2016 | K4: =Time!K$121 -> 2016 | L4: =Time!L$121 -> 2017 | M4: =Time!M$121 -> 2017 | N4: =Time!N$121 -> 2018 | O4: =Time!O$121 -> 2018 | P4: =Time!P$121 -> 2019 | Q4: =Time!Q$121 -> 2019 | R4: =Time!R$121 -> 2020 | S4: =Time!S$121 -> 2020 | T4: =Time!T$121 -> 2021 | U4: =Time!U$121 -> 2021 | V4: =Time!V$121 -> 2022 | W4: =Time!W$121 -> 2022 | X4: =Time!X$121 -> 2023 | Y4: =Time!Y$121 -> 2023 | Z4: =Time!Z$121 -> 2024 | AA4: =Time!AA$121 -> 2024 | AB4: =Time!AB$121 -> 2025 | AC4: =Time!AC$121 -> 2025 | AD4: =Time!AD$121 -> 2026 | AE4: =Time!AE$121 -> 2026 | AF4: =Time!AF$121 -> 2027 | AG4: =Time!AG$121 -> 2027 | AH4: =Time!AH$121 -> 2028 | AI4: =Time!AI$121 -> 2028 | AJ4: =Time!AJ$121 -> 2029 | AK4: =Time!AK$121 -> 2029 | AL4: =Time!AL$121 -> 2030 | AM4: =Time!AM$121 -> 2030 | AN4: =Time!AN$121 -> 2031 | AO4: =Time!AO$121 -> 2031 | AP4: =Time!AP$121 -> 2032 | AQ4: =Time!AQ$121 -> 2032 | AR4: =Time!AR$121 -> 2033 | AS4: =Time!AS$121 -> 2033 | AT4: =Time!AT$121 -> 2034 | AU4: =Time!AU$121 -> 2034 | AV4: =Time!AV$121 -> 2035 | AW4: =Time!AW$121 -> 2035 | AX4: =Time!AX$121 -> 2036 | AY4: =Time!AY$121 -> 2036 | AZ4: =Time!AZ$121 -> 2037 | BA4: =Time!BA$121 -> 2037 | BB4: =Time!BB$121 -> 2038 | BC4: =Time!BC$121 -> 2038 | BD4: =Time!BD$121 -> 2039 | BE4: =Time!BE$121 -> 2039 | BF4: =Time!BF$121 -> 2040 | BG4: =Time!BG$121 -> 2040 | BH4: =Time!BH$121 -> 2041 | BI4: =Time!BI$121 -> 2041 | BJ4: =Time!BJ$121 -> 2042 | BK4: =Time!BK$121 -> 2042 | BL4: =Time!BL$121 -> 2043 | BM4: =Time!BM$121 -> 2043 | BN4: =Time!BN$121 -> 2044 | BO4: =Time!BO$121 -> 2044 | BP4: =Time!BP$121 -> 2045 | BQ4: =Time!BQ$121 -> 2045 | BR4: =Time!BR$121 -> 2046 | BS4: =Time!BS$121 -> 2046 | BT4: =Time!BT$121 -> 2047 | BU4: =Time!BU$121 -> 2047 | BV4: =Time!BV$121 -> 2048 | BW4: =Time!BW$121 -> 2048 | BX4: =Time!BX$121 -> 2049 | BY4: =Time!BY$121 -> 2049 | BZ4: =Time!BZ$121 -> 2050
E5: =Time!E$9 -> Model column counter | F5: Constant | G5: Unit | H5: Total | J5: =Time!J$9 -> 1 | K5: =Time!K$9 -> 2 | L5: =Time!L$9 -> 3 | M5: =Time!M$9 -> 4 | N5: =Time!N$9 -> 5 | O5: =Time!O$9 -> 6 | P5: =Time!P$9 -> 7 | Q5: =Time!Q$9 -> 8 | R5: =Time!R$9 -> 9 | S5: =Time!S$9 -> 10 | T5: =Time!T$9 -> 11 | U5: =Time!U$9 -> 12 | V5: =Time!V$9 -> 13 | W5: =Time!W$9 -> 14 | X5: =Time!X$9 -> 15 | Y5: =Time!Y$9 -> 16 | Z5: =Time!Z$9 -> 17 | AA5: =Time!AA$9 -> 18 | AB5: =Time!AB$9 -> 19 | AC5: =Time!AC$9 -> 20 | AD5: =Time!AD$9 -> 21 | AE5: =Time!AE$9 -> 22 | AF5: =Time!AF$9 -> 23 | AG5: =Time!AG$9 -> 24 | AH5: =Time!AH$9 -> 25 | AI5: =Time!AI$9 -> 26 | AJ5: =Time!AJ$9 -> 27 | AK5: =Time!AK$9 -> 28 | AL5: =Time!AL$9 -> 29 | AM5: =Time!AM$9 -> 30 | AN5: =Time!AN$9 -> 31 | AO5: =Time!AO$9 -> 32 | AP5: =Time!AP$9 -> 33 | AQ5: =Time!AQ$9 -> 34 | AR5: =Time!AR$9 -> 35 | AS5: =Time!AS$9 -> 36 | AT5: =Time!AT$9 -> 37 | AU5: =Time!AU$9 -> 38 | AV5: =Time!AV$9 -> 39 | AW5: =Time!AW$9 -> 40 | AX5: =Time!AX$9 -> 41 | AY5: =Time!AY$9 -> 42 | AZ5: =Time!AZ$9 -> 43 | BA5: =Time!BA$9 -> 44 | BB5: =Time!BB$9 -> 45 | BC5: =Time!BC$9 -> 46 | BD5: =Time!BD$9 -> 47 | BE5: =Time!BE$9 -> 48 | BF5: =Time!BF$9 -> 49 | BG5: =Time!BG$9 -> 50 | BH5: =Time!BH$9 -> 51 | BI5: =Time!BI$9 -> 52 | BJ5: =Time!BJ$9 -> 53 | BK5: =Time!BK$9 -> 54 | BL5: =Time!BL$9 -> 55 | BM5: =Time!BM$9 -> 56 | BN5: =Time!BN$9 -> 57 | BO5: =Time!BO$9 -> 58 | BP5: =Time!BP$9 -> 59 | BQ5: =Time!BQ$9 -> 60 | BR5: =Time!BR$9 -> 61 | BS5: =Time!BS$9 -> 62 | BT5: =Time!BT$9 -> 63 | BU5: =Time!BU$9 -> 64 | BV5: =Time!BV$9 -> 65 | BW5: =Time!BW$9 -> 66 | BX5: =Time!BX$9 -> 67 | BY5: =Time!BY$9 -> 68 | BZ5: =Time!BZ$9 -> 69
A7: CAPITAL EXPENDITURE
B9: Infrastructure investment
E10: =InpC!E$54 -> Infrastructure investment | F10: =InpC!F$54 -> 200 | G10: =InpC!G$54 -> EUR mn
E11: =InpC!E$71 -> Conversion from EUR mn to EUR k | F11: =InpC!F$71 -> 1000 | G11: =InpC!G$71 -> EUR k / EUR m
E12: =InpC!E$69 -> Semi annual period in a year | F12: =InpC!F$69 -> 2 | G12: =InpC!G$69 -> periods
E13: =InpC!E$12 -> Construction duration | F13: =InpC!F$12 -> 3 | G13: =InpC!G$12 -> years
E14: Infrastructure investment per semi | F14: =(F10 * F11) / (F12 * F13) -> 33333.33333 | G14: EUR k
E16: =E$14 -> Infrastructure investment per semi | F16: =F$14 -> 33333.33333 | G16: =G$14 -> EUR k
E17: =Time!E$64 -> Construction period PPF | F17: =Time!F$64 -> 0 | G17: =Time!G$64 -> factor | H17: =Time!H$64 -> 6 | I17: =Time!I$64 -> 0 | J17: =Time!J$64 -> 0 | K17: =Time!K$64 -> 1 | L17: =Time!L$64 -> 1 | M17: =Time!M$64 -> 1 | N17: =Time!N$64 -> 1 | O17: =Time!O$64 -> 1 | P17: =Time!P$64 -> 1 | Q17: =Time!Q$64 -> 0 | R17: =Time!R$64 -> 0 | S17: =Time!S$64 -> 0 | T17: =Time!T$64 -> 0 | U17: =Time!U$64 -> 0 | V17: =Time!V$64 -> 0 | W17: =Time!W$64 -> 0 | X17: =Time!X$64 -> 0 | Y17: =Time!Y$64 -> 0 | Z17: =Time!Z$64 -> 0 | AA17: =Time!AA$64 -> 0 | AB17: =Time!AB$64 -> 0 | AC17: =Time!AC$64 -> 0 | AD17: =Time!AD$64 -> 0 | AE17: =Time!AE$64 -> 0 | AF17: =Time!AF$64 -> 0 | AG17: =Time!AG$64 -> 0 | AH17: =Time!AH$64 -> 0 | AI17: =Time!AI$64 -> 0 | AJ17: =Time!AJ$64 -> 0 | AK17: =Time!AK$64 -> 0 | AL17: =Time!AL$64 -> 0 | AM17: =Time!AM$64 -> 0 | AN17: =Time!AN$64 -> 0 | AO17: =Time!AO$64 -> 0 | AP17: =Time!AP$64 -> 0 | AQ17: =Time!AQ$64 -> 0 | AR17: =Time!AR$64 -> 0 | AS17: =Time!AS$64 -> 0 | AT17: =Time!AT$64 -> 0 | AU17: =Time!AU$64 -> 0 | AV17: =Time!AV$64 -> 0 | AW17: =Time!AW$64 -> 0 | AX17: =Time!AX$64 -> 0 | AY17: =Time!AY$64 -> 0 | AZ17: =Time!AZ$64 -> 0 | BA17: =Time!BA$64 -> 0 | BB17: =Time!BB$64 -> 0 | BC17: =Time!BC$64 -> 0 | BD17: =Time!BD$64 -> 0 | BE17: =Time!BE$64 -> 0 | BF17: =Time!BF$64 -> 0 | BG17: =Time!BG$64 -> 0 | BH17: =Time!BH$64 -> 0 | BI17: =Time!BI$64 -> 0 | BJ17: =Time!BJ$64 -> 0 | BK17: =Time!BK$64 -> 0 | BL17: =Time!BL$64 -> 0 | BM17: =Time!BM$64 -> 0 | BN17: =Time!BN$64 -> 0 | BO17: =Time!BO$64 -> 0 | BP17: =Time!BP$64 -> 0 | BQ17: =Time!BQ$64 -> 0 | BR17: =Time!BR$64 -> 0 | BS17: =Time!BS$64 -> 0 | BT17: =Time!BT$64 -> 0 | BU17: =Time!BU$64 -> 0 | BV17: =Time!BV$64 -> 0 | BW17: =Time!BW$64 -> 0 | BX17: =Time!BX$64 -> 0 | BY17: =Time!BY$64 -> 0 | BZ17: =Time!BZ$64 -> 0
E18: Infrastructure cost POS | G18: EUR k | H18: =SUM(J18:BZ18) -> 200000 | J18: =$F16 * J17 -> 0 | K18: 33333.33333 | L18: 33333.33333 | M18: 33333.33333 | N18: 33333.33333 | O18: 33333.33333 | P18: 33333.33333 | Q18: 0 | R18: 0 | S18: 0 | T18: 0 | U18: 0 | V18: 0 | W18: 0 | X18: 0 | Y18: 0 | Z18: 0 | AA18: 0 | AB18: 0 | AC18: 0 | AD18: 0 | AE18: 0 | AF18: 0 | AG18: 0 | AH18: 0 | AI18: 0 | AJ18: 0 | AK18: 0 | AL18: 0 | AM18: 0 | AN18: 0 | AO18: 0 | AP18: =$F16 * AP17 -> 0 | AQ18: 0 | AR18: 0 | AS18: 0 | AT18: 0 | AU18: 0 | AV18: 0 | AW18: 0 | AX18: 0 | AY18: 0 | AZ18: 0 | BA18: 0 | BB18: 0 | BC18: 0 | BD18: 0 | BE18: 0 | BF18: 0 | BG18: 0 | BH18: 0 | BI18: 0 | BJ18: 0 | BK18: 0 | BL18: 0 | BM18: 0 | BN18: 0 | BO18: 0 | BP18: 0 | BQ18: 0 | BR18: 0 | BS18: =$F16 * BS17 -> 0 | BT18: 0 | BU18: 0 | BV18: 0 | BW18: 0 | BX18: 0 | BY18: 0 | BZ18: 0
E19: =LEFT(E18, LEN(E18) - 4) -> Infrastructure cost | F19: CF | G19: EUR k | H19: =SUM(J19:BZ19) -> -200000 | J19: =-1 * J18 -> 0 | K19: -33333.33333 | L19: -33333.33333 | M19: -33333.33333 | N19: -33333.33333 | O19: -33333.33333 | P19: -33333.33333 | Q19: 0 | R19: 0 | S19: 0 | T19: 0 | U19: 0 | V19: 0 | W19: 0 | X19: 0 | Y19: 0 | Z19: 0 | AA19: 0 | AB19: 0 | AC19: 0 | AD19: 0 | AE19: 0 | AF19: 0 | AG19: 0 | AH19: 0 | AI19: 0 | AJ19: 0 | AK19: 0 | AL19: 0 | AM19: 0 | AN19: 0 | AO19: 0 | AP19: =-1 * AP18 -> 0 | AQ19: 0 | AR19: 0 | AS19: 0 | AT19: 0 | AU19: 0 | AV19: 0 | AW19: 0 | AX19: 0 | AY19: 0 | AZ19: 0 | BA19: 0 | BB19: 0 | BC19: 0 | BD19: 0 | BE19: 0 | BF19: 0 | BG19: 0 | BH19: 0 | BI19: 0 | BJ19: =-1 * BJ18 -> 0 | BK19: 0 | BL19: 0 | BM19: 0 | BN19: 0 | BO19: 0 | BP19: 0 | BQ19: 0 | BR19: 0 | BS19: =-1 * BS18 -> 0 | BT19: 0 | BU19: 0 | BV19: 0 | BW19: 0 | BX19: 0 | BY19: 0 | BZ19: 0
E21: =E$18 -> Infrastructure cost POS | F21: =F$18 -> 0 | G21: EUR k | H21: 200000 | I21: 0 | J21: 0 | K21: 33333.33333 | L21: 33333.33333 | M21: 33333.33333 | N21: 33333.33333 | O21: 33333.33333 | P21: 33333.33333 | Q21: 0 | R21: 0 | S21: 0 | T21: 0 | U21: 0 | V21: 0 | W21: 0 | X21: 0 | Y21: 0 | Z21: 0 | AA21: 0 | AB21: 0 | AC21: 0 | AD21: 0 | AE21: 0 | AF21: 0 | AG21: 0 | AH21: 0 | AI21: 0 | AJ21: 0 | AK21: 0 | AL21: 0 | AM21: 0 | AN21: 0 | AO21: 0 | AP21: 0 | AQ21: 0 | AR21: 0 | AS21: 0 | AT21: 0 | AU21: 0 | AV21: 0 | AW21: 0 | AX21: 0 | AY21: 0 | AZ21: 0 | BA21: 0 | BB21: 0 | BC21: 0 | BD21: 0 | BE21: 0 | BF21: 0 | BG21: 0 | BH21: 0 | BI21: 0 | BJ21: 0 | BK21: 0 | BL21: 0 | BM21: 0 | BN21: 0 | BO21: 0 | BP21: 0 | BQ21: 0 | BR21: =BR$18 -> 0 | BS21: 0 | BT21: 0 | BU21: 0 | BV21: 0 | BW21: 0 | BX21: 0 | BY21: 0 | BZ21: 0
E22: Infrastructure cost | F22: =SUM(J21:BZ21) -> 200000 | G22: EUR k

Sheet Cash flow
A1: =RIGHT(CELL("filename", $A$1), LEN(CELL("filename", $A$1)) - SEARCH("]", CELL("filename", $A$1))) -> Cash flow
E2: =Time!E$21 -> Model period ending | J2: =Time!J$21 -> 2016-06-30 | K2: =Time!K$21 -> 2016-12-31 | L2: =Time!L$21 -> 2017-06-30 | M2: =Time!M$21 -> 2017-12-31 | N2: =Time!N$21 -> 2018-06-30 | O2: =Time!O$21 -> 2018-12-31 | P2: =Time!P$21 -> 2019-06-30 | Q2: =Time!Q$21 -> 2019-12-31 | R2: =Time!R$21 -> 2020-06-30 | S2: =Time!S$21 -> 2020-12-31 | T2: =Time!T$21 -> 2021-06-30 | U2: =Time!U$21 -> 2021-12-31 | V2: =Time!V$21 -> 2022-06-30 | W2: =Time!W$21 -> 2022-12-31 | X2: =Time!X$21 -> 2023-06-30 | Y2: =Time!Y$21 -> 2023-12-31 | Z2: =Time!Z$21 -> 2024-06-30 | AA2: =Time!AA$21 -> 2024-12-31 | AB2: =Time!AB$21 -> 2025-06-30 | AC2: =Time!AC$21 -> 2025-12-31 | AD2: =Time!AD$21 -> 2026-06-30 | AE2: =Time!AE$21 -> 2026-12-31 | AF2: =Time!AF$21 -> 2027-06-30 | AG2: =Time!AG$21 -> 2027-12-31 | AH2: =Time!AH$21 -> 2028-06-30 | AI2: =Time!AI$21 -> 2028-12-31 | AJ2: =Time!AJ$21 -> 2029-06-30 | AK2: =Time!AK$21 -> 2029-12-31 | AL2: =Time!AL$21 -> 2030-06-30 | AM2: =Time!AM$21 -> 2030-12-31 | AN2: =Time!AN$21 -> 2031-06-30 | AO2: =Time!AO$21 -> 2031-12-31 | AP2: =Time!AP$21 -> 2032-06-30 | AQ2: =Time!AQ$21 -> 2032-12-31 | AR2: =Time!AR$21 -> 2033-06-30 | AS2: =Time!AS$21 -> 2033-12-31 | AT2: =Time!AT$21 -> 2034-06-30 | AU2: =Time!AU$21 -> 2034-12-31 | AV2: =Time!AV$21 -> 2035-06-30 | AW2: =Time!AW$21 -> 2035-12-31 | AX2: =Time!AX$21 -> 2036-06-30 | AY2: =Time!AY$21 -> 2036-12-31 | AZ2: =Time!AZ$21 -> 2037-06-30 | BA2: =Time!BA$21 -> 2037-12-31 | BB2: =Time!BB$21 -> 2038-06-30 | BC2: =Time!BC$21 -> 2038-12-31 | BD2: =Time!BD$21 -> 2039-06-30 | BE2: =Time!BE$21 -> 2039-12-31 | BF2: =Time!BF$21 -> 2040-06-30 | BG2: =Time!BG$21 -> 2040-12-31 | BH2: =Time!BH$21 -> 2041-06-30 | BI2: =Time!BI$21 -> 2041-12-31 | BJ2: =Time!BJ$21 -> 2042-06-30 | BK2: =Time!BK$21 -> 2042-12-31 | BL2: =Time!BL$21 -> 2043-06-30 | BM2: =Time!BM$21 -> 2043-12-31 | BN2: =Time!BN$21 -> 2044-06-30 | BO2: =Time!BO$21 -> 2044-12-31 | BP2: =Time!BP$21 -> 2045-06-30 | BQ2: =Time!BQ$21 -> 2045-12-31 | BR2: =Time!BR$21 -> 2046-06-30 | BS2: =Time!BS$21 -> 2046-12-31 | BT2: =Time!BT$21 -> 2047-06-30 | BU2: =Time!BU$21 -> 2047-12-31 | BV2: =Time!BV$21 -> 2048-06-30 | BW2: =Time!BW$21 -> 2048-12-31 | BX2: =Time!BX$21 -> 2049-06-30 | BY2: =Time!BY$21 -> 2049-12-31 | BZ2: =Time!BZ$21 -> 2050-06-30
E3: =Time!E$108 -> Actual vs forecast | J3: =Time!J$108 -> Fin Close | K3: =Time!K$108 -> Construction | L3: =Time!L$108 -> Construction | M3: =Time!M$108 -> Construction | N3: =Time!N$108 -> Construction | O3: =Time!O$108 -> Construction | P3: =Time!P$108 -> Construction | Q3: =Time!Q$108 -> Operations | R3: =Time!R$108 -> Operations | S3: =Time!S$108 -> Operations | T3: =Time!T$108 -> Operations | U3: =Time!U$108 -> Operations | V3: =Time!V$108 -> Operations | W3: =Time!W$108 -> Operations | X3: =Time!X$108 -> Operations | Y3: =Time!Y$108 -> Operations | Z3: =Time!Z$108 -> Operations | AA3: =Time!AA$108 -> Operations | AB3: =Time!AB$108 -> Operations | AC3: =Time!AC$108 -> Operations | AD3: =Time!AD$108 -> Operations | AE3: =Time!AE$108 -> Operations | AF3: =Time!AF$108 -> Operations | AG3: =Time!AG$108 -> Operations | AH3: =Time!AH$108 -> Operations | AI3: =Time!AI$108 -> Operations | AJ3: =Time!AJ$108 -> Operations | AK3: =Time!AK$108 -> Operations | AL3: =Time!AL$108 -> Operations | AM3: =Time!AM$108 -> Operations | AN3: =Time!AN$108 -> Operations | AO3: =Time!AO$108 -> Operations | AP3: =Time!AP$108 -> Operations | AQ3: =Time!AQ$108 -> Operations | AR3: =Time!AR$108 -> Operations | AS3: =Time!AS$108 -> Operations | AT3: =Time!AT$108 -> Operations | AU3: =Time!AU$108 -> Operations | AV3: =Time!AV$108 -> Operations | AW3: =Time!AW$108 -> Operations | AX3: =Time!AX$108 -> Operations | AY3: =Time!AY$108 -> Operations | AZ3: =Time!AZ$108 -> Operations | BA3: =Time!BA$108 -> Operations | BB3: =Time!BB$108 -> Operations | BC3: =Time!BC$108 -> Operations | BD3: =Time!BD$108 -> Operations | BE3: =Time!BE$108 -> Operations | BF3: =Time!BF$108 -> Operations | BG3: =Time!BG$108 -> Operations | BH3: =Time!BH$108 -> Operations | BI3: =Time!BI$108 -> Operations | BJ3: =Time!BJ$108 -> Operations | BK3: =Time!BK$108 -> Operations | BL3: =Time!BL$108 -> Operations | BM3: =Time!BM$108 -> Operations | BN3: =Time!BN$108 -> Operations | BO3: =Time!BO$108 -> Operations | BP3: =Time!BP$108 -> Operations | BQ3: =Time!BQ$108 -> Operations | BR3: =Time!BR$108 -> Operations | BS3: =Time!BS$108 -> Operations | BT3: =Time!BT$108 -> Operations | BU3: =Time!BU$108 -> Operations | BV3: =Time!BV$108 -> Operations | BW3: =Time!BW$108 -> Operations | BX3: =Time!BX$108 -> Operations | BY3: =Time!BY$108 -> Post-Frcst | BZ3: =Time!BZ$108 -> Post-Frcst
E4: =Time!E$121 -> Financial year ending | J4: =Time!J$121 -> 2016 | K4: =Time!K$121 -> 2016 | L4: =Time!L$121 -> 2017 | M4: =Time!M$121 -> 2017 | N4: =Time!N$121 -> 2018 | O4: =Time!O$121 -> 2018 | P4: =Time!P$121 -> 2019 | Q4: =Time!Q$121 -> 2019 | R4: =Time!R$121 -> 2020 | S4: =Time!S$121 -> 2020 | T4: =Time!T$121 -> 2021 | U4: =Time!U$121 -> 2021 | V4: =Time!V$121 -> 2022 | W4: =Time!W$121 -> 2022 | X4: =Time!X$121 -> 2023 | Y4: =Time!Y$121 -> 2023 | Z4: =Time!Z$121 -> 2024 | AA4: =Time!AA$121 -> 2024 | AB4: =Time!AB$121 -> 2025 | AC4: =Time!AC$121 -> 2025 | AD4: =Time!AD$121 -> 2026 | AE4: =Time!AE$121 -> 2026 | AF4: =Time!AF$121 -> 2027 | AG4: =Time!AG$121 -> 2027 | AH4: =Time!AH$121 -> 2028 | AI4: =Time!AI$121 -> 2028 | AJ4: =Time!AJ$121 -> 2029 | AK4: =Time!AK$121 -> 2029 | AL4: =Time!AL$121 -> 2030 | AM4: =Time!AM$121 -> 2030 | AN4: =Time!AN$121 -> 2031 | AO4: =Time!AO$121 -> 2031 | AP4: =Time!AP$121 -> 2032 | AQ4: =Time!AQ$121 -> 2032 | AR4: =Time!AR$121 -> 2033 | AS4: =Time!AS$121 -> 2033 | AT4: =Time!AT$121 -> 2034 | AU4: =Time!AU$121 -> 2034 | AV4: =Time!AV$121 -> 2035 | AW4: =Time!AW$121 -> 2035 | AX4: =Time!AX$121 -> 2036 | AY4: =Time!AY$121 -> 2036 | AZ4: =Time!AZ$121 -> 2037 | BA4: =Time!BA$121 -> 2037 | BB4: =Time!BB$121 -> 2038 | BC4: =Time!BC$121 -> 2038 | BD4: =Time!BD$121 -> 2039 | BE4: =Time!BE$121 -> 2039 | BF4: =Time!BF$121 -> 2040 | BG4: =Time!BG$121 -> 2040 | BH4: =Time!BH$121 -> 2041 | BI4: =Time!BI$121 -> 2041 | BJ4: =Time!BJ$121 -> 2042 | BK4: =Time!BK$121 -> 2042 | BL4: =Time!BL$121 -> 2043 | BM4: =Time!BM$121 -> 2043 | BN4: =Time!BN$121 -> 2044 | BO4: =Time!BO$121 -> 2044 | BP4: =Time!BP$121 -> 2045 | BQ4: =Time!BQ$121 -> 2045 | BR4: =Time!BR$121 -> 2046 | BS4: =Time!BS$121 -> 2046 | BT4: =Time!BT$121 -> 2047 | BU4: =Time!BU$121 -> 2047 | BV4: =Time!BV$121 -> 2048 | BW4: =Time!BW$121 -> 2048 | BX4: =Time!BX$121 -> 2049 | BY4: =Time!BY$121 -> 2049 | BZ4: =Time!BZ$121 -> 2050
E5: =Time!E$9 -> Model column counter | F5: Constant | G5: Unit | H5: Total | J5: =Time!J$9 -> 1 | K5: =Time!K$9 -> 2 | L5: =Time!L$9 -> 3 | M5: =Time!M$9 -> 4 | N5: =Time!N$9 -> 5 | O5: =Time!O$9 -> 6 | P5: =Time!P$9 -> 7 | Q5: =Time!Q$9 -> 8 | R5: =Time!R$9 -> 9 | S5: =Time!S$9 -> 10 | T5: =Time!T$9 -> 11 | U5: =Time!U$9 -> 12 | V5: =Time!V$9 -> 13 | W5: =Time!W$9 -> 14 | X5: =Time!X$9 -> 15 | Y5: =Time!Y$9 -> 16 | Z5: =Time!Z$9 -> 17 | AA5: =Time!AA$9 -> 18 | AB5: =Time!AB$9 -> 19 | AC5: =Time!AC$9 -> 20 | AD5: =Time!AD$9 -> 21 | AE5: =Time!AE$9 -> 22 | AF5: =Time!AF$9 -> 23 | AG5: =Time!AG$9 -> 24 | AH5: =Time!AH$9 -> 25 | AI5: =Time!AI$9 -> 26 | AJ5: =Time!AJ$9 -> 27 | AK5: =Time!AK$9 -> 28 | AL5: =Time!AL$9 -> 29 | AM5: =Time!AM$9 -> 30 | AN5: =Time!AN$9 -> 31 | AO5: =Time!AO$9 -> 32 | AP5: =Time!AP$9 -> 33 | AQ5: =Time!AQ$9 -> 34 | AR5: =Time!AR$9 -> 35 | AS5: =Time!AS$9 -> 36 | AT5: =Time!AT$9 -> 37 | AU5: =Time!AU$9 -> 38 | AV5: =Time!AV$9 -> 39 | AW5: =Time!AW$9 -> 40 | AX5: =Time!AX$9 -> 41 | AY5: =Time!AY$9 -> 42 | AZ5: =Time!AZ$9 -> 43 | BA5: =Time!BA$9 -> 44 | BB5: =Time!BB$9 -> 45 | BC5: =Time!BC$9 -> 46 | BD5: =Time!BD$9 -> 47 | BE5: =Time!BE$9 -> 48 | BF5: =Time!BF$9 -> 49 | BG5: =Time!BG$9 -> 50 | BH5: =Time!BH$9 -> 51 | BI5: =Time!BI$9 -> 52 | BJ5: =Time!BJ$9 -> 53 | BK5: =Time!BK$9 -> 54 | BL5: =Time!BL$9 -> 55 | BM5: =Time!BM$9 -> 56 | BN5: =Time!BN$9 -> 57 | BO5: =Time!BO$9 -> 58 | BP5: =Time!BP$9 -> 59 | BQ5: =Time!BQ$9 -> 60 | BR5: =Time!BR$9 -> 61 | BS5: =Time!BS$9 -> 62 | BT5: =Time!BT$9 -> 63 | BU5: =Time!BU$9 -> 64 | BV5: =Time!BV$9 -> 65 | BW5: =Time!BW$9 -> 66 | BX5: =Time!BX$9 -> 67 | BY5: =Time!BY$9 -> 68 | BZ5: =Time!BZ$9 -> 69
A7: CASH FLOW
E9: =OpRev!E$32 -> Electricity sales | F9: =OpRev!F$32 -> PL | G9: =OpRev!G$32 -> EUR k | H9: =OpRev!H$32 -> 1597042.464 | I9: =OpRev!I$32 -> 0 | J9: =OpRev!J$32 -> 0 | K9: =OpRev!K$32 -> 0 | L9: =OpRev!L$32 -> 0 | M9: =OpRev!M$32 -> 0 | N9: =OpRev!N$32 -> 0 | O9: =OpRev!O$32 -> 0 | P9: =OpRev!P$32 -> 0 | Q9: =OpRev!Q$32 -> 11596.93418 | R9: =OpRev!R$32 -> 12184.02898 | S9: =OpRev!S$32 -> 12184.02898 | T9: =OpRev!T$32 -> 12800.84544 | U9: =OpRev!U$32 -> 12800.84544 | V9: =OpRev!V$32 -> 13448.88824 | W9: =OpRev!W$32 -> 13448.88824 | X9: =OpRev!X$32 -> 14129.73821 | Y9: =OpRev!Y$32 -> 14129.73821 | Z9: =OpRev!Z$32 -> 14845.05621 | AA9: =OpRev!AA$32 -> 14845.05621 | AB9: =OpRev!AB$32 -> 15596.58718 | AC9: =OpRev!AC$32 -> 15596.58718 | AD9: =OpRev!AD$32 -> 16386.1644 | AE9: =OpRev!AE$32 -> 16386.1644 | AF9: =OpRev!AF$32 -> 17215.71398 | AG9: =OpRev!AG$32 -> 17215.71398 | AH9: =OpRev!AH$32 -> 18087.2595 | AI9: =OpRev!AI$32 -> 18087.2595 | AJ9: =OpRev!AJ$32 -> 19002.92701 | AK9: =OpRev!AK$32 -> 19002.92701 | AL9: =OpRev!AL$32 -> 19964.95019 | AM9: =OpRev!AM$32 -> 19964.95019 | AN9: =OpRev!AN$32 -> 20975.67579 | AO9: =OpRev!AO$32 -> 20975.67579 | AP9: =OpRev!AP$32 -> 22037.56938 | AQ9: =OpRev!AQ$32 -> 22037.56938 | AR9: =OpRev!AR$32 -> 23153.22133 | AS9: =OpRev!AS$32 -> 23153.22133 | AT9: =OpRev!AT$32 -> 24325.35316 | AU9: =OpRev!AU$32 -> 24325.35316 | AV9: =OpRev!AV$32 -> 25556.82416 | AW9: =OpRev!AW$32 -> 25556.82416 | AX9: =OpRev!AX$32 -> 26850.63838 | AY9: =OpRev!AY$32 -> 26850.63838 | AZ9: =OpRev!AZ$32 -> 28209.95195 | BA9: =OpRev!BA$32 -> 28209.95195 | BB9: =OpRev!BB$32 -> 29638.08077 | BC9: =OpRev!BC$32 -> 29638.08077 | BD9: =OpRev!BD$32 -> 31138.50861 | BE9: =OpRev!BE$32 -> 31138.50861 | BF9: =OpRev!BF$32 -> 32714.89561 | BG9: =OpRev!BG$32 -> 32714.89561 | BH9: =OpRev!BH$32 -> 34371.0872 | BI9: =OpRev!BI$32 -> 34371.0872 | BJ9: =OpRev!BJ$32 -> 36111.12349 | BK9: =OpRev!BK$32 -> 36111.12349 | BL9: =OpRev!BL$32 -> 37939.24911 | BM9: =OpRev!BM$32 -> 37939.24911 | BN9: =OpRev!BN$32 -> 39859.9236 | BO9: =OpRev!BO$32 -> 39859.9236 | BP9: =OpRev!BP$32 -> 41877.83223 | BQ9: =OpRev!BQ$32 -> 41877.83223 | BR9: =OpRev!BR$32 -> 43997.89749 | BS9: =OpRev!BS$32 -> 43997.89749 | BT9: =OpRev!BT$32 -> 46225.29105 | BU9: =OpRev!BU$32 -> 46225.29105 | BV9: =OpRev!BV$32 -> 48565.44641 | BW9: =OpRev!BW$32 -> 48565.44641 | BX9: =OpRev!BX$32 -> 51024.07213 | BY9: =OpRev!BY$32 -> 0 | BZ9: =OpRev!BZ$32 -> 0
E10: =OpCost!E$16 -> Land lease cost | F10: =OpCost!F$16 -> PL | G10: =OpCost!G$16 -> EUR k | H10: =OpCost!H$16 -> -143608.1687 | I10: =OpCost!I$16 -> 0 | J10: =OpCost!J$16 -> 0 | K10: =OpCost!K$16 -> 0 | L10: =OpCost!L$16 -> 0 | M10: =OpCost!M$16 -> 0 | N10: =OpCost!N$16 -> 0 | O10: =OpCost!O$16 -> 0 | P10: =OpCost!P$16 -> 0 | Q10: =OpCost!Q$16 -> -1615.335937 | R10: =OpCost!R$16 -> -1655.719336 | S10: =OpCost!S$16 -> -1655.719336 | T10: =OpCost!T$16 -> -1697.112319 | U10: =OpCost!U$16 -> -1697.112319 | V10: =OpCost!V$16 -> -1739.540127 | W10: =OpCost!W$16 -> -1739.540127 | X10: =OpCost!X$16 -> -1783.028631 | Y10: =OpCost!Y$16 -> -1783.028631 | Z10: =OpCost!Z$16 -> -1827.604346 | AA10: =OpCost!AA$16 -> -1827.604346 | AB10: =OpCost!AB$16 -> -1873.294455 | AC10: =OpCost!AC$16 -> -1873.294455 | AD10: =OpCost!AD$16 -> -1920.126816 | AE10: =OpCost!AE$16 -> -1920.126816 | AF10: =OpCost!AF$16 -> -1968.129987 | AG10: =OpCost!AG$16 -> -1968.129987 | AH10: =OpCost!AH$16 -> -2017.333236 | AI10: =OpCost!AI$16 -> -2017.333236 | AJ10: =OpCost!AJ$16 -> -2067.766567 | AK10: =OpCost!AK$16 -> -2067.766567 | AL10: =OpCost!AL$16 -> -2119.460731 | AM10: =OpCost!AM$16 -> -2119.460731 | AN10: =OpCost!AN$16 -> -2172.44725 | AO10: =OpCost!AO$16 -> -2172.44725 | AP10: =OpCost!AP$16 -> -2226.758431 | AQ10: =OpCost!AQ$16 -> -2226.758431 | AR10: =OpCost!AR$16 -> -2282.427392 | AS10: =OpCost!AS$16 -> -2282.427392 | AT10: =OpCost!AT$16 -> -2339.488077 | AU10: =OpCost!AU$16 -> -2339.488077 | AV10: =OpCost!AV$16 -> -2397.975278 | AW10: =OpCost!AW$16 -> -2397.975278 | AX10: =OpCost!AX$16 -> -2457.92466 | AY10: =OpCost!AY$16 -> -2457.92466 | AZ10: =OpCost!AZ$16 -> -2519.372777 | BA10: =OpCost!BA$16 -> -2519.372777 | BB10: =OpCost!BB$16 -> -2582.357096 | BC10: =OpCost!BC$16 -> -2582.357096 | BD10: =OpCost!BD$16 -> -2646.916024 | BE10: =OpCost!BE$16 -> -2646.916024 | BF10: =OpCost!BF$16 -> -2713.088924 | BG10: =OpCost!BG$16 -> -2713.088924 | BH10: =OpCost!BH$16 -> -2780.916147 | BI10: =OpCost!BI$16 -> -2780.916147 | BJ10: =OpCost!BJ$16 -> -2850.439051 | BK10: =OpCost!BK$16 -> -2850.439051 | BL10: =OpCost!BL$16 -> -2921.700027 | BM10: =OpCost!BM$16 -> -2921.700027 | BN10: =OpCost!BN$16 -> -2994.742528 | BO10: =OpCost!BO$16 -> -2994.742528 | BP10: =OpCost!BP$16 -> -3069.611091 | BQ10: =OpCost!BQ$16 -> -3069.611091 | BR10: =OpCost!BR$16 -> -3146.351369 | BS10: =OpCost!BS$16 -> -3146.351369 | BT10: =OpCost!BT$16 -> -3225.010153 | BU10: =OpCost!BU$16 -> -3225.010153 | BV10: =OpCost!BV$16 -> -3305.635407 | BW10: =OpCost!BW$16 -> -3305.635407 | BX10: =OpCost!BX$16 -> -3388.276292 | BY10: =OpCost!BY$16 -> 0 | BZ10: =OpCost!BZ$16 -> 0
E11: =OpCost!E$25 -> Maintenance cost | F11: =OpCost!F$25 -> PL | G11: =OpCost!G$25 -> EUR k | H11: =OpCost!H$25 -> -239346.9478 | I11: =OpCost!I$25 -> 0 | J11: =OpCost!J$25 -> 0 | K11: =OpCost!K$25 -> 0 | L11: =OpCost!L$25 -> 0 | M11: =OpCost!M$25 -> 0 | N11: =OpCost!N$25 -> 0 | O11: =OpCost!O$25 -> 0 | P11: =OpCost!P$25 -> 0 | Q11: =OpCost!Q$25 -> -2692.226562 | R11: =OpCost!R$25 -> -2759.532227 | S11: =OpCost!S$25 -> -2759.532227 | T11: =OpCost!T$25 -> -2828.520532 | U11: =OpCost!U$25 -> -2828.520532 | V11: =OpCost!V$25 -> -2899.233546 | W11: =OpCost!W$25 -> -2899.233546 | X11: =OpCost!X$25 -> -2971.714384 | Y11: =OpCost!Y$25 -> -2971.714384 | Z11: =OpCost!Z$25 -> -3046.007244 | AA11: =OpCost!AA$25 -> -3046.007244 | AB11: =OpCost!AB$25 -> -3122.157425 | AC11: =OpCost!AC$25 -> -3122.157425 | AD11: =OpCost!AD$25 -> -3200.21136 | AE11: =OpCost!AE$25 -> -3200.21136 | AF11: =OpCost!AF$25 -> -3280.216645 | AG11: =OpCost!AG$25 -> -3280.216645 | AH11: =OpCost!AH$25 -> -3362.222061 | AI11: =OpCost!AI$25 -> -3362.222061 | AJ11: =OpCost!AJ$25 -> -3446.277612 | AK11: =OpCost!AK$25 -> -3446.277612 | AL11: =OpCost!AL$25 -> -3532.434552 | AM11: =OpCost!AM$25 -> -3532.434552 | AN11: =OpCost!AN$25 -> -3620.745416 | AO11: =OpCost!AO$25 -> -3620.745416 | AP11: =OpCost!AP$25 -> -3711.264052 | AQ11: =OpCost!AQ$25 -> -3711.264052 | AR11: =OpCost!AR$25 -> -3804.045653 | AS11: =OpCost!AS$25 -> -3804.045653 | AT11: =OpCost!AT$25 -> -3899.146794 | AU11: =OpCost!AU$25 -> -3899.146794 | AV11: =OpCost!AV$25 -> -3996.625464 | AW11: =OpCost!AW$25 -> -3996.625464 | AX11: =OpCost!AX$25 -> -4096.541101 | AY11: =OpCost!AY$25 -> -4096.541101 | AZ11: =OpCost!AZ$25 -> -4198.954628 | BA11: =OpCost!BA$25 -> -4198.954628 | BB11: =OpCost!BB$25 -> -4303.928494 | BC11: =OpCost!BC$25 -> -4303.928494 | BD11: =OpCost!BD$25 -> -4411.526706 | BE11: =OpCost!BE$25 -> -4411.526706 | BF11: =OpCost!BF$25 -> -4521.814874 | BG11: =OpCost!BG$25 -> -4521.814874 | BH11: =OpCost!BH$25 -> -4634.860246 | BI11: =OpCost!BI$25 -> -4634.860246 | BJ11: =OpCost!BJ$25 -> -4750.731752 | BK11: =OpCost!BK$25 -> -4750.731752 | BL11: =OpCost!BL$25 -> -4869.500046 | BM11: =OpCost!BM$25 -> -4869.500046 | BN11: =OpCost!BN$25 -> -4991.237547 | BO11: =OpCost!BO$25 -> -4991.237547 | BP11: =OpCost!BP$25 -> -5116.018486 | BQ11: =OpCost!BQ$25 -> -5116.018486 | BR11: =OpCost!BR$25 -> -5243.918948 | BS11: =OpCost!BS$25 -> -5243.918948 | BT11: =OpCost!BT$25 -> -5375.016921 | BU11: =OpCost!BU$25 -> -5375.016921 | BV11: =OpCost!BV$25 -> -5509.392344 | BW11: =OpCost!BW$25 -> -5509.392344 | BX11: =OpCost!BX$25 -> -5647.127153 | BY11: =OpCost!BY$25 -> 0 | BZ11: =OpCost!BZ$25 -> 0
E12: =OpCost!E$34 -> Other operational cost | F12: =OpCost!F$34 -> PL | G12: =OpCost!G$34 -> EUR k | H12: =OpCost!H$34 -> -2393.469478 | I12: =OpCost!I$34 -> 0 | J12: =OpCost!J$34 -> 0 | K12: =OpCost!K$34 -> 0 | L12: =OpCost!L$34 -> 0 | M12: =OpCost!M$34 -> 0 | N12: =OpCost!N$34 -> 0 | O12: =OpCost!O$34 -> 0 | P12: =OpCost!P$34 -> 0 | Q12: =OpCost!Q$34 -> -26.92226562 | R12: =OpCost!R$34 -> -27.59532227 | S12: =OpCost!S$34 -> -27.59532227 | T12: =OpCost!T$34 -> -28.28520532 | U12: =OpCost!U$34 -> -28.28520532 | V12: =OpCost!V$34 -> -28.99233546 | W12: =OpCost!W$34 -> -28.99233546 | X12: =OpCost!X$34 -> -29.71714384 | Y12: =OpCost!Y$34 -> -29.71714384 | Z12: =OpCost!Z$34 -> -30.46007244 | AA12: =OpCost!AA$34 -> -30.46007244 | AB12: =OpCost!AB$34 -> -31.22157425 | AC12: =OpCost!AC$34 -> -31.22157425 | AD12: =OpCost!AD$34 -> -32.0021136 | AE12: =OpCost!AE$34 -> -32.0021136 | AF12: =OpCost!AF$34 -> -32.80216645 | AG12: =OpCost!AG$34 -> -32.80216645 | AH12: =OpCost!AH$34 -> -33.62222061 | AI12: =OpCost!AI$34 -> -33.62222061 | AJ12: =OpCost!AJ$34 -> -34.46277612 | AK12: =OpCost!AK$34 -> -34.46277612 | AL12: =OpCost!AL$34 -> -35.32434552 | AM12: =OpCost!AM$34 -> -35.32434552 | AN12: =OpCost!AN$34 -> -36.20745416 | AO12: =OpCost!AO$34 -> -36.20745416 | AP12: =OpCost!AP$34 -> -37.11264052 | AQ12: =OpCost!AQ$34 -> -37.11264052 | AR12: =OpCost!AR$34 -> -38.04045653 | AS12: =OpCost!AS$34 -> -38.04045653 | AT12: =OpCost!AT$34 -> -38.99146794 | AU12: =OpCost!AU$34 -> -38.99146794 | AV12: =OpCost!AV$34 -> -39.96625464 | AW12: =OpCost!AW$34 -> -39.96625464 | AX12: =OpCost!AX$34 -> -40.96541101 | AY12: =OpCost!AY$34 -> -40.96541101 | AZ12: =OpCost!AZ$34 -> -41.98954628 | BA12: =OpCost!BA$34 -> -41.98954628 | BB12: =OpCost!BB$34 -> -43.03928494 | BC12: =OpCost!BC$34 -> -43.03928494 | BD12: =OpCost!BD$34 -> -44.11526706 | BE12: =OpCost!BE$34 -> -44.11526706 | BF12: =OpCost!BF$34 -> -45.21814874 | BG12: =OpCost!BG$34 -> -45.21814874 | BH12: =OpCost!BH$34 -> -46.34860246 | BI12: =OpCost!BI$34 -> -46.34860246 | BJ12: =OpCost!BJ$34 -> -47.50731752 | BK12: =OpCost!BK$34 -> -47.50731752 | BL12: =OpCost!BL$34 -> -48.69500046 | BM12: =OpCost!BM$34 -> -48.69500046 | BN12: =OpCost!BN$34 -> -49.91237547 | BO12: =OpCost!BO$34 -> -49.91237547 | BP12: =OpCost!BP$34 -> -51.16018486 | BQ12: =OpCost!BQ$34 -> -51.16018486 | BR12: =OpCost!BR$34 -> -52.43918948 | BS12: =OpCost!BS$34 -> -52.43918948 | BT12: =OpCost!BT$34 -> -53.75016921 | BU12: =OpCost!BU$34 -> -53.75016921 | BV12: =OpCost!BV$34 -> -55.09392344 | BW12: =OpCost!BW$34 -> -55.09392344 | BX12: =OpCost!BX$34 -> -56.47127153 | BY12: =OpCost!BY$34 -> 0 | BZ12: =OpCost!BZ$34 -> 0
E13: Operating cashflow | G13: EUR k | H13: =SUM(J13:BZ13) -> 1211693.878 | J13: =SUM(J9:J12) -> 0 | K13: =SUM(K9:K12) -> 0 | L13: 0 | M13: 0 | N13: 0 | O13: 0 | P13: 0 | Q13: 7262.449417 | R13: 7741.18209 | S13: 7741.18209 | T13: 8246.927385 | U13: 8246.927385 | V13: 8781.122234 | W13: 8781.122234 | X13: 9345.278051 | Y13: 9345.278051 | Z13: 9940.984544 | AA13: 9940.984544 | AB13: 10569.91372 | AC13: 10569.91372 | AD13: 11233.82411 | AE13: 11233.82411 | AF13: 11934.56518 | AG13: 11934.56518 | AH13: 12674.08198 | AI13: 12674.08198 | AJ13: 13454.42005 | AK13: 13454.42005 | AL13: 14277.73056 | AM13: 14277.73056 | AN13: 15146.27567 | AO13: 15146.27567 | AP13: 16062.43425 | AQ13: 16062.43425 | AR13: 17028.70783 | AS13: 17028.70783 | AT13: 18047.72682 | AU13: 18047.72682 | AV13: 19122.25716 | AW13: 19122.25716 | AX13: 20255.20721 | AY13: 20255.20721 | AZ13: 21449.635 | BA13: 21449.635 | BB13: 22708.75589 | BC13: 22708.75589 | BD13: 24035.95061 | BE13: 24035.95061 | BF13: 25434.77366 | BG13: 25434.77366 | BH13: 26908.9622 | BI13: 26908.9622 | BJ13: 28462.44537 | BK13: 28462.44537 | BL13: 30099.35404 | BM13: 30099.35404 | BN13: 31824.03115 | BO13: 31824.03115 | BP13: 33641.04247 | BQ13: 33641.04247 | BR13: 35555.18798 | BS13: 35555.18798 | BT13: 37571.51381 | BU13: 37571.51381 | BV13: 39695.32473 | BW13: =SUM(BW9:BW12) -> 39695.32473 | BX13: 41932.19742 | BY13: 0 | BZ13: 0
E15: =Capex!E$19 -> Infrastructure cost | F15: =Capex!F$19 -> CF | G15: =Capex!G$19 -> EUR k | H15: =Capex!H$19 -> -200000 | I15: =Capex!I$19 -> 0 | J15: =Capex!J$19 -> 0 | K15: =Capex!K$19 -> -33333.33333 | L15: =Capex!L$19 -> -33333.33333 | M15: =Capex!M$19 -> -33333.33333 | N15: =Capex!N$19 -> -33333.33333 | O15: =Capex!O$19 -> -33333.33333 | P15: =Capex!P$19 -> -33333.33333 | Q15: =Capex!Q$19 -> 0 | R15: =Capex!R$19 -> 0 | S15: =Capex!S$19 -> 0 | T15: =Capex!T$19 -> 0 | U15: =Capex!U$19 -> 0 | V15: =Capex!V$19 -> 0 | W15: =Capex!W$19 -> 0 | X15: =Capex!X$19 -> 0 | Y15: =Capex!Y$19 -> 0 | Z15: =Capex!Z$19 -> 0 | AA15: =Capex!AA$19 -> 0 | AB15: =Capex!AB$19 -> 0 | AC15: =Capex!AC$19 -> 0 | AD15: =Capex!AD$19 -> 0 | AE15: =Capex!AE$19 -> 0 | AF15: =Capex!AF$19 -> 0 | AG15: =Capex!AG$19 -> 0 | AH15: =Capex!AH$19 -> 0 | AI15: =Capex!AI$19 -> 0 | AJ15: =Capex!AJ$19 -> 0 | AK15: =Capex!AK$19 -> 0 | AL15: =Capex!AL$19 -> 0 | AM15: =Capex!AM$19 -> 0 | AN15: =Capex!AN$19 -> 0 | AO15: =Capex!AO$19 -> 0 | AP15: =Capex!AP$19 -> 0 | AQ15: =Capex!AQ$19 -> 0 | AR15: =Capex!AR$19 -> 0 | AS15: =Capex!AS$19 -> 0 | AT15: =Capex!AT$19 -> 0 | AU15: =Capex!AU$19 -> 0 | AV15: =Capex!AV$19 -> 0 | AW15: =Capex!AW$19 -> 0 | AX15: =Capex!AX$19 -> 0 | AY15: =Capex!AY$19 -> 0 | AZ15: =Capex!AZ$19 -> 0 | BA15: =Capex!BA$19 -> 0 | BB15: =Capex!BB$19 -> 0 | BC15: =Capex!BC$19 -> 0 | BD15: =Capex!BD$19 -> 0 | BE15: =Capex!BE$19 -> 0 | BF15: =Capex!BF$19 -> 0 | BG15: =Capex!BG$19 -> 0 | BH15: =Capex!BH$19 -> 0 | BI15: =Capex!BI$19 -> 0 | BJ15: =Capex!BJ$19 -> 0 | BK15: =Capex!BK$19 -> 0 | BL15: =Capex!BL$19 -> 0 | BM15: =Capex!BM$19 -> 0 | BN15: =Capex!BN$19 -> 0 | BO15: =Capex!BO$19 -> 0 | BP15: =Capex!BP$19 -> 0 | BQ15: =Capex!BQ$19 -> 0 | BR15: =Capex!BR$19 -> 0 | BS15: =Capex!BS$19 -> 0 | BT15: =Capex!BT$19 -> 0 | BU15: =Capex!BU$19 -> 0 | BV15: =Capex!BV$19 -> 0 | BW15: =Capex!BW$19 -> 0 | BX15: =Capex!BX$19 -> 0 | BY15: =Capex!BY$19 -> 0 | BZ15: =Capex!BZ$19 -> 0
E16: Pre tax- pre financing cash flow | G16: EUR k | H16: =SUM(J16:BZ16) -> 1011693.878 | J16: =J13 + J15 -> 0 | K16: =K13 + K15 -> -33333.33333 | L16: -33333.33333 | M16: -33333.33333 | N16: -33333.33333 | O16: -33333.33333 | P16: -33333.33333 | Q16: 7262.449417 | R16: 7741.18209 | S16: 7741.18209 | T16: 8246.927385 | U16: 8246.927385 | V16: 8781.122234 | W16: 8781.122234 | X16: 9345.278051 | Y16: 9345.278051 | Z16: 9940.984544 | AA16: 9940.984544 | AB16: 10569.91372 | AC16: 10569.91372 | AD16: 11233.82411 | AE16: 11233.82411 | AF16: 11934.56518 | AG16: 11934.56518 | AH16: 12674.08198 | AI16: 12674.08198 | AJ16: 13454.42005 | AK16: 13454.42005 | AL16: 14277.73056 | AM16: 14277.73056 | AN16: 15146.27567 | AO16: 15146.27567 | AP16: 16062.43425 | AQ16: 16062.43425 | AR16: 17028.70783 | AS16: 17028.70783 | AT16: 18047.72682 | AU16: 18047.72682 | AV16: 19122.25716 | AW16: 19122.25716 | AX16: 20255.20721 | AY16: 20255.20721 | AZ16: 21449.635 | BA16: 21449.635 | BB16: 22708.75589 | BC16: 22708.75589 | BD16: 24035.95061 | BE16: 24035.95061 | BF16: 25434.77366 | BG16: 25434.77366 | BH16: 26908.9622 | BI16: 26908.9622 | BJ16: 28462.44537 | BK16: 28462.44537 | BL16: 30099.35404 | BM16: 30099.35404 | BN16: 31824.03115 | BO16: 31824.03115 | BP16: 33641.04247 | BQ16: 33641.04247 | BR16: 35555.18798 | BS16: 35555.18798 | BT16: 37571.51381 | BU16: 37571.51381 | BV16: 39695.32473 | BW16: =BW13 + BW15 -> 39695.32473 | BX16: 41932.19742 | BY16: 0 | BZ16: 0
A19: NPV
A21: From 1st principle
E22: =InpC!E$60 -> PV discount date | F22: =InpC!F$60 -> 2016-06-30 | G22: =InpC!G$60 -> date
E23: =InpC!E$62 -> PV day count basis | F23: =InpC!F$62 -> 365 | G23: =InpC!G$62 -> days
E24: =Time!E$21 -> Model period ending | F24: =Time!F$21 -> 00:00:00 | G24: =Time!G$21 -> date | H24: =Time!H$21 -> 00:00:00 | I24: =Time!I$21 -> 00:00:00 | J24: =Time!J$21 -> 2016-06-30 | K24: =Time!K$21 -> 2016-12-31 | L24: =Time!L$21 -> 2017-06-30 | M24: =Time!M$21 -> 2017-12-31 | N24: =Time!N$21 -> 2018-06-30 | O24: =Time!O$21 -> 2018-12-31 | P24: =Time!P$21 -> 2019-06-30 | Q24: =Time!Q$21 -> 2019-12-31 | R24: =Time!R$21 -> 2020-06-30 | S24: =Time!S$21 -> 2020-12-31 | T24: =Time!T$21 -> 2021-06-30 | U24: =Time!U$21 -> 2021-12-31 | V24: =Time!V$21 -> 2022-06-30 | W24: =Time!W$21 -> 2022-12-31 | X24: =Time!X$21 -> 2023-06-30 | Y24: =Time!Y$21 -> 2023-12-31 | Z24: =Time!Z$21 -> 2024-06-30 | AA24: =Time!AA$21 -> 2024-12-31 | AB24: =Time!AB$21 -> 2025-06-30 | AC24: =Time!AC$21 -> 2025-12-31 | AD24: =Time!AD$21 -> 2026-06-30 | AE24: =Time!AE$21 -> 2026-12-31 | AF24: =Time!AF$21 -> 2027-06-30 | AG24: =Time!AG$21 -> 2027-12-31 | AH24: =Time!AH$21 -> 2028-06-30 | AI24: =Time!AI$21 -> 2028-12-31 | AJ24: =Time!AJ$21 -> 2029-06-30 | AK24: =Time!AK$21 -> 2029-12-31 | AL24: =Time!AL$21 -> 2030-06-30 | AM24: =Time!AM$21 -> 2030-12-31 | AN24: =Time!AN$21 -> 2031-06-30 | AO24: =Time!AO$21 -> 2031-12-31 | AP24: =Time!AP$21 -> 2032-06-30 | AQ24: =Time!AQ$21 -> 2032-12-31 | AR24: =Time!AR$21 -> 2033-06-30 | AS24: =Time!AS$21 -> 2033-12-31 | AT24: =Time!AT$21 -> 2034-06-30 | AU24: =Time!AU$21 -> 2034-12-31 | AV24: =Time!AV$21 -> 2035-06-30 | AW24: =Time!AW$21 -> 2035-12-31 | AX24: =Time!AX$21 -> 2036-06-30 | AY24: =Time!AY$21 -> 2036-12-31 | AZ24: =Time!AZ$21 -> 2037-06-30 | BA24: =Time!BA$21 -> 2037-12-31 | BB24: =Time!BB$21 -> 2038-06-30 | BC24: =Time!BC$21 -> 2038-12-31 | BD24: =Time!BD$21 -> 2039-06-30 | BE24: =Time!BE$21 -> 2039-12-31 | BF24: =Time!BF$21 -> 2040-06-30 | BG24: =Time!BG$21 -> 2040-12-31 | BH24: =Time!BH$21 -> 2041-06-30 | BI24: =Time!BI$21 -> 2041-12-31 | BJ24: =Time!BJ$21 -> 2042-06-30 | BK24: =Time!BK$21 -> 2042-12-31 | BL24: =Time!BL$21 -> 2043-06-30 | BM24: =Time!BM$21 -> 2043-12-31 | BN24: =Time!BN$21 -> 2044-06-30 | BO24: =Time!BO$21 -> 2044-12-31 | BP24: =Time!BP$21 -> 2045-06-30 | BQ24: =Time!BQ$21 -> 2045-12-31 | BR24: =Time!BR$21 -> 2046-06-30 | BS24: =Time!BS$21 -> 2046-12-31 | BT24: =Time!BT$21 -> 2047-06-30 | BU24: =Time!BU$21 -> 2047-12-31 | BV24: =Time!BV$21 -> 2048-06-30 | BW24: =Time!BW$21 -> 2048-12-31 | BX24: =Time!BX$21 -> 2049-06-30 | BY24: =Time!BY$21 -> 2049-12-31 | BZ24: =Time!BZ$21 -> 2050-06-30
E25: Years for PV | G25: years | J25: =(J24 - $F22) / $F23 -> 0 | K25: 0.504109589 | L25: 1 | M25: 1.504109589 | N25: 2 | O25: 2.504109589 | P25: 3 | Q25: 3.504109589 | R25: 4.002739726 | S25: 4.506849315 | T25: 5.002739726 | U25: 5.506849315 | V25: 6.002739726 | W25: 6.506849315 | X25: 7.002739726 | Y25: 7.506849315 | Z25: 8.005479452 | AA25: 8.509589041 | AB25: 9.005479452 | AC25: 9.509589041 | AD25: 10.00547945 | AE25: 10.50958904 | AF25: 11.00547945 | AG25: 11.50958904 | AH25: 12.00821918 | AI25: 12.51232877 | AJ25: 13.00821918 | AK25: 13.51232877 | AL25: 14.00821918 | AM25: 14.51232877 | AN25: 15.00821918 | AO25: 15.51232877 | AP25: 16.0109589 | AQ25: 16.51506849 | AR25: 17.0109589 | AS25: 17.51506849 | AT25: 18.0109589 | AU25: 18.51506849 | AV25: 19.0109589 | AW25: 19.51506849 | AX25: 20.01369863 | AY25: 20.51780822 | AZ25: 21.01369863 | BA25: 21.51780822 | BB25: 22.01369863 | BC25: 22.51780822 | BD25: 23.01369863 | BE25: 23.51780822 | BF25: 24.01643836 | BG25: 24.52054795 | BH25: 25.01643836 | BI25: 25.52054795 | BJ25: 26.01643836 | BK25: 26.52054795 | BL25: 27.01643836 | BM25: 27.52054795 | BN25: 28.01917808 | BO25: 28.52328767 | BP25: 29.01917808 | BQ25: 29.52328767 | BR25: 30.01917808 | BS25: 30.52328767 | BT25: 31.01917808 | BU25: 31.52328767 | BV25: =(BV24 - $F22) / $F23 -> 32.02191781 | BW25: 32.5260274 | BX25: 33.02191781 | BY25: 33.5260274 | BZ25: 34.02191781
E27: =InpC!E$64 -> PV discount rate | F27: =InpC!F$64 -> 0.08 | G27: =InpC!G$64 -> %
E28: =E25 -> Years for PV | F28: =F25 -> 0 | G28: years | H28: 0 | I28: 0 | J28: 0 | K28: 0.504109589 | L28: 1 | M28: 1.504109589 | N28: 2 | O28: 2.504109589 | P28: 3 | Q28: 3.504109589 | R28: 4.002739726 | S28: 4.506849315 | T28: 5.002739726 | U28: 5.506849315 | V28: 6.002739726 | W28: 6.506849315 | X28: 7.002739726 | Y28: 7.506849315 | Z28: 8.005479452 | AA28: 8.509589041 | AB28: 9.005479452 | AC28: 9.509589041 | AD28: 10.00547945 | AE28: 10.50958904 | AF28: 11.00547945 | AG28: 11.50958904 | AH28: 12.00821918 | AI28: 12.51232877 | AJ28: 13.00821918 | AK28: 13.51232877 | AL28: 14.00821918 | AM28: 14.51232877 | AN28: 15.00821918 | AO28: 15.51232877 | AP28: 16.0109589 | AQ28: 16.51506849 | AR28: 17.0109589 | AS28: 17.51506849 | AT28: 18.0109589 | AU28: 18.51506849 | AV28: 19.0109589 | AW28: 19.51506849 | AX28: 20.01369863 | AY28: 20.51780822 | AZ28: 21.01369863 | BA28: 21.51780822 | BB28: 22.01369863 | BC28: 22.51780822 | BD28: 23.01369863 | BE28: 23.51780822 | BF28: 24.01643836 | BG28: 24.52054795 | BH28: 25.01643836 | BI28: 25.52054795 | BJ28: 26.01643836 | BK28: 26.52054795 | BL28: 27.01643836 | BM28: 27.52054795 | BN28: 28.01917808 | BO28: 28.52328767 | BP28: 29.01917808 | BQ28: 29.52328767 | BR28: =BR25 -> 30.01917808 | BS28: 30.52328767 | BT28: 31.01917808 | BU28: 31.52328767 | BV28: 32.02191781 | BW28: 32.5260274 | BX28: 33.02191781 | BY28: 33.5260274 | BZ28: 34.02191781
E29: Discount factor | G29: factor | J29: =1 / (1 + $F27) ^ J28 -> 1 | K29: =1 / (1 + $F27) ^ K28 -> 0.9619461579 | L29: 0.9259259259 | M29: 0.8906908869 | N29: 0.8573388203 | O29: 0.8247137842 | P29: 0.793832241 | Q29: 0.7636238743 | R29: 0.7348748865 | S29: 0.7069100736 | T29: 0.6804397097 | U29: 0.6545463644 | V29: 0.6300367683 | W29: 0.6060614486 | X29: 0.583367378 | Y29: 0.5611680079 | Z29: 0.5400410988 | AA29: 0.5194904601 | AB29: 0.5000380544 | AC29: 0.4810096853 | AD29: 0.4629981986 | AE29: 0.4453793382 | AF29: 0.4287020357 | AG29: 0.4123882761 | AH29: 0.3968626412 | AI29: 0.3817604929 | AJ29: 0.3674654085 | AK29: 0.3534819379 | AL29: 0.3402457486 | AM29: 0.3272980906 | AN29: 0.3150423598 | AO29: 0.3030537876 | AP29: 0.2916443884 | AQ29: 0.2805461989 | AR29: 0.2700411004 | AS29: 0.259764999 | AT29: 0.2500380559 | AU29: 0.2405231472 | AV29: 0.2315167184 | AW29: 0.2227066178 | AX29: 0.2143221368 | AY29: 0.2061663561 | AZ29: 0.198446423 | BA29: 0.1908947741 | BB29: 0.1837466879 | BC29: 0.1767544205 | BD29: 0.1701358222 | BE29: 0.1636615005 | BF29: 0.157499956 | BG29: 0.1515064775 | BH29: 0.1458332926 | BI29: 0.1402837755 | BJ29: 0.1350308264 | BK29: 0.1298923847 | BL29: 0.125028543 | BM29: 0.1202707266 | BN29: 0.1157427623 | BO29: 0.1113383055 | BP29: 0.1071692243 | BQ29: 0.1030910236 | BR29: 0.09923076326 | BS29: 0.09545465146 | BT29: 0.09188033635 | BU29: 0.08838393654 | BV29: 0.08505644928 | BW29: =1 / (1 + $F27) ^ BW28 -> 0.08181972459 | BX29: 0.07875597156 | BY29: 0.07575900425 | BZ29: 0.07292219589
E31: ='Cash flow'!E$16 -> Pre tax- pre financing cash flow | F31: ='Cash flow'!F$16 -> 0 | G31: ='Cash flow'!G$16 -> EUR k | H31: ='Cash flow'!H$16 -> 1011693.878 | I31: ='Cash flow'!I$16 -> 0 | J31: ='Cash flow'!J$16 -> 0 | K31: ='Cash flow'!K$16 -> -33333.33333 | L31: ='Cash flow'!L$16 -> -33333.33333 | M31: ='Cash flow'!M$16 -> -33333.33333 | N31: ='Cash flow'!N$16 -> -33333.33333 | O31: ='Cash flow'!O$16 -> -33333.33333 | P31: ='Cash flow'!P$16 -> -33333.33333 | Q31: ='Cash flow'!Q$16 -> 7262.449417 | R31: ='Cash flow'!R$16 -> 7741.18209 | S31: ='Cash flow'!S$16 -> 7741.18209 | T31: ='Cash flow'!T$16 -> 8246.927385 | U31: ='Cash flow'!U$16 -> 8246.927385 | V31: ='Cash flow'!V$16 -> 8781.122234 | W31: ='Cash flow'!W$16 -> 8781.122234 | X31: ='Cash flow'!X$16 -> 9345.278051 | Y31: ='Cash flow'!Y$16 -> 9345.278051 | Z31: ='Cash flow'!Z$16 -> 9940.984544 | AA31: ='Cash flow'!AA$16 -> 9940.984544 | AB31: ='Cash flow'!AB$16 -> 10569.91372 | AC31: ='Cash flow'!AC$16 -> 10569.91372 | AD31: ='Cash flow'!AD$16 -> 11233.82411 | AE31: ='Cash flow'!AE$16 -> 11233.82411 | AF31: ='Cash flow'!AF$16 -> 11934.56518 | AG31: ='Cash flow'!AG$16 -> 11934.56518 | AH31: ='Cash flow'!AH$16 -> 12674.08198 | AI31: ='Cash flow'!AI$16 -> 12674.08198 | AJ31: ='Cash flow'!AJ$16 -> 13454.42005 | AK31: ='Cash flow'!AK$16 -> 13454.42005 | AL31: ='Cash flow'!AL$16 -> 14277.73056 | AM31: ='Cash flow'!AM$16 -> 14277.73056 | AN31: ='Cash flow'!AN$16 -> 15146.27567 | AO31: ='Cash flow'!AO$16 -> 15146.27567 | AP31: ='Cash flow'!AP$16 -> 16062.43425 | AQ31: ='Cash flow'!AQ$16 -> 16062.43425 | AR31: ='Cash flow'!AR$16 -> 17028.70783 | AS31: ='Cash flow'!AS$16 -> 17028.70783 | AT31: ='Cash flow'!AT$16 -> 18047.72682 | AU31: ='Cash flow'!AU$16 -> 18047.72682 | AV31: ='Cash flow'!AV$16 -> 19122.25716 | AW31: ='Cash flow'!AW$16 -> 19122.25716 | AX31: ='Cash flow'!AX$16 -> 20255.20721 | AY31: ='Cash flow'!AY$16 -> 20255.20721 | AZ31: ='Cash flow'!AZ$16 -> 21449.635 | BA31: ='Cash flow'!BA$16 -> 21449.635 | BB31: ='Cash flow'!BB$16 -> 22708.75589 | BC31: ='Cash flow'!BC$16 -> 22708.75589 | BD31: ='Cash flow'!BD$16 -> 24035.95061 | BE31: ='Cash flow'!BE$16 -> 24035.95061 | BF31: ='Cash flow'!BF$16 -> 25434.77366 | BG31: ='Cash flow'!BG$16 -> 25434.77366 | BH31: ='Cash flow'!BH$16 -> 26908.9622 | BI31: ='Cash flow'!BI$16 -> 26908.9622 | BJ31: ='Cash flow'!BJ$16 -> 28462.44537 | BK31: ='Cash flow'!BK$16 -> 28462.44537 | BL31: ='Cash flow'!BL$16 -> 30099.35404 | BM31: ='Cash flow'!BM$16 -> 30099.35404 | BN31: ='Cash flow'!BN$16 -> 31824.03115 | BO31: ='Cash flow'!BO$16 -> 31824.03115 | BP31: ='Cash flow'!BP$16 -> 33641.04247 | BQ31: ='Cash flow'!BQ$16 -> 33641.04247 | BR31: ='Cash flow'!BR$16 -> 35555.18798 | BS31: ='Cash flow'!BS$16 -> 35555.18798 | BT31: ='Cash flow'!BT$16 -> 37571.51381 | BU31: ='Cash flow'!BU$16 -> 37571.51381 | BV31: ='Cash flow'!BV$16 -> 39695.32473 | BW31: ='Cash flow'!BW$16 -> 39695.32473 | BX31: ='Cash flow'!BX$16 -> 41932.19742 | BY31: ='Cash flow'!BY$16 -> 0 | BZ31: ='Cash flow'!BZ$16 -> 0
E32: =E29 -> Discount factor | F32: =F29 -> 0 | G32: factor | H32: 0 | I32: 0 | J32: 1 | K32: 0.9619461579 | L32: 0.9259259259 | M32: 0.8906908869 | N32: 0.8573388203 | O32: 0.8247137842 | P32: 0.793832241 | Q32: 0.7636238743 | R32: 0.7348748865 | S32: 0.7069100736 | T32: 0.6804397097 | U32: 0.6545463644 | V32: 0.6300367683 | W32: 0.6060614486 | X32: 0.583367378 | Y32: 0.5611680079 | Z32: 0.5400410988 | AA32: 0.5194904601 | AB32: 0.5000380544 | AC32: 0.4810096853 | AD32: 0.4629981986 | AE32: 0.4453793382 | AF32: 0.4287020357 | AG32: 0.4123882761 | AH32: 0.3968626412 | AI32: 0.3817604929 | AJ32: 0.3674654085 | AK32: 0.3534819379 | AL32: 0.3402457486 | AM32: 0.3272980906 | AN32: 0.3150423598 | AO32: 0.3030537876 | AP32: 0.2916443884 | AQ32: 0.2805461989 | AR32: 0.2700411004 | AS32: 0.259764999 | AT32: 0.2500380559 | AU32: 0.2405231472 | AV32: 0.2315167184 | AW32: 0.2227066178 | AX32: 0.2143221368 | AY32: 0.2061663561 | AZ32: 0.198446423 | BA32: 0.1908947741 | BB32: 0.1837466879 | BC32: 0.1767544205 | BD32: 0.1701358222 | BE32: 0.1636615005 | BF32: 0.157499956 | BG32: 0.1515064775 | BH32: 0.1458332926 | BI32: 0.1402837755 | BJ32: 0.1350308264 | BK32: 0.1298923847 | BL32: 0.125028543 | BM32: 0.1202707266 | BN32: 0.1157427623 | BO32: 0.1113383055 | BP32: 0.1071692243 | BQ32: 0.1030910236 | BR32: =BR29 -> 0.09923076326 | BS32: 0.09545465146 | BT32: 0.09188033635 | BU32: 0.08838393654 | BV32: 0.08505644928 | BW32: 0.08181972459 | BX32: 0.07875597156 | BY32: 0.07575900425 | BZ32: 0.07292219589
E33: PV of pre tax- pre financing cash flows | G33: EUR k | H33: =SUM(J33:BZ33) -> 90958.397 | J33: =J31 * J32 -> 0 | K33: -32064.87193 | L33: -30864.19753 | M33: -29689.69623 | N33: -28577.96068 | O33: -27490.45947 | P33: -26461.0747 | Q33: 5545.77976 | R33: 5688.80031 | S33: 5472.319601 | T33: 5611.536876 | U33: 5397.996338 | V33: 5532.429874 | W33: 5321.899661 | X33: 5451.730354 | Y33: 5244.271067 | Z33: 5368.540216 | AA33: 5164.246635 | AB33: 5285.359094 | AC33: 5084.230873 | AD33: 5201.240327 | AE33: 5003.313149 | AF33: 5116.372387 | AG33: 4921.67476 | AH33: 5029.869649 | AI33: 4838.463783 | AJ33: 4944.033961 | AK33: 4755.894473 | AL33: 4857.937122 | AM33: 4673.07395 | AN33: 4771.71843 | AO33: 4590.13621 | AP33: 4684.518814 | AQ33: 4506.254875 | AR33: 4598.450999 | AS33: 4423.462271 | AT33: 4512.618527 | AU33: 4340.896054 | AV33: 4427.122227 | AW33: 4258.653217 | AX33: 4341.139291 | AY33: 4175.942262 | AZ33: 4256.60334 | BA33: 4094.623229 | BB33: 4172.658683 | BC33: 4013.872988 | BD33: 4089.376219 | BE33: 3933.759742 | BF33: 4005.975732 | BG33: 3853.532964 | BH33: 3924.222557 | BI33: 3774.890812 | BJ33: 3843.30752 | BK33: 3697.054903 | BL33: 3763.278381 | BM33: 3620.07118 | BN33: 3683.401272 | BO33: 3543.233701 | BP33: 3605.284427 | BQ33: 3468.089502 | BR33: 3528.168441 | BS33: 3393.908077 | BT33: 3452.083326 | BU33: 3320.718292 | BV33: =BV31 * BV32 -> 3376.343375 | BW33: 3247.860537 | BX33: 3302.410947 | BY33: 0 | BZ33: =BZ31 * BZ32 -> 0
E34: Project NPV | F34: =SUM(J33:BZ33) -> 90958.397 | G34: EUR k
A36: Using XNPV Function
E37: =InpC!E$64 -> PV discount rate | F37: =InpC!F$64 -> 0.08 | G37: =InpC!G$64 -> %
E38: =Time!E$21 -> Model period ending | F38: =Time!F$21 -> 00:00:00 | G38: =Time!G$21 -> date | H38: =Time!H$21 -> 00:00:00 | I38: =Time!I$21 -> 00:00:00 | J38: =Time!J$21 -> 2016-06-30 | K38: =Time!K$21 -> 2016-12-31 | L38: =Time!L$21 -> 2017-06-30 | M38: =Time!M$21 -> 2017-12-31 | N38: =Time!N$21 -> 2018-06-30 | O38: =Time!O$21 -> 2018-12-31 | P38: =Time!P$21 -> 2019-06-30 | Q38: =Time!Q$21 -> 2019-12-31 | R38: =Time!R$21 -> 2020-06-30 | S38: =Time!S$21 -> 2020-12-31 | T38: =Time!T$21 -> 2021-06-30 | U38: =Time!U$21 -> 2021-12-31 | V38: =Time!V$21 -> 2022-06-30 | W38: =Time!W$21 -> 2022-12-31 | X38: =Time!X$21 -> 2023-06-30 | Y38: =Time!Y$21 -> 2023-12-31 | Z38: =Time!Z$21 -> 2024-06-30 | AA38: =Time!AA$21 -> 2024-12-31 | AB38: =Time!AB$21 -> 2025-06-30 | AC38: =Time!AC$21 -> 2025-12-31 | AD38: =Time!AD$21 -> 2026-06-30 | AE38: =Time!AE$21 -> 2026-12-31 | AF38: =Time!AF$21 -> 2027-06-30 | AG38: =Time!AG$21 -> 2027-12-31 | AH38: =Time!AH$21 -> 2028-06-30 | AI38: =Time!AI$21 -> 2028-12-31 | AJ38: =Time!AJ$21 -> 2029-06-30 | AK38: =Time!AK$21 -> 2029-12-31 | AL38: =Time!AL$21 -> 2030-06-30 | AM38: =Time!AM$21 -> 2030-12-31 | AN38: =Time!AN$21 -> 2031-06-30 | AO38: =Time!AO$21 -> 2031-12-31 | AP38: =Time!AP$21 -> 2032-06-30 | AQ38: =Time!AQ$21 -> 2032-12-31 | AR38: =Time!AR$21 -> 2033-06-30 | AS38: =Time!AS$21 -> 2033-12-31 | AT38: =Time!AT$21 -> 2034-06-30 | AU38: =Time!AU$21 -> 2034-12-31 | AV38: =Time!AV$21 -> 2035-06-30 | AW38: =Time!AW$21 -> 2035-12-31 | AX38: =Time!AX$21 -> 2036-06-30 | AY38: =Time!AY$21 -> 2036-12-31 | AZ38: =Time!AZ$21 -> 2037-06-30 | BA38: =Time!BA$21 -> 2037-12-31 | BB38: =Time!BB$21 -> 2038-06-30 | BC38: =Time!BC$21 -> 2038-12-31 | BD38: =Time!BD$21 -> 2039-06-30 | BE38: =Time!BE$21 -> 2039-12-31 | BF38: =Time!BF$21 -> 2040-06-30 | BG38: =Time!BG$21 -> 2040-12-31 | BH38: =Time!BH$21 -> 2041-06-30 | BI38: =Time!BI$21 -> 2041-12-31 | BJ38: =Time!BJ$21 -> 2042-06-30 | BK38: =Time!BK$21 -> 2042-12-31 | BL38: =Time!BL$21 -> 2043-06-30 | BM38: =Time!BM$21 -> 2043-12-31 | BN38: =Time!BN$21 -> 2044-06-30 | BO38: =Time!BO$21 -> 2044-12-31 | BP38: =Time!BP$21 -> 2045-06-30 | BQ38: =Time!BQ$21 -> 2045-12-31 | BR38: =Time!BR$21 -> 2046-06-30 | BS38: =Time!BS$21 -> 2046-12-31 | BT38: =Time!BT$21 -> 2047-06-30 | BU38: =Time!BU$21 -> 2047-12-31 | BV38: =Time!BV$21 -> 2048-06-30 | BW38: =Time!BW$21 -> 2048-12-31 | BX38: =Time!BX$21 -> 2049-06-30 | BY38: =Time!BY$21 -> 2049-12-31 | BZ38: =Time!BZ$21 -> 2050-06-30
E39: ='Cash flow'!E$16 -> Pre tax- pre financing cash flow | F39: ='Cash flow'!F$16 -> 0 | G39: ='Cash flow'!G$16 -> EUR k | H39: ='Cash flow'!H$16 -> 1011693.878 | I39: ='Cash flow'!I$16 -> 0 | J39: ='Cash flow'!J$16 -> 0 | K39: ='Cash flow'!K$16 -> -33333.33333 | L39: ='Cash flow'!L$16 -> -33333.33333 | M39: ='Cash flow'!M$16 -> -33333.33333 | N39: ='Cash flow'!N$16 -> -33333.33333 | O39: ='Cash flow'!O$16 -> -33333.33333 | P39: ='Cash flow'!P$16 -> -33333.33333 | Q39: ='Cash flow'!Q$16 -> 7262.449417 | R39: ='Cash flow'!R$16 -> 7741.18209 | S39: ='Cash flow'!S$16 -> 7741.18209 | T39: ='Cash flow'!T$16 -> 8246.927385 | U39: ='Cash flow'!U$16 -> 8246.927385 | V39: ='Cash flow'!V$16 -> 8781.122234 | W39: ='Cash flow'!W$16 -> 8781.122234 | X39: ='Cash flow'!X$16 -> 9345.278051 | Y39: ='Cash flow'!Y$16 -> 9345.278051 | Z39: ='Cash flow'!Z$16 -> 9940.984544 | AA39: ='Cash flow'!AA$16 -> 9940.984544 | AB39: ='Cash flow'!AB$16 -> 10569.91372 | AC39: ='Cash flow'!AC$16 -> 10569.91372 | AD39: ='Cash flow'!AD$16 -> 11233.82411 | AE39: ='Cash flow'!AE$16 -> 11233.82411 | AF39: ='Cash flow'!AF$16 -> 11934.56518 | AG39: ='Cash flow'!AG$16 -> 11934.56518 | AH39: ='Cash flow'!AH$16 -> 12674.08198 | AI39: ='Cash flow'!AI$16 -> 12674.08198 | AJ39: ='Cash flow'!AJ$16 -> 13454.42005 | AK39: ='Cash flow'!AK$16 -> 13454.42005 | AL39: ='Cash flow'!AL$16 -> 14277.73056 | AM39: ='Cash flow'!AM$16 -> 14277.73056 | AN39: ='Cash flow'!AN$16 -> 15146.27567 | AO39: ='Cash flow'!AO$16 -> 15146.27567 | AP39: ='Cash flow'!AP$16 -> 16062.43425 | AQ39: ='Cash flow'!AQ$16 -> 16062.43425 | AR39: ='Cash flow'!AR$16 -> 17028.70783 | AS39: ='Cash flow'!AS$16 -> 17028.70783 | AT39: ='Cash flow'!AT$16 -> 18047.72682 | AU39: ='Cash flow'!AU$16 -> 18047.72682 | AV39: ='Cash flow'!AV$16 -> 19122.25716 | AW39: ='Cash flow'!AW$16 -> 19122.25716 | AX39: ='Cash flow'!AX$16 -> 20255.20721 | AY39: ='Cash flow'!AY$16 -> 20255.20721 | AZ39: ='Cash flow'!AZ$16 -> 21449.635 | BA39: ='Cash flow'!BA$16 -> 21449.635 | BB39: ='Cash flow'!BB$16 -> 22708.75589 | BC39: ='Cash flow'!BC$16 -> 22708.75589 | BD39: ='Cash flow'!BD$16 -> 24035.95061 | BE39: ='Cash flow'!BE$16 -> 24035.95061 | BF39: ='Cash flow'!BF$16 -> 25434.77366 | BG39: ='Cash flow'!BG$16 -> 25434.77366 | BH39: ='Cash flow'!BH$16 -> 26908.9622 | BI39: ='Cash flow'!BI$16 -> 26908.9622 | BJ39: ='Cash flow'!BJ$16 -> 28462.44537 | BK39: ='Cash flow'!BK$16 -> 28462.44537 | BL39: ='Cash flow'!BL$16 -> 30099.35404 | BM39: ='Cash flow'!BM$16 -> 30099.35404 | BN39: ='Cash flow'!BN$16 -> 31824.03115 | BO39: ='Cash flow'!BO$16 -> 31824.03115 | BP39: ='Cash flow'!BP$16 -> 33641.04247 | BQ39: ='Cash flow'!BQ$16 -> 33641.04247 | BR39: ='Cash flow'!BR$16 -> 35555.18798 | BS39: ='Cash flow'!BS$16 -> 35555.18798 | BT39: ='Cash flow'!BT$16 -> 37571.51381 | BU39: ='Cash flow'!BU$16 -> 37571.51381 | BV39: ='Cash flow'!BV$16 -> 39695.32473 | BW39: ='Cash flow'!BW$16 -> 39695.32473 | BX39: ='Cash flow'!BX$16 -> 41932.19742 | BY39: ='Cash flow'!BY$16 -> 0 | BZ39: ='Cash flow'!BZ$16 -> 0
E40: Project NPV | F40: =XNPV(F37, J39:BZ39, J38:BZ38) -> 90958.397 | G40: EUR k
